Workbook

Sheet Introduction
J3: Questions or Feedback?
J4: CMAQ_toolkit_help@dot.gov
A9: Diesel Idle Reduction Technologies
B10: This tool provides estimates of emission reductions for CMAQ-funded projects that reduce emissions from long-haul combination trucks by implementing an idle reduction technology or altering the hours of extended idle activity.
B14: The tool uses emission rates based on national-scale EPA MOVES model runs, as well as rates derived from Argonne National Laboratory resources. Emission estimates from tools in the CMAQ Toolkit are not intended for use in State Implementation Plans (SIPs) or transportation conformity analyses and do not meet the same requirements necessary for SIP and conformity reporting.
J22: Version date: | K22: 2022-07-01

Sheet Diesel Idle Reduction
B1: Diesel Idle Reduction Technologies
B2: This calculator will estimate the reduction in emissions resulting from use of idle reduction methods, including diesel and battery auxiliary power units (APU), direct-fired (D-F) heaters, truck stop electrification (TSE), and engine-off idling. This tool is specific to long-haul combination trucks.
A3: Navigator | B3: INPUT
A5: =HYPERLINK("#'Diesel Idle Reduction'!A1", "Diesel Idle Reduction") -> Diesel Idle Reduction | B5: Note: Inputs for this tool should be specific to the vehicles for which idle reduction method(s) will be applied.
C9: (1) What is your project evaluation year? | G9: 2022
I11: ACTIVITY CALCULATOR (optional)
C12: (2) What type of activity data will you provide for the project? Please select either operating hours or truck population and input annual activity. You may use the optional Activity Calculator to the right to determine activity by model year group based on national defaults (for use in Question 3). | I12: Model Year Group | J12: Default Activity
I13: 2006 or earlier | J13: =NationalDefaultActivity!S33 -> 2292.722345
I14: 2007-2009 | J14: =NationalDefaultActivity!S34 -> 1553.126283
G15: Annual Activity | I15: 2010-2012 | J15: =NationalDefaultActivity!S35 -> 2293.818148
G16: 28224 | H16: hours or trucks | I16: 2013-2020 | J16: =NationalDefaultActivity!S36 -> 17582.72489
I17: 2021-2023 | J17: =NationalDefaultActivity!S37 -> 4501.608334
C18: (3) Use the check boxes to select the types of hotelling operating mode(s) associated with the project. Populate the table with annual activity by model year group. If you are providing activity in terms of operating hours, please provide data for the entire fleet, not per truck. | I18: 2024-2050 | J18: =NationalDefaultActivity!S38 -> 0
H20: NOTE: Use the "Fill with Default Activity Distribution" button to use the default activity from the calculator. If splitting the activity between hotelling operating modes, enter the activity manually.
H23: NOTE: Select the "Check Hotelling Activity Distribution" button before proceeding to Q4.
C25: Model Year Group | D25: Diesel APU | E25: Battery APU | F25: D-F Heater | G25: TSE | H25: Engine-off | I25: Extended Idle
C27: 2006 or earlier | H27: 2292.722345
C28: 2007-2009 | H28: 1553.126283
C29: 2010-2012 | H29: 2293.818148
C30: 2013-2020 | H30: 17582.72489
C31: 2021-2023 | H31: 4501.608334
C32: 2024-2050 | H32: 0
C33: TOTAL | D33: =SUM(D27:D32) -> 0 | E33: =SUM(E27:E32) -> 0 | F33: 0 | G33: 0 | H33: =SUM(H27:H32) -> 28224 | I33: 0
C35: (4) Indicate what annualization to apply to the analysis: default (365 days) or your own value. The annualization indicates the number of days per year that the project will operate.
I36: 252 | J36: days
B40: OUTPUT
B42: FLEET PERFORMANCE
F44: Metric
C45: Annual Activity for Idle Reduction Project | F45: =internalIdle!J19 -> 22579.2 | G45: Total Hotelling Hours
F46: =internalIdle!J21 -> 28224 | G46: Number of Hours Operated | J46: Last Updated: | K46: =NOW() -> 2023-03-13T11:42:07.600
F47: =internalIdle!J20 -> 3136000 | G47: Total Vehicle Miles Travelled
F48: Pollutant
D49: Emissions Benefit for Retrofit (%) | F49: Carbon Monoxide (CO)
F50: Particulate Matter <10 μm (PM10)
F51: Particulate Matter <2.5 μm (PM2.5)
F52: Nitrogen Oxide (NOx)
F53: Volatile Organic Compounds (VOC)
B55: EMISSION REDUCTIONS
E56: Pollutant | H56: Total kg/day
E57: Carbon Monoxide (CO) | H57: =EmissionsSumm!C18 -> 3.716104427
E58: Particulate Matter <2.5 μm (PM2.5) | H58: =EmissionsSumm!D18 -> 0.0891210621
E59: Particulate Matter <10 μm (PM10) | H59: =EmissionsSumm!E18 -> 0.09687099949
E60: Nitrogen Oxides (NOx) | H60: =EmissionsSumm!F18 -> 5.445336713
E61: Volatile Organic Compounds (VOC) | H61: =EmissionsSumm!G18 -> 0.4598997867
E63: Carbon Dioxide CO2 (kg/day) | H63: =EmissionsSumm!H18 -> 660.4005622
E64: Carbon Dioxide Equivalent, CO2e (kg/day) | H64: =EmissionsSumm!J18 -> 662.2453899
E65: Total Energy Consumption (MMBTU/day) | H65: =EmissionsSumm!I18 -> 8.49754726
E66: Note CO2, CO2e and Total Energy Consumption not calculated for projects with direct-fired heaters.

Sheet internalIdle (hidden)
B2: Idle Type | C2: Diesel APU | D2: FALSE
C3: Battery APU | D3: FALSE | F3: Hotelling to VMT | G3: 0.0072 | H3: hours/mile
C4: Direct-fired Heater | D4: FALSE
C5: TSE | D5: FALSE
C6: Engine-off | D6: TRUE | G6: =G3*10/8 -> 0.009
C7: Extended Idle | D7: FALSE
G8: =1/G6 -> 111.1111111
B9: Activity Metric | C9: 1
C11: 1 = operating hours / 2 = truck population | F11: Project Evaluation Year
F12: ='Diesel Idle Reduction'!G9 -> 2022
B13: Annual Activity Input | C13: ='Diesel Idle Reduction'!G16 -> 28224 | I13: =365*24 -> 8760
B16: Activity Distribution
B18: ='Diesel Idle Reduction'!C25 -> Model Year Group | C18: Diesel APU | D18: Battery APU | E18: D-F Heater | F18: TSE | G18: Engine-off | H18: Extended Idle | J18: TOTAL ACTIVITY
B19: ='Diesel Idle Reduction'!C27 -> 2006 or earlier | C19: ='Diesel Idle Reduction'!D27 -> 0 | D19: ='Diesel Idle Reduction'!E27 -> 0 | E19: ='Diesel Idle Reduction'!F27 -> 0 | F19: ='Diesel Idle Reduction'!G27 -> 0 | G19: ='Diesel Idle Reduction'!H27 -> 2292.722345 | H19: ='Diesel Idle Reduction'!I27 -> 0 | J19: =IF(C9=1, I36,8*I25*IF(internalIdle!C39=1,365,internalIdle!E40)) -> 22579.2 | K19: hotelling hours
B20: ='Diesel Idle Reduction'!C28 -> 2007-2009 | C20: ='Diesel Idle Reduction'!D28 -> 0 | D20: ='Diesel Idle Reduction'!E28 -> 0 | E20: ='Diesel Idle Reduction'!F28 -> 0 | F20: ='Diesel Idle Reduction'!G28 -> 0 | G20: ='Diesel Idle Reduction'!H28 -> 1553.126283 | H20: ='Diesel Idle Reduction'!I28 -> 0 | J20: =IF(J19>0, J19/G3, 0) -> 3136000 | K20: VMT
B21: ='Diesel Idle Reduction'!C29 -> 2010-2012 | C21: ='Diesel Idle Reduction'!D29 -> 0 | D21: ='Diesel Idle Reduction'!E29 -> 0 | E21: ='Diesel Idle Reduction'!F29 -> 0 | F21: ='Diesel Idle Reduction'!G29 -> 0 | G21: ='Diesel Idle Reduction'!H29 -> 2293.818148 | H21: ='Diesel Idle Reduction'!I29 -> 0 | J21: =IF(C9=1, I25, J19*10/8) -> 28224 | K21: hours operated
B22: ='Diesel Idle Reduction'!C30 -> 2013-2020 | C22: ='Diesel Idle Reduction'!D30 -> 0 | D22: ='Diesel Idle Reduction'!E30 -> 0 | E22: ='Diesel Idle Reduction'!F30 -> 0 | F22: ='Diesel Idle Reduction'!G30 -> 0 | G22: ='Diesel Idle Reduction'!H30 -> 17582.72489 | H22: ='Diesel Idle Reduction'!I30 -> 0
B23: ='Diesel Idle Reduction'!C31 -> 2021-2023 | C23: ='Diesel Idle Reduction'!D31 -> 0 | D23: ='Diesel Idle Reduction'!E31 -> 0 | E23: ='Diesel Idle Reduction'!F31 -> 0 | F23: ='Diesel Idle Reduction'!G31 -> 0 | G23: ='Diesel Idle Reduction'!H31 -> 4501.608334 | H23: ='Diesel Idle Reduction'!I31 -> 0 | J23: =J21*14 -> 395136
B24: ='Diesel Idle Reduction'!C32 -> 2024-2050 | C24: ='Diesel Idle Reduction'!D32 -> 0 | D24: ='Diesel Idle Reduction'!E32 -> 0 | E24: ='Diesel Idle Reduction'!F32 -> 0 | F24: ='Diesel Idle Reduction'!G32 -> 0 | G24: ='Diesel Idle Reduction'!H32 -> 0 | H24: ='Diesel Idle Reduction'!I32 -> 0
B25: TOTAL | C25: =SUM(C19:C24) -> 0 | D25: =SUM(D19:D24) -> 0 | E25: 0 | F25: =SUM(F19:F24) -> 0 | G25: 28224 | H25: 0 | I25: =SUM(C25:H25) -> 28224
B27: Hotelling Hours
B29: Model Year Group | C29: Diesel APU | D29: Battery APU | E29: D-F Heater | F29: TSE | G29: Engine-off | H29: Extended Idle | J29: Activity for RatesLookup Table
B30: 2006 or earlier | C30: =IF($C$9=1,C19*8/10,C19*8*IF($C$39=1,365,$E$40)) -> 0 | D30: =IF($C$9=1,D19*8/10,D19*8*IF($C$39=1,365,$E$40)) -> 0 | E30: 0 | F30: 0 | G30: =IF($C$9=1,G19*8/10,G19*8*IF($C$39=1,365,$E$40)) -> 1834.177876 | H30: =IF($C$9=1,H19*8/10,H19*8*IF($C$39=1,365,$E$40)) -> 0 | J30: =H30 -> 0
B31: 2007-2009 | C31: =IF($C$9=1,C20*8/10,C20*8*IF($C$39=1,365,$E$40)) -> 0 | D31: =IF($C$9=1,D20*8/10,D20*8*IF($C$39=1,365,$E$40)) -> 0 | E31: 0 | F31: 0 | G31: 1242.501026 | H31: 0 | J31: =H31 -> 0
B32: 2010-2012 | C32: 0 | D32: 0 | E32: 0 | F32: 0 | G32: 1835.054519 | H32: 0 | J32: =H32 -> 0
B33: 2013-2020 | C33: =IF($C$9=1,C22*8/10,C22*8*IF($C$39=1,365,$E$40)) -> 0 | D33: =IF($C$9=1,D22*8/10,D22*8*IF($C$39=1,365,$E$40)) -> 0 | E33: 0 | F33: 0 | G33: 14066.17991 | H33: 0 | J33: =H33 -> 0
B34: 2021-2023 | C34: 0 | D34: =IF($C$9=1,D23*8/10,D23*8*IF($C$39=1,365,$E$40)) -> 0 | E34: 0 | F34: 0 | G34: 3601.286667 | H34: 0 | J34: 0
B35: 2024-2050 | C35: 0 | D35: 0 | E35: 0 | F35: 0 | G35: 0 | H35: 0 | J35: 0
B36: TOTAL | C36: =SUM(C30:C35) -> 0 | D36: =SUM(D30:D35) -> 0 | E36: =SUM(E30:E35) -> 0 | F36: 0 | G36: 22579.2 | H36: 0 | I36: =SUM(C36:H36) -> 22579.2 | J36: =C30 -> 0
J37: =C31 -> 0
G38: TOTAL HOURS by MY GROUP | J38: 0
B39: Annualization | C39: 2 | E39: User-defined value | G39: 2006 or earlier | H39: =SUM(C30:H30) -> 1834.177876 | J39: 0
E40: ='Diesel Idle Reduction'!I36 -> 252 | G40: 2007-2009 | H40: =SUM(C31:H31) -> 1242.501026 | J40: 0
C41: 1 = default / 2 = user-defined | G41: 2010-2012 | H41: =SUM(C32:H32) -> 1835.054519 | J41: 0
G42: 2013-2020 | H42: 14066.17991 | J42: =D30 -> 0
G43: 2021-2023 | H43: 3601.286667 | J43: 0
G44: 2024-2050 | H44: 0 | J44: 0
J45: 0
J46: 0
J47: 0
J48: =E30 -> 0
J49: 0
J50: 0
J51: 0
J52: 0
J53: 0
J54: =F30 -> 0
J55: 0
J56: 0
J57: 0
J58: 0
J59: 0
J60: =G30 -> 1834.177876
J61: 1242.501026
J62: 1835.054519
J63: 14066.17991
J64: 3601.286667
J65: =G35 -> 0

Sheet EmissionsSumm (hidden)
B2: After Project - All Hotelling Activity Types | L2: Before Project - 100% Extended Idle
B3: Emissions in grams, all MY groups
L4: Emissions rates in g/hr
C5: CO | D5: PM2.5 | E5: PM10 | F5: NOx | G5: VOCs | H5: CO2 | I5: TEC | J5: CO2e | L5: MY_GroupID | M5: CO | N5: PM2.5 | O5: PM10 | P5: NOx | Q5: VOCs | R5: CO2 | S5: TEC | T5: CO2e
B6: Diesel APU | C6: =SUMIFS(RatesLookup!H:H, RatesLookup!C:C, "2", RatesLookup!E:E, "2") -> 0 | D6: =SUMIFS(RatesLookup!H:H, RatesLookup!C:C, "110", RatesLookup!E:E, "2") -> 0 | E6: =SUMIFS(RatesLookup!H:H, RatesLookup!C:C, "100", RatesLookup!E:E, "2") -> 0 | F6: =SUMIFS(RatesLookup!H:H, RatesLookup!C:C, "3", RatesLookup!E:E, "2") -> 0 | G6: =SUMIFS(RatesLookup!H:H, RatesLookup!C:C, "87", RatesLookup!E:E, "2") -> 0 | H6: =SUMIFS(RatesLookup!H:H, RatesLookup!C:C, "90", RatesLookup!E:E, "2") -> 0 | I6: =SUMIFS(RatesLookup!H:H, RatesLookup!C:C, "91", RatesLookup!E:E, "2") -> 0 | J6: =SUMIFS(RatesLookup!H:H, RatesLookup!C:C, "98", RatesLookup!E:E, "2") -> 0 | L6: 1 | M6: =SUMIFS(RatesLookup!F:F, RatesLookup!C:C, "2", RatesLookup!D:D, "1", RatesLookup!E:E, "1")*M17 -> 99747.36437 | N6: =SUMIFS(RatesLookup!F:F, RatesLookup!C:C, "110", RatesLookup!D:D, "1", RatesLookup!E:E, "1")*M17 -> 12416.85484 | O6: =SUMIFS(RatesLookup!F:F, RatesLookup!C:C, "100", RatesLookup!D:D, "1", RatesLookup!E:E, "1")*M17 -> 13496.61749 | P6: =SUMIFS(RatesLookup!F:F, RatesLookup!C:C, "3", RatesLookup!D:D, "1", RatesLookup!E:E, "1")*M17 -> 266315.3654 | Q6: =SUMIFS(RatesLookup!F:F, RatesLookup!C:C, "87", RatesLookup!D:D, "1", RatesLookup!E:E, "1")*M17 -> 54729.91986 | R6: =SUMIFS(RatesLookup!F:F, RatesLookup!C:C, "90", RatesLookup!D:D, "1", RatesLookup!E:E, "1")*M17 -> 16637028.5 | S6: =SUMIFS(RatesLookup!F:F, RatesLookup!C:C, "91", RatesLookup!D:D, L6, RatesLookup!E:E, "1")*M17 -> 214.0730119 | T6: =SUMIFS(RatesLookup!F:F, RatesLookup!C:C, "98", RatesLookup!D:D, L6, RatesLookup!E:E, "1")*M17 -> 16637024.06
B7: Battery APU | C7: =SUMIFS(RatesLookup!H:H, RatesLookup!C:C, "2", RatesLookup!E:E, "3") -> 0 | D7: =SUMIFS(RatesLookup!H:H, RatesLookup!C:C, "110", RatesLookup!E:E, "3") -> 0 | E7: =SUMIFS(RatesLookup!H:H, RatesLookup!C:C, "100", RatesLookup!E:E, "3") -> 0 | F7: =SUMIFS(RatesLookup!H:H, RatesLookup!C:C, "3", RatesLookup!E:E, "3") -> 0 | G7: =SUMIFS(RatesLookup!H:H, RatesLookup!C:C, "87", RatesLookup!E:E, "3") -> 0 | H7: =SUMIFS(RatesLookup!H:H, RatesLookup!C:C, "90", RatesLookup!E:E, "3") -> 0 | I7: =SUMIFS(RatesLookup!H:H, RatesLookup!C:C, "91", RatesLookup!E:E, "3") -> 0 | J7: =SUMIFS(RatesLookup!H:H, RatesLookup!C:C, "98", RatesLookup!E:E, "3") -> 0 | L7: 2 | M7: =SUMIFS(RatesLookup!F:F, RatesLookup!C:C, "2", RatesLookup!D:D, "2", RatesLookup!E:E, "1")*M18 -> 55661.79347 | N7: =SUMIFS(RatesLookup!F:F, RatesLookup!C:C, "110", RatesLookup!D:D, "2", RatesLookup!E:E, "1")*M18 -> 149.2514041 | O7: =SUMIFS(RatesLookup!F:F, RatesLookup!C:C, "100", RatesLookup!D:D, "2", RatesLookup!E:E, "1")*M18 -> 162.2302781 | P7: =SUMIFS(RatesLookup!F:F, RatesLookup!C:C, "3", RatesLookup!D:D, "2", RatesLookup!E:E, "1")*M18 -> 133777.046 | Q7: =SUMIFS(RatesLookup!F:F, RatesLookup!C:C, "87", RatesLookup!D:D, "2", RatesLookup!E:E, "1")*M18 -> 7175.2764 | R7: =SUMIFS(RatesLookup!F:F, RatesLookup!C:C, "90", RatesLookup!D:D, "2", RatesLookup!E:E, "1")*M18 -> 8893280.12 | S7: =SUMIFS(RatesLookup!F:F, RatesLookup!C:C, "91", RatesLookup!D:D, L7, RatesLookup!E:E, "1")*M18 -> 114.4322177 | T7: =SUMIFS(RatesLookup!F:F, RatesLookup!C:C, "98", RatesLookup!D:D, L7, RatesLookup!E:E, "1")*M18 -> 9048097.479
B8: Direct-fired Heater | C8: =SUMIFS(RatesLookup!H:H, RatesLookup!C:C, "2", RatesLookup!E:E, "4") -> 0 | D8: =SUMIFS(RatesLookup!H:H, RatesLookup!C:C, "110", RatesLookup!E:E, "4") -> 0 | E8: =SUMIFS(RatesLookup!H:H, RatesLookup!C:C, "100", RatesLookup!E:E, "4") -> 0 | F8: =SUMIFS(RatesLookup!H:H, RatesLookup!C:C, "3", RatesLookup!E:E, "4") -> 0 | G8: =SUMIFS(RatesLookup!H:H, RatesLookup!C:C, "87", RatesLookup!E:E, "4") -> 0 | L8: 3 | M8: =SUMIFS(RatesLookup!F:F, RatesLookup!C:C, "2", RatesLookup!D:D, "3", RatesLookup!E:E, "1")*M19 -> 73185.60444 | N8: =SUMIFS(RatesLookup!F:F, RatesLookup!C:C, "110", RatesLookup!D:D, "3", RatesLookup!E:E, "1")*M19 -> 594.0462124 | O8: =SUMIFS(RatesLookup!F:F, RatesLookup!C:C, "100", RatesLookup!D:D, "3", RatesLookup!E:E, "1")*M19 -> 645.7043854 | P8: =SUMIFS(RatesLookup!F:F, RatesLookup!C:C, "3", RatesLookup!D:D, "3", RatesLookup!E:E, "1")*M19 -> 89522.93375 | Q8: =SUMIFS(RatesLookup!F:F, RatesLookup!C:C, "87", RatesLookup!D:D, "3", RatesLookup!E:E, "1")*M19 -> 5271.597725 | R8: =SUMIFS(RatesLookup!F:F, RatesLookup!C:C, "90", RatesLookup!D:D, "3", RatesLookup!E:E, "1")*M19 -> 13221112.85 | S8: =SUMIFS(RatesLookup!F:F, RatesLookup!C:C, "91", RatesLookup!D:D, L8, RatesLookup!E:E, "1")*M19 -> 170.1195345 | T8: =SUMIFS(RatesLookup!F:F, RatesLookup!C:C, "98", RatesLookup!D:D, L8, RatesLookup!E:E, "1")*M19 -> 13267584.8
B9: TSE | C9: =SUMIFS(RatesLookup!H:H, RatesLookup!C:C, "2", RatesLookup!E:E, "5") -> 0 | D9: =SUMIFS(RatesLookup!H:H, RatesLookup!C:C, "110", RatesLookup!E:E, "5") -> 0 | E9: =SUMIFS(RatesLookup!H:H, RatesLookup!C:C, "100", RatesLookup!E:E, "5") -> 0 | F9: =SUMIFS(RatesLookup!H:H, RatesLookup!C:C, "3", RatesLookup!E:E, "5") -> 0 | G9: =SUMIFS(RatesLookup!H:H, RatesLookup!C:C, "87", RatesLookup!E:E, "5") -> 0 | H9: =SUMIFS(RatesLookup!H:H, RatesLookup!C:C, "90", RatesLookup!E:E, "5") -> 0 | I9: =SUMIFS(RatesLookup!H:H, RatesLookup!C:C, "91", RatesLookup!E:E, "5") -> 0 | J9: =SUMIFS(RatesLookup!H:H, RatesLookup!C:C, "98", RatesLookup!E:E, "5") -> 0 | L9: 4 | M9: =SUMIFS(RatesLookup!F:F, RatesLookup!C:C, "2", RatesLookup!D:D, "4", RatesLookup!E:E, "1")*M20 -> 564103.0025 | N9: =SUMIFS(RatesLookup!F:F, RatesLookup!C:C, "110", RatesLookup!D:D, "4", RatesLookup!E:E, "1")*M20 -> 7803.580239 | O9: =SUMIFS(RatesLookup!F:F, RatesLookup!C:C, "100", RatesLookup!D:D, "4", RatesLookup!E:E, "1")*M20 -> 8482.1792 | P9: =SUMIFS(RatesLookup!F:F, RatesLookup!C:C, "3", RatesLookup!D:D, "4", RatesLookup!E:E, "1")*M20 -> 706065.5144 | Q9: =SUMIFS(RatesLookup!F:F, RatesLookup!C:C, "87", RatesLookup!D:D, "4", RatesLookup!E:E, "1")*M20 -> 40014.48961 | R9: =SUMIFS(RatesLookup!F:F, RatesLookup!C:C, "90", RatesLookup!D:D, "4", RatesLookup!E:E, "1")*M20 -> 101707445.6 | S9: =SUMIFS(RatesLookup!F:F, RatesLookup!C:C, "91", RatesLookup!D:D, L9, RatesLookup!E:E, "1")*M20 -> 1308.69632 | T9: =SUMIFS(RatesLookup!F:F, RatesLookup!C:C, "98", RatesLookup!D:D, L9, RatesLookup!E:E, "1")*M20 -> 101916806.2
B10: Engine-off | C10: =SUMIFS(RatesLookup!H:H, RatesLookup!C:C, "2", RatesLookup!E:E, "6") -> 0 | D10: =SUMIFS(RatesLookup!H:H, RatesLookup!C:C, "110", RatesLookup!E:E, "6") -> 0 | E10: =SUMIFS(RatesLookup!H:H, RatesLookup!C:C, "100", RatesLookup!E:E, "6") -> 0 | F10: =SUMIFS(RatesLookup!H:H, RatesLookup!C:C, "3", RatesLookup!E:E, "6") -> 0 | G10: =SUMIFS(RatesLookup!H:H, RatesLookup!C:C, "87", RatesLookup!E:E, "6") -> 0 | H10: =SUMIFS(RatesLookup!H:H, RatesLookup!C:C, "90", RatesLookup!E:E, "6") -> 0 | I10: =SUMIFS(RatesLookup!H:H, RatesLookup!C:C, "91", RatesLookup!E:E, "6") -> 0 | J10: =SUMIFS(RatesLookup!H:H, RatesLookup!C:C, "98", RatesLookup!E:E, "6") -> 0 | L10: 5 | M10: =SUMIFS(RatesLookup!F:F, RatesLookup!C:C, "2", RatesLookup!D:D, "5", RatesLookup!E:E, "1")*M21 -> 143760.5508 | N10: =SUMIFS(RatesLookup!F:F, RatesLookup!C:C, "110", RatesLookup!D:D, "5", RatesLookup!E:E, "1")*M21 -> 1494.774952 | O10: =SUMIFS(RatesLookup!F:F, RatesLookup!C:C, "100", RatesLookup!D:D, "5", RatesLookup!E:E, "1")*M21 -> 1624.760519 | P10: =SUMIFS(RatesLookup!F:F, RatesLookup!C:C, "3", RatesLookup!D:D, "5", RatesLookup!E:E, "1")*M21 -> 176543.9921 | Q10: =SUMIFS(RatesLookup!F:F, RatesLookup!C:C, "87", RatesLookup!D:D, "5", RatesLookup!E:E, "1")*M21 -> 8703.462649 | R10: =SUMIFS(RatesLookup!F:F, RatesLookup!C:C, "90", RatesLookup!D:D, "5", RatesLookup!E:E, "1")*M21 -> 25962074.65 | S10: =SUMIFS(RatesLookup!F:F, RatesLookup!C:C, "91", RatesLookup!D:D, L10, RatesLookup!E:E, "1")*M21 -> 334.060825 | T10: =SUMIFS(RatesLookup!F:F, RatesLookup!C:C, "98", RatesLookup!D:D, L10, RatesLookup!E:E, "1")*M21 -> 26016325.74
B11: Extended Idle | C11: =SUMIFS(RatesLookup!H:H, RatesLookup!C:C, "2", RatesLookup!E:E, "1") -> 0 | D11: =SUMIFS(RatesLookup!H:H, RatesLookup!C:C, "110", RatesLookup!E:E, "1") -> 0 | E11: =SUMIFS(RatesLookup!H:H, RatesLookup!C:C, "100", RatesLookup!E:E, "1") -> 0 | F11: =SUMIFS(RatesLookup!H:H, RatesLookup!C:C, "3", RatesLookup!E:E, "1") -> 0 | G11: =SUMIFS(RatesLookup!H:H, RatesLookup!C:C, "87", RatesLookup!E:E, "1") -> 0 | H11: =SUMIFS(RatesLookup!H:H, RatesLookup!C:C, "90", RatesLookup!E:E, "1") -> 0 | I11: =SUMIFS(RatesLookup!H:H, RatesLookup!C:C, "91", RatesLookup!E:E, "1") -> 0 | J11: =SUMIFS(RatesLookup!H:H, RatesLookup!C:C, "98", RatesLookup!E:E, "1") -> 0 | L11: 6 | M11: =SUMIFS(RatesLookup!F:F, RatesLookup!C:C, "2", RatesLookup!D:D, "6", RatesLookup!E:E, "1")*M22 -> 0 | N11: =SUMIFS(RatesLookup!F:F, RatesLookup!C:C, "110", RatesLookup!D:D, "6", RatesLookup!E:E, "1")*M22 -> 0 | O11: =SUMIFS(RatesLookup!F:F, RatesLookup!C:C, "100", RatesLookup!D:D, "6", RatesLookup!E:E, "1")*M22 -> 0 | P11: =SUMIFS(RatesLookup!F:F, RatesLookup!C:C, "3", RatesLookup!D:D, "6", RatesLookup!E:E, "1")*M22 -> 0 | Q11: =SUMIFS(RatesLookup!F:F, RatesLookup!C:C, "87", RatesLookup!D:D, "6", RatesLookup!E:E, "1")*M22 -> 0 | R11: =SUMIFS(RatesLookup!F:F, RatesLookup!C:C, "90", RatesLookup!D:D, L11, RatesLookup!E:E, "1")*M22 -> 0 | S11: =SUMIFS(RatesLookup!F:F, RatesLookup!C:C, "91", RatesLookup!D:D, L11, RatesLookup!E:E, "1")*M22 -> 0 | T11: =SUMIFS(RatesLookup!F:F, RatesLookup!C:C, "98", RatesLookup!D:D, L11, RatesLookup!E:E, "1")*M22 -> 0
B13: Total after IR project | C13: =SUM(C6:C11) -> 0 | D13: =SUM(D6:D11) -> 0 | E13: 0 | F13: =SUM(F6:F11) -> 0 | G13: =SUM(G6:G11) -> 0 | H13: =SUM(H6:H11) -> 0 | I13: =SUM(I6:I11) -> 0 | J13: =SUM(J6:J11) -> 0 | L13: Total before project | M13: =SUM(M6:M11) -> 936458.3156 | N13: 22458.50765 | O13: 24411.49187 | P13: 1372224.852 | Q13: 115894.7462 | R13: 166420941.7 | S13: =SUM(S6:S11) -> 2141.38191 | T13: 166885838.3
B16: Emission Reduction (kg) | C16: =(M13-C13)/1000 -> 936.4583156 | D16: =(N13-D13)/1000 -> 22.45850765 | E16: 24.41149187 | F16: 1372.224852 | G16: 115.8947462 | H16: 166420.9417 | I16: =(S13-I13) -> 2141.38191 | J16: =(T13-J13)/1000 -> 166885.8383 | L16: MY_GroupID | M16: Extended Idle Hours
L17: 1 | M17: =internalIdle!H39 -> 1834.177876 | O17: Assume 100% of hotelling hours before project are extended idle. Sum entries by model year group on internalidle tab (hotelling hours table).
B18: Emission Reduction (kg/day) | C18: =IF(internalIdle!$C$39=1, C16/365, C16/'Diesel Idle Reduction'!$I$36) -> 3.716104427 | D18: =IF(internalIdle!$C$39=1, D16/365, D16/'Diesel Idle Reduction'!$I$36) -> 0.0891210621 | E18: =IF(internalIdle!$C$39=1, E16/365, E16/'Diesel Idle Reduction'!$I$36) -> 0.09687099949 | F18: =IF(internalIdle!$C$39=1, F16/365, F16/'Diesel Idle Reduction'!$I$36) -> 5.445336713 | G18: =IF(internalIdle!$C$39=1, G16/365, G16/'Diesel Idle Reduction'!$I$36) -> 0.4598997867 | H18: =IF(internalIdle!D4=FALSE,IF(internalIdle!$C$39=1, H16/365, H16/'Diesel Idle Reduction'!$I$36),"NA") -> 660.4005622 | I18: =IF(internalIdle!D4=FALSE,IF(internalIdle!$C$39=1, I16/365, I16/'Diesel Idle Reduction'!$I$36),"NA") -> 8.49754726 | J18: =IF(internalIdle!D4=FALSE,IF(internalIdle!$C$39=1, J16/365, J16/'Diesel Idle Reduction'!$I$36),"NA") -> 662.2453899 | L18: 2 | M18: =internalIdle!H40 -> 1242.501026
L19: 3 | M19: =internalIdle!H41 -> 1835.054519
L20: 4 | M20: =internalIdle!H42 -> 14066.17991
L21: 5 | M21: =internalIdle!H43 -> 3601.286667
L22: 6 | M22: =internalIdle!H44 -> 0
M23: =SUM(M17:M22) -> 22579.2

Sheet ChangeLog (hidden)
A2: Change Log
A4: Version
A5: 2018-03-16T10:23:00 | C5: FHWA review pre-beta
A6: 2018-08-01 | C6: Beta tester comments incorporated
A7: 2018-10-01 | C7: FHWA review post-beta
A8: 2018-10-01 | C8: Revision shared for posting
A9: 2018-11-07 | C9: Version for posting
A10: 2019-08-19 | C10: Extended project evaluation year input to 2030 (2018 to 2030)
C11: Ran MOVES 2014b for Extended Idle and Hotelling Auxiliary Power to get emission rates for engine-on idling and diesel APUs for 2028 to 2030
C12: Updated the National Activity Defaults table for 2028 to 2030 MYs using MOVES activity (truck population and operating hours)
C13: Updated error messages to reflect new project evaluation years
C14: Added Total Energy Consumption and CO2e – note these parameters come from MOVES, so this was done for extended idle and diesel APUs only (other hotelling types did not use MOVES data)
C16: Added check on sum of activity entered in Q3 and total annual activity in Q1
A17: 2020-02-05 | C17: Fixed error in activity calculator.
A18: 2022-07-01 | C18: MOVES3 updates, including addition of CO2 calculations. Note that the emission rates for diesel APUs and extended idle comes entirely from MOVES (instead of from external EPA sources, since MOVES3 now incorporates these updates)

Sheet RatesLookup (hidden)
B1: Pollutant | C1: MOVES PollutantID | D1: MYGroupID | E1: TechID | F1: EmissionRate | G1: Activity | H1: Emissions
B2: CO | C2: 2 | D2: 1 | E2: 1 | F2: =RatesSummary!D3 -> 54.38260141 | G2: =internalIdle!J30 -> 0 | H2: =Table1[[#This Row],[EmissionRate]]*Table1[[#This Row],[Activity]] -> 0 | K2: LEGEND
B3: CO | C3: 2 | D3: 2 | E3: 1 | F3: =RatesSummary!D4 -> 44.79818712 | G3: =internalIdle!J31 -> 0 | H3: =Table1[[#This Row],[EmissionRate]]*Table1[[#This Row],[Activity]] -> 0 | K3: MY_GroupID | N3: Tech ID | Q3: Pollutant ID
B4: CO | C4: 2 | D4: 3 | E4: 1 | F4: =RatesSummary!D5 -> 39.88197828 | G4: =internalIdle!J32 -> 0 | H4: =Table1[[#This Row],[EmissionRate]]*Table1[[#This Row],[Activity]] -> 0 | K4: 1 | L4: 2006 or earlier | N4: 1 | O4: Extended Idle | Q4: 2 | R4: CO
B5: CO | C5: 2 | D5: 4 | E5: 1 | F5: =RatesSummary!D6 -> 40.1034969 | G5: =internalIdle!J33 -> 0 | H5: =Table1[[#This Row],[EmissionRate]]*Table1[[#This Row],[Activity]] -> 0 | K5: 2 | L5: 2007-2009 | N5: 2 | O5: Diesel APU | Q5: 110 | R5: PM2.5
B6: CO | C6: 2 | D6: 5 | E6: 1 | F6: =RatesSummary!D7 -> 39.9192189 | G6: =internalIdle!J34 -> 0 | H6: =Table1[[#This Row],[EmissionRate]]*Table1[[#This Row],[Activity]] -> 0 | K6: 3 | L6: 2010-2012 | N6: 3 | O6: Battery APU | Q6: 100 | R6: PM10
B7: CO | C7: 2 | D7: 6 | E7: 1 | F7: =RatesSummary!D8 -> 39.90818155 | G7: =internalIdle!J35 -> 0 | H7: =Table1[[#This Row],[EmissionRate]]*Table1[[#This Row],[Activity]] -> 0 | K7: 4 | L7: 2013-2020 | N7: 4 | O7: Direct-fired Heater | Q7: 3 | R7: NOx
B8: CO | C8: 2 | D8: 1 | E8: 2 | F8: =RatesSummary!E3 -> 9.955999997 | G8: =internalIdle!J36 -> 0 | H8: =Table1[[#This Row],[EmissionRate]]*Table1[[#This Row],[Activity]] -> 0 | K8: 5 | L8: 2021-2023 | N8: 5 | O8: TSE | Q8: 87 | R8: VOCs
B9: CO | C9: 2 | D9: 2 | E9: 2 | F9: =RatesSummary!E4 -> 9.955996974 | G9: =internalIdle!J37 -> 0 | H9: =Table1[[#This Row],[EmissionRate]]*Table1[[#This Row],[Activity]] -> 0 | K9: 6 | L9: 2024-2050 | N9: 6 | O9: Engine-off
B10: CO | C10: 2 | D10: 3 | E10: 2 | F10: =RatesSummary!E5 -> 9.956003979 | G10: =internalIdle!J38 -> 0 | H10: =Table1[[#This Row],[EmissionRate]]*Table1[[#This Row],[Activity]] -> 0
B11: CO | C11: 2 | D11: 4 | E11: 2 | F11: =RatesSummary!E6 -> 9.956000322 | G11: =internalIdle!J39 -> 0 | H11: =Table1[[#This Row],[EmissionRate]]*Table1[[#This Row],[Activity]] -> 0
B12: CO | C12: 2 | D12: 5 | E12: 2 | F12: =RatesSummary!E7 -> 9.955998631 | G12: =internalIdle!J40 -> 0 | H12: =Table1[[#This Row],[EmissionRate]]*Table1[[#This Row],[Activity]] -> 0
B13: CO | C13: 2 | D13: 6 | E13: 2 | F13: =RatesSummary!E8 -> 9.955999973 | G13: =internalIdle!J41 -> 0 | H13: =Table1[[#This Row],[EmissionRate]]*Table1[[#This Row],[Activity]] -> 0
B14: CO | C14: 2 | D14: 1 | E14: 3 | F14: =RatesSummary!F3 -> 2.463 | G14: =internalIdle!J42 -> 0 | H14: =Table1[[#This Row],[EmissionRate]]*Table1[[#This Row],[Activity]] -> 0
B15: CO | C15: 2 | D15: 2 | E15: 3 | F15: =RatesSummary!F4 -> 0.51 | G15: =internalIdle!J43 -> 0 | H15: =Table1[[#This Row],[EmissionRate]]*Table1[[#This Row],[Activity]] -> 0
B16: CO | C16: 2 | D16: 3 | E16: 3 | F16: =RatesSummary!F5 -> 1.89 | G16: =internalIdle!J44 -> 0 | H16: =Table1[[#This Row],[EmissionRate]]*Table1[[#This Row],[Activity]] -> 0
B17: CO | C17: 2 | D17: 4 | E17: 3 | F17: =RatesSummary!F6 -> 1.325 | G17: =internalIdle!J45 -> 0 | H17: =Table1[[#This Row],[EmissionRate]]*Table1[[#This Row],[Activity]] -> 0
B18: CO | C18: 2 | D18: 5 | E18: 3 | F18: =RatesSummary!F7 -> 1.265 | G18: =internalIdle!J46 -> 0 | H18: =Table1[[#This Row],[EmissionRate]]*Table1[[#This Row],[Activity]] -> 0
B19: CO | C19: 2 | D19: 6 | E19: 3 | F19: =RatesSummary!F8 -> 1.359 | G19: =internalIdle!J47 -> 0 | H19: =Table1[[#This Row],[EmissionRate]]*Table1[[#This Row],[Activity]] -> 0
B20: CO | C20: 2 | D20: 1 | E20: 4 | F20: =RatesSummary!G3 -> 0.437 | G20: =internalIdle!J48 -> 0 | H20: =Table1[[#This Row],[EmissionRate]]*Table1[[#This Row],[Activity]] -> 0
B21: CO | C21: 2 | D21: 2 | E21: 4 | F21: =RatesSummary!G4 -> 0.437 | G21: =internalIdle!J49 -> 0 | H21: =Table1[[#This Row],[EmissionRate]]*Table1[[#This Row],[Activity]] -> 0
B22: CO | C22: 2 | D22: 3 | E22: 4 | F22: =RatesSummary!G5 -> 0.437 | G22: =internalIdle!J50 -> 0 | H22: =Table1[[#This Row],[EmissionRate]]*Table1[[#This Row],[Activity]] -> 0
B23: CO | C23: 2 | D23: 4 | E23: 4 | F23: =RatesSummary!G6 -> 0.437 | G23: =internalIdle!J51 -> 0 | H23: =Table1[[#This Row],[EmissionRate]]*Table1[[#This Row],[Activity]] -> 0
B24: CO | C24: 2 | D24: 5 | E24: 4 | F24: =RatesSummary!G7 -> 0.437 | G24: =internalIdle!J52 -> 0 | H24: =Table1[[#This Row],[EmissionRate]]*Table1[[#This Row],[Activity]] -> 0
B25: CO | C25: 2 | D25: 6 | E25: 4 | F25: =RatesSummary!G8 -> 0.437 | G25: =internalIdle!J53 -> 0 | H25: =Table1[[#This Row],[EmissionRate]]*Table1[[#This Row],[Activity]] -> 0
B26: CO | C26: 2 | D26: 1 | E26: 5 | F26: =RatesSummary!H3 -> 0 | G26: =internalIdle!J54 -> 0 | H26: =Table1[[#This Row],[EmissionRate]]*Table1[[#This Row],[Activity]] -> 0
B27: CO | C27: 2 | D27: 2 | E27: 5 | F27: =RatesSummary!H4 -> 0 | G27: =internalIdle!J55 -> 0 | H27: =Table1[[#This Row],[EmissionRate]]*Table1[[#This Row],[Activity]] -> 0
B28: CO | C28: 2 | D28: 3 | E28: 5 | F28: =RatesSummary!H5 -> 0 | G28: =internalIdle!J56 -> 0 | H28: =Table1[[#This Row],[EmissionRate]]*Table1[[#This Row],[Activity]] -> 0
B29: CO | C29: 2 | D29: 4 | E29: 5 | F29: =RatesSummary!H6 -> 0 | G29: =internalIdle!J57 -> 0 | H29: =Table1[[#This Row],[EmissionRate]]*Table1[[#This Row],[Activity]] -> 0
B30: CO | C30: 2 | D30: 5 | E30: 5 | F30: =RatesSummary!H7 -> 0 | G30: =internalIdle!J58 -> 0 | H30: =Table1[[#This Row],[EmissionRate]]*Table1[[#This Row],[Activity]] -> 0
B31: CO | C31: 2 | D31: 6 | E31: 5 | F31: =RatesSummary!H8 -> 0 | G31: =internalIdle!J59 -> 0 | H31: =Table1[[#This Row],[EmissionRate]]*Table1[[#This Row],[Activity]] -> 0
B32: CO | C32: 2 | D32: 1 | E32: 6 | F32: =RatesSummary!I3 -> 0 | G32: =internalIdle!J60 -> 1834.177876 | H32: =Table1[[#This Row],[EmissionRate]]*Table1[[#This Row],[Activity]] -> 0
B33: CO | C33: 2 | D33: 2 | E33: 6 | F33: =RatesSummary!I4 -> 0 | G33: =internalIdle!J61 -> 1242.501026 | H33: =Table1[[#This Row],[EmissionRate]]*Table1[[#This Row],[Activity]] -> 0
B34: CO | C34: 2 | D34: 3 | E34: 6 | F34: =RatesSummary!I5 -> 0 | G34: =internalIdle!J62 -> 1835.054519 | H34: =Table1[[#This Row],[EmissionRate]]*Table1[[#This Row],[Activity]] -> 0
B35: CO | C35: 2 | D35: 4 | E35: 6 | F35: =RatesSummary!I6 -> 0 | G35: =internalIdle!J63 -> 14066.17991 | H35: =Table1[[#This Row],[EmissionRate]]*Table1[[#This Row],[Activity]] -> 0
B36: CO | C36: 2 | D36: 5 | E36: 6 | F36: =RatesSummary!I7 -> 0 | G36: =internalIdle!J64 -> 3601.286667 | H36: =Table1[[#This Row],[EmissionRate]]*Table1[[#This Row],[Activity]] -> 0
B37: CO | C37: 2 | D37: 6 | E37: 6 | F37: =RatesSummary!I8 -> 0 | G37: =internalIdle!J65 -> 0 | H37: =Table1[[#This Row],[EmissionRate]]*Table1[[#This Row],[Activity]] -> 0
B38: PM2.5 | C38: 110 | D38: 1 | E38: 1 | F38: =RatesSummary!D12 -> 6.769711379 | G38: =internalIdle!J30 -> 0 | H38: =Table1[[#This Row],[EmissionRate]]*Table1[[#This Row],[Activity]] -> 0
B39: PM2.5 | C39: 110 | D39: 2 | E39: 1 | F39: =RatesSummary!D13 -> 0.1201217552 | G39: =internalIdle!J31 -> 0 | H39: =Table1[[#This Row],[EmissionRate]]*Table1[[#This Row],[Activity]] -> 0
B40: PM2.5 | C40: 110 | D40: 3 | E40: 1 | F40: =RatesSummary!D14 -> 0.323721288 | G40: =internalIdle!J32 -> 0 | H40: =Table1[[#This Row],[EmissionRate]]*Table1[[#This Row],[Activity]] -> 0
B41: PM2.5 | C41: 110 | D41: 4 | E41: 1 | F41: =RatesSummary!D15 -> 0.5547760862 | G41: =internalIdle!J33 -> 0 | H41: =Table1[[#This Row],[EmissionRate]]*Table1[[#This Row],[Activity]] -> 0
B42: PM2.5 | C42: 110 | D42: 5 | E42: 1 | F42: =RatesSummary!D16 -> 0.4150669164 | G42: =internalIdle!J34 -> 0 | H42: =Table1[[#This Row],[EmissionRate]]*Table1[[#This Row],[Activity]] -> 0
B43: PM2.5 | C43: 110 | D43: 6 | E43: 1 | F43: =RatesSummary!D17 -> 0.4060440769 | G43: =internalIdle!J35 -> 0 | H43: =Table1[[#This Row],[EmissionRate]]*Table1[[#This Row],[Activity]] -> 0
B44: PM2.5 | C44: 110 | D44: 1 | E44: 2 | F44: =RatesSummary!E12 -> 0.9016855452 | G44: =internalIdle!J36 -> 0 | H44: =Table1[[#This Row],[EmissionRate]]*Table1[[#This Row],[Activity]] -> 0
B45: PM2.5 | C45: 110 | D45: 2 | E45: 2 | F45: =RatesSummary!E13 -> 0.9016853138 | G45: =internalIdle!J37 -> 0 | H45: =Table1[[#This Row],[EmissionRate]]*Table1[[#This Row],[Activity]] -> 0
B46: PM2.5 | C46: 110 | D46: 3 | E46: 2 | F46: =RatesSummary!E14 -> 0.9016862616 | G46: =internalIdle!J38 -> 0 | H46: =Table1[[#This Row],[EmissionRate]]*Table1[[#This Row],[Activity]] -> 0
B47: PM2.5 | C47: 110 | D47: 4 | E47: 2 | F47: =RatesSummary!E15 -> 0.90168577 | G47: =internalIdle!J39 -> 0 | H47: =Table1[[#This Row],[EmissionRate]]*Table1[[#This Row],[Activity]] -> 0
B48: PM2.5 | C48: 110 | D48: 5 | E48: 2 | F48: =RatesSummary!E16 -> 0.3381313759 | G48: =internalIdle!J40 -> 0 | H48: =Table1[[#This Row],[EmissionRate]]*Table1[[#This Row],[Activity]] -> 0
B49: PM2.5 | C49: 110 | D49: 6 | E49: 2 | F49: =RatesSummary!E17 -> 0.01957598777 | G49: =internalIdle!J41 -> 0 | H49: =Table1[[#This Row],[EmissionRate]]*Table1[[#This Row],[Activity]] -> 0
B50: PM2.5 | C50: 110 | D50: 1 | E50: 3 | F50: =RatesSummary!F12 -> 0.45 | G50: =internalIdle!J42 -> 0 | H50: =Table1[[#This Row],[EmissionRate]]*Table1[[#This Row],[Activity]] -> 0
B51: PM2.5 | C51: 110 | D51: 2 | E51: 3 | F51: =RatesSummary!F13 -> 0.018 | G51: =internalIdle!J43 -> 0 | H51: =Table1[[#This Row],[EmissionRate]]*Table1[[#This Row],[Activity]] -> 0
B52: PM2.5 | C52: 110 | D52: 3 | E52: 3 | F52: =RatesSummary!F14 -> 0.016 | G52: =internalIdle!J44 -> 0 | H52: =Table1[[#This Row],[EmissionRate]]*Table1[[#This Row],[Activity]] -> 0
B53: PM2.5 | C53: 110 | D53: 4 | E53: 3 | F53: =RatesSummary!F15 -> 0.022 | G53: =internalIdle!J45 -> 0 | H53: =Table1[[#This Row],[EmissionRate]]*Table1[[#This Row],[Activity]] -> 0
B54: PM2.5 | C54: 110 | D54: 5 | E54: 3 | F54: =RatesSummary!F16 -> 0.018 | G54: =internalIdle!J46 -> 0 | H54: =Table1[[#This Row],[EmissionRate]]*Table1[[#This Row],[Activity]] -> 0
B55: PM2.5 | C55: 110 | D55: 6 | E55: 3 | F55: =RatesSummary!F17 -> 0.018 | G55: =internalIdle!J47 -> 0 | H55: =Table1[[#This Row],[EmissionRate]]*Table1[[#This Row],[Activity]] -> 0
B56: PM2.5 | C56: 110 | D56: 1 | E56: 4 | F56: =RatesSummary!G12 -> 0.06 | G56: =internalIdle!J48 -> 0 | H56: =Table1[[#This Row],[EmissionRate]]*Table1[[#This Row],[Activity]] -> 0
B57: PM2.5 | C57: 110 | D57: 2 | E57: 4 | F57: =RatesSummary!G13 -> 0.06 | G57: =internalIdle!J49 -> 0 | H57: =Table1[[#This Row],[EmissionRate]]*Table1[[#This Row],[Activity]] -> 0
B58: PM2.5 | C58: 110 | D58: 3 | E58: 4 | F58: =RatesSummary!G14 -> 0.06 | G58: =internalIdle!J50 -> 0 | H58: =Table1[[#This Row],[EmissionRate]]*Table1[[#This Row],[Activity]] -> 0
B59: PM2.5 | C59: 110 | D59: 4 | E59: 4 | F59: =RatesSummary!G15 -> 0.06 | G59: =internalIdle!J51 -> 0 | H59: =Table1[[#This Row],[EmissionRate]]*Table1[[#This Row],[Activity]] -> 0
B60: PM2.5 | C60: 110 | D60: 5 | E60: 4 | F60: =RatesSummary!G16 -> 0.06 | G60: =internalIdle!J52 -> 0 | H60: =Table1[[#This Row],[EmissionRate]]*Table1[[#This Row],[Activity]] -> 0
B61: PM2.5 | C61: 110 | D61: 6 | E61: 4 | F61: =RatesSummary!G17 -> 0.06 | G61: =internalIdle!J53 -> 0 | H61: =Table1[[#This Row],[EmissionRate]]*Table1[[#This Row],[Activity]] -> 0
B62: PM2.5 | C62: 110 | D62: 1 | E62: 5 | F62: =RatesSummary!H12 -> 0 | G62: =internalIdle!J54 -> 0 | H62: =Table1[[#This Row],[EmissionRate]]*Table1[[#This Row],[Activity]] -> 0
B63: PM2.5 | C63: 110 | D63: 2 | E63: 5 | F63: =RatesSummary!H13 -> 0 | G63: =internalIdle!J55 -> 0 | H63: =Table1[[#This Row],[EmissionRate]]*Table1[[#This Row],[Activity]] -> 0
B64: PM2.5 | C64: 110 | D64: 3 | E64: 5 | F64: =RatesSummary!H14 -> 0 | G64: =internalIdle!J56 -> 0 | H64: =Table1[[#This Row],[EmissionRate]]*Table1[[#This Row],[Activity]] -> 0
B65: PM2.5 | C65: 110 | D65: 4 | E65: 5 | F65: =RatesSummary!H15 -> 0 | G65: =internalIdle!J57 -> 0 | H65: =Table1[[#This Row],[EmissionRate]]*Table1[[#This Row],[Activity]] -> 0
B66: PM2.5 | C66: 110 | D66: 5 | E66: 5 | F66: =RatesSummary!H16 -> 0 | G66: =internalIdle!J58 -> 0 | H66: =Table1[[#This Row],[EmissionRate]]*Table1[[#This Row],[Activity]] -> 0
B67: PM2.5 | C67: 110 | D67: 6 | E67: 5 | F67: =RatesSummary!H17 -> 0 | G67: =internalIdle!J59 -> 0 | H67: =Table1[[#This Row],[EmissionRate]]*Table1[[#This Row],[Activity]] -> 0
B68: PM2.5 | C68: 110 | D68: 1 | E68: 6 | F68: =RatesSummary!I12 -> 0 | G68: =internalIdle!J60 -> 1834.177876 | H68: =Table1[[#This Row],[EmissionRate]]*Table1[[#This Row],[Activity]] -> 0
B69: PM2.5 | C69: 110 | D69: 2 | E69: 6 | F69: =RatesSummary!I13 -> 0 | G69: =internalIdle!J61 -> 1242.501026 | H69: =Table1[[#This Row],[EmissionRate]]*Table1[[#This Row],[Activity]] -> 0
B70: PM2.5 | C70: 110 | D70: 3 | E70: 6 | F70: =RatesSummary!I14 -> 0 | G70: =internalIdle!J62 -> 1835.054519 | H70: =Table1[[#This Row],[EmissionRate]]*Table1[[#This Row],[Activity]] -> 0
B71: PM2.5 | C71: 110 | D71: 4 | E71: 6 | F71: =RatesSummary!I15 -> 0 | G71: =internalIdle!J63 -> 14066.17991 | H71: =Table1[[#This Row],[EmissionRate]]*Table1[[#This Row],[Activity]] -> 0
B72: PM2.5 | C72: 110 | D72: 5 | E72: 6 | F72: =RatesSummary!I16 -> 0 | G72: =internalIdle!J64 -> 3601.286667 | H72: =Table1[[#This Row],[EmissionRate]]*Table1[[#This Row],[Activity]] -> 0
B73: PM2.5 | C73: 110 | D73: 6 | E73: 6 | F73: =RatesSummary!I17 -> 0 | G73: =internalIdle!J65 -> 0 | H73: =Table1[[#This Row],[EmissionRate]]*Table1[[#This Row],[Activity]] -> 0
B74: PM10 | C74: 100 | D74: 1 | E74: 1 | F74: =RatesSummary!D21 -> 7.358401638 | G74: =internalIdle!J30 -> 0 | H74: =Table1[[#This Row],[EmissionRate]]*Table1[[#This Row],[Activity]] -> 0
B75: PM10 | C75: 100 | D75: 2 | E75: 1 | F75: =RatesSummary!D22 -> 0.1305675204 | G75: =internalIdle!J31 -> 0 | H75: =Table1[[#This Row],[EmissionRate]]*Table1[[#This Row],[Activity]] -> 0
B76: PM10 | C76: 100 | D76: 3 | E76: 1 | F76: =RatesSummary!D23 -> 0.3518720446 | G76: =internalIdle!J32 -> 0 | H76: =Table1[[#This Row],[EmissionRate]]*Table1[[#This Row],[Activity]] -> 0
B77: PM10 | C77: 100 | D77: 4 | E77: 1 | F77: =RatesSummary!D24 -> 0.6030193879 | G77: =internalIdle!J33 -> 0 | H77: =Table1[[#This Row],[EmissionRate]]*Table1[[#This Row],[Activity]] -> 0
B78: PM10 | C78: 100 | D78: 5 | E78: 1 | F78: =RatesSummary!D25 -> 0.451161118 | G78: =internalIdle!J34 -> 0 | H78: =Table1[[#This Row],[EmissionRate]]*Table1[[#This Row],[Activity]] -> 0
B79: PM10 | C79: 100 | D79: 6 | E79: 1 | F79: =RatesSummary!D26 -> 0.4413536651 | G79: =internalIdle!J35 -> 0 | H79: =Table1[[#This Row],[EmissionRate]]*Table1[[#This Row],[Activity]] -> 0
B80: PM10 | C80: 100 | D80: 1 | E80: 2 | F80: =RatesSummary!E21 -> 0.9800960418 | G80: =internalIdle!J36 -> 0 | H80: =Table1[[#This Row],[EmissionRate]]*Table1[[#This Row],[Activity]] -> 0
B81: PM10 | C81: 100 | D81: 2 | E81: 2 | F81: =RatesSummary!E22 -> 0.9800957174 | G81: =internalIdle!J37 -> 0 | H81: =Table1[[#This Row],[EmissionRate]]*Table1[[#This Row],[Activity]] -> 0
B82: PM10 | C82: 100 | D82: 3 | E82: 2 | F82: =RatesSummary!E23 -> 0.9800970708 | G82: =internalIdle!J38 -> 0 | H82: =Table1[[#This Row],[EmissionRate]]*Table1[[#This Row],[Activity]] -> 0
B83: PM10 | C83: 100 | D83: 4 | E83: 2 | F83: =RatesSummary!E24 -> 0.9800963547 | G83: =internalIdle!J39 -> 0 | H83: =Table1[[#This Row],[EmissionRate]]*Table1[[#This Row],[Activity]] -> 0
B84: PM10 | C84: 100 | D84: 5 | E84: 2 | F84: =RatesSummary!E25 -> 0.3675350555 | G84: =internalIdle!J40 -> 0 | H84: =Table1[[#This Row],[EmissionRate]]*Table1[[#This Row],[Activity]] -> 0
B85: PM10 | C85: 100 | D85: 6 | E85: 2 | F85: =RatesSummary!E26 -> 0.0212783162 | G85: =internalIdle!J41 -> 0 | H85: =Table1[[#This Row],[EmissionRate]]*Table1[[#This Row],[Activity]] -> 0
B86: PM10 | C86: 100 | D86: 1 | E86: 3 | F86: =RatesSummary!F21 -> 0.489 | G86: =internalIdle!J42 -> 0 | H86: =Table1[[#This Row],[EmissionRate]]*Table1[[#This Row],[Activity]] -> 0
B87: PM10 | C87: 100 | D87: 2 | E87: 3 | F87: =RatesSummary!F22 -> 0.019 | G87: =internalIdle!J43 -> 0 | H87: =Table1[[#This Row],[EmissionRate]]*Table1[[#This Row],[Activity]] -> 0
B88: PM10 | C88: 100 | D88: 3 | E88: 3 | F88: =RatesSummary!F23 -> 0.017 | G88: =internalIdle!J44 -> 0 | H88: =Table1[[#This Row],[EmissionRate]]*Table1[[#This Row],[Activity]] -> 0
B89: PM10 | C89: 100 | D89: 4 | E89: 3 | F89: =RatesSummary!F24 -> 0.024 | G89: =internalIdle!J45 -> 0 | H89: =Table1[[#This Row],[EmissionRate]]*Table1[[#This Row],[Activity]] -> 0
B90: PM10 | C90: 100 | D90: 5 | E90: 3 | F90: =RatesSummary!F25 -> 0.019 | G90: =internalIdle!J46 -> 0 | H90: =Table1[[#This Row],[EmissionRate]]*Table1[[#This Row],[Activity]] -> 0
B91: PM10 | C91: 100 | D91: 6 | E91: 3 | F91: =RatesSummary!F26 -> 0.02 | G91: =internalIdle!J47 -> 0 | H91: =Table1[[#This Row],[EmissionRate]]*Table1[[#This Row],[Activity]] -> 0
B92: PM10 | C92: 100 | D92: 1 | E92: 4 | F92: =RatesSummary!G21 -> 0.06 | G92: =internalIdle!J48 -> 0 | H92: =Table1[[#This Row],[EmissionRate]]*Table1[[#This Row],[Activity]] -> 0
B93: PM10 | C93: 100 | D93: 2 | E93: 4 | F93: =RatesSummary!G22 -> 0.06 | G93: =internalIdle!J49 -> 0 | H93: =Table1[[#This Row],[EmissionRate]]*Table1[[#This Row],[Activity]] -> 0
B94: PM10 | C94: 100 | D94: 3 | E94: 4 | F94: =RatesSummary!G23 -> 0.06 | G94: =internalIdle!J50 -> 0 | H94: =Table1[[#This Row],[EmissionRate]]*Table1[[#This Row],[Activity]] -> 0
B95: PM10 | C95: 100 | D95: 4 | E95: 4 | F95: =RatesSummary!G24 -> 0.06 | G95: =internalIdle!J51 -> 0 | H95: =Table1[[#This Row],[EmissionRate]]*Table1[[#This Row],[Activity]] -> 0
B96: PM10 | C96: 100 | D96: 5 | E96: 4 | F96: =RatesSummary!G25 -> 0.06 | G96: =internalIdle!J52 -> 0 | H96: =Table1[[#This Row],[EmissionRate]]*Table1[[#This Row],[Activity]] -> 0
B97: PM10 | C97: 100 | D97: 6 | E97: 4 | F97: =RatesSummary!G26 -> 0.06 | G97: =internalIdle!J53 -> 0 | H97: =Table1[[#This Row],[EmissionRate]]*Table1[[#This Row],[Activity]] -> 0
B98: PM10 | C98: 100 | D98: 1 | E98: 5 | F98: =RatesSummary!H21 -> 0 | G98: =internalIdle!J54 -> 0 | H98: =Table1[[#This Row],[EmissionRate]]*Table1[[#This Row],[Activity]] -> 0
B99: PM10 | C99: 100 | D99: 2 | E99: 5 | F99: =RatesSummary!H22 -> 0 | G99: =internalIdle!J55 -> 0 | H99: =Table1[[#This Row],[EmissionRate]]*Table1[[#This Row],[Activity]] -> 0
B100: PM10 | C100: 100 | D100: 3 | E100: 5 | F100: =RatesSummary!H23 -> 0 | G100: =internalIdle!J56 -> 0 | H100: =Table1[[#This Row],[EmissionRate]]*Table1[[#This Row],[Activity]] -> 0
B101: PM10 | C101: 100 | D101: 4 | E101: 5 | F101: =RatesSummary!H24 -> 0 | G101: =internalIdle!J57 -> 0 | H101: =Table1[[#This Row],[EmissionRate]]*Table1[[#This Row],[Activity]] -> 0
B102: PM10 | C102: 100 | D102: 5 | E102: 5 | F102: =RatesSummary!H25 -> 0 | G102: =internalIdle!J58 -> 0 | H102: =Table1[[#This Row],[EmissionRate]]*Table1[[#This Row],[Activity]] -> 0
B103: PM10 | C103: 100 | D103: 6 | E103: 5 | F103: =RatesSummary!H26 -> 0 | G103: =internalIdle!J59 -> 0 | H103: =Table1[[#This Row],[EmissionRate]]*Table1[[#This Row],[Activity]] -> 0
B104: PM10 | C104: 100 | D104: 1 | E104: 6 | F104: =RatesSummary!I22 -> 0 | G104: =internalIdle!J60 -> 1834.177876 | H104: =Table1[[#This Row],[EmissionRate]]*Table1[[#This Row],[Activity]] -> 0
B105: PM10 | C105: 100 | D105: 2 | E105: 6 | F105: =RatesSummary!I23 -> 0 | G105: =internalIdle!J61 -> 1242.501026 | H105: =Table1[[#This Row],[EmissionRate]]*Table1[[#This Row],[Activity]] -> 0
B106: PM10 | C106: 100 | D106: 3 | E106: 6 | F106: =RatesSummary!I24 -> 0 | G106: =internalIdle!J62 -> 1835.054519 | H106: =Table1[[#This Row],[EmissionRate]]*Table1[[#This Row],[Activity]] -> 0
B107: PM10 | C107: 100 | D107: 4 | E107: 6 | F107: =RatesSummary!I25 -> 0 | G107: =internalIdle!J63 -> 14066.17991 | H107: =Table1[[#This Row],[EmissionRate]]*Table1[[#This Row],[Activity]] -> 0
B108: PM10 | C108: 100 | D108: 5 | E108: 6 | F108: =RatesSummary!I26 -> 0 | G108: =internalIdle!J64 -> 3601.286667 | H108: =Table1[[#This Row],[EmissionRate]]*Table1[[#This Row],[Activity]] -> 0
B109: PM10 | C109: 100 | D109: 6 | E109: 6 | F109: =RatesSummary!I35 -> 0 | G109: =internalIdle!J65 -> 0 | H109: =Table1[[#This Row],[EmissionRate]]*Table1[[#This Row],[Activity]] -> 0
B110: NOx | C110: 3 | D110: 1 | E110: 1 | F110: =RatesSummary!D30 -> 145.1960406 | G110: =internalIdle!J30 -> 0 | H110: =Table1[[#This Row],[EmissionRate]]*Table1[[#This Row],[Activity]] -> 0
B111: NOx | C111: 3 | D111: 2 | E111: 1 | F111: =RatesSummary!D31 -> 107.6675537 | G111: =internalIdle!J31 -> 0 | H111: =Table1[[#This Row],[EmissionRate]]*Table1[[#This Row],[Activity]] -> 0
B112: NOx | C112: 3 | D112: 3 | E112: 1 | F112: =RatesSummary!D32 -> 48.7848905 | G112: =internalIdle!J32 -> 0 | H112: =Table1[[#This Row],[EmissionRate]]*Table1[[#This Row],[Activity]] -> 0
B113: NOx | C113: 3 | D113: 4 | E113: 1 | F113: =RatesSummary!D33 -> 50.19596784 | G113: =internalIdle!J33 -> 0 | H113: =Table1[[#This Row],[EmissionRate]]*Table1[[#This Row],[Activity]] -> 0
B114: NOx | C114: 3 | D114: 5 | E114: 1 | F114: =RatesSummary!D34 -> 49.0224768 | G114: =internalIdle!J34 -> 0 | H114: =Table1[[#This Row],[EmissionRate]]*Table1[[#This Row],[Activity]] -> 0
B115: NOx | C115: 3 | D115: 6 | E115: 1 | F115: =RatesSummary!D35 -> 48.95185209 | G115: =internalIdle!J35 -> 0 | H115: =Table1[[#This Row],[EmissionRate]]*Table1[[#This Row],[Activity]] -> 0
B116: NOx | C116: 3 | D116: 1 | E116: 2 | F116: =RatesSummary!E30 -> 16.63502925 | G116: =internalIdle!J36 -> 0 | H116: =Table1[[#This Row],[EmissionRate]]*Table1[[#This Row],[Activity]] -> 0
B117: NOx | C117: 3 | D117: 2 | E117: 2 | F117: =RatesSummary!E31 -> 16.63504448 | G117: =internalIdle!J37 -> 0 | H117: =Table1[[#This Row],[EmissionRate]]*Table1[[#This Row],[Activity]] -> 0
B118: NOx | C118: 3 | D118: 3 | E118: 2 | F118: =RatesSummary!E32 -> 16.63505536 | G118: =internalIdle!J38 -> 0 | H118: =Table1[[#This Row],[EmissionRate]]*Table1[[#This Row],[Activity]] -> 0
B119: NOx | C119: 3 | D119: 4 | E119: 2 | F119: =RatesSummary!E33 -> 16.63503114 | G119: =internalIdle!J39 -> 0 | H119: =Table1[[#This Row],[EmissionRate]]*Table1[[#This Row],[Activity]] -> 0
B120: NOx | C120: 3 | D120: 5 | E120: 2 | F120: =RatesSummary!E34 -> 20.78953796 | G120: =internalIdle!J40 -> 0 | H120: =Table1[[#This Row],[EmissionRate]]*Table1[[#This Row],[Activity]] -> 0
B121: NOx | C121: 3 | D121: 6 | E121: 2 | F121: =RatesSummary!E35 -> 16.63504212 | G121: =internalIdle!J41 -> 0 | H121: =Table1[[#This Row],[EmissionRate]]*Table1[[#This Row],[Activity]] -> 0
B122: NOx | C122: 3 | D122: 1 | E122: 3 | F122: =RatesSummary!F30 -> 9.545 | G122: =internalIdle!J42 -> 0 | H122: =Table1[[#This Row],[EmissionRate]]*Table1[[#This Row],[Activity]] -> 0
B123: NOx | C123: 3 | D123: 2 | E123: 3 | F123: =RatesSummary!F31 -> 4.313 | G123: =internalIdle!J43 -> 0 | H123: =Table1[[#This Row],[EmissionRate]]*Table1[[#This Row],[Activity]] -> 0
B124: NOx | C124: 3 | D124: 3 | E124: 3 | F124: =RatesSummary!F32 -> 2.66 | G124: =internalIdle!J44 -> 0 | H124: =Table1[[#This Row],[EmissionRate]]*Table1[[#This Row],[Activity]] -> 0
B125: NOx | C125: 3 | D125: 4 | E125: 3 | F125: =RatesSummary!F33 -> 2.17 | G125: =internalIdle!J45 -> 0 | H125: =Table1[[#This Row],[EmissionRate]]*Table1[[#This Row],[Activity]] -> 0
B126: NOx | C126: 3 | D126: 5 | E126: 3 | F126: =RatesSummary!F34 -> 2.051 | G126: =internalIdle!J46 -> 0 | H126: =Table1[[#This Row],[EmissionRate]]*Table1[[#This Row],[Activity]] -> 0
B127: NOx | C127: 3 | D127: 6 | E127: 3 | F127: =RatesSummary!F35 -> 2.118 | G127: =internalIdle!J47 -> 0 | H127: =Table1[[#This Row],[EmissionRate]]*Table1[[#This Row],[Activity]] -> 0
B128: NOx | C128: 3 | D128: 1 | E128: 4 | F128: =RatesSummary!G30 -> 0.2 | G128: =internalIdle!J48 -> 0 | H128: =Table1[[#This Row],[EmissionRate]]*Table1[[#This Row],[Activity]] -> 0
B129: NOx | C129: 3 | D129: 2 | E129: 4 | F129: =RatesSummary!G31 -> 0.2 | G129: =internalIdle!J49 -> 0 | H129: =Table1[[#This Row],[EmissionRate]]*Table1[[#This Row],[Activity]] -> 0
B130: NOx | C130: 3 | D130: 3 | E130: 4 | F130: =RatesSummary!G32 -> 0.2 | G130: =internalIdle!J50 -> 0 | H130: =Table1[[#This Row],[EmissionRate]]*Table1[[#This Row],[Activity]] -> 0
B131: NOx | C131: 3 | D131: 4 | E131: 4 | F131: =RatesSummary!G33 -> 0.2 | G131: =internalIdle!J51 -> 0 | H131: =Table1[[#This Row],[EmissionRate]]*Table1[[#This Row],[Activity]] -> 0
B132: NOx | C132: 3 | D132: 5 | E132: 4 | F132: =RatesSummary!G34 -> 0.2 | G132: =internalIdle!J52 -> 0 | H132: =Table1[[#This Row],[EmissionRate]]*Table1[[#This Row],[Activity]] -> 0
B133: NOx | C133: 3 | D133: 6 | E133: 4 | F133: =RatesSummary!G35 -> 0.2 | G133: =internalIdle!J53 -> 0 | H133: =Table1[[#This Row],[EmissionRate]]*Table1[[#This Row],[Activity]] -> 0
B134: NOx | C134: 3 | D134: 1 | E134: 5 | F134: =RatesSummary!H30 -> 0 | G134: =internalIdle!J54 -> 0 | H134: =Table1[[#This Row],[EmissionRate]]*Table1[[#This Row],[Activity]] -> 0
B135: NOx | C135: 3 | D135: 2 | E135: 5 | F135: =RatesSummary!H31 -> 0 | G135: =internalIdle!J55 -> 0 | H135: =Table1[[#This Row],[EmissionRate]]*Table1[[#This Row],[Activity]] -> 0
B136: NOx | C136: 3 | D136: 3 | E136: 5 | F136: =RatesSummary!H32 -> 0 | G136: =internalIdle!J56 -> 0 | H136: =Table1[[#This Row],[EmissionRate]]*Table1[[#This Row],[Activity]] -> 0
B137: NOx | C137: 3 | D137: 4 | E137: 5 | F137: =RatesSummary!H33 -> 0 | G137: =internalIdle!J57 -> 0 | H137: =Table1[[#This Row],[EmissionRate]]*Table1[[#This Row],[Activity]] -> 0
B138: NOx | C138: 3 | D138: 5 | E138: 5 | F138: =RatesSummary!H34 -> 0 | G138: =internalIdle!J58 -> 0 | H138: =Table1[[#This Row],[EmissionRate]]*Table1[[#This Row],[Activity]] -> 0
B139: NOx | C139: 3 | D139: 6 | E139: 5 | F139: =RatesSummary!H35 -> 0 | G139: =internalIdle!J59 -> 0 | H139: =Table1[[#This Row],[EmissionRate]]*Table1[[#This Row],[Activity]] -> 0
B140: NOx | C140: 3 | D140: 1 | E140: 6 | F140: =RatesSummary!I30 -> 0 | G140: =internalIdle!J60 -> 1834.177876 | H140: =Table1[[#This Row],[EmissionRate]]*Table1[[#This Row],[Activity]] -> 0
B141: NOx | C141: 3 | D141: 2 | E141: 6 | F141: =RatesSummary!I31 -> 0 | G141: =internalIdle!J61 -> 1242.501026 | H141: =Table1[[#This Row],[EmissionRate]]*Table1[[#This Row],[Activity]] -> 0
B142: NOx | C142: 3 | D142: 3 | E142: 6 | F142: =RatesSummary!I32 -> 0 | G142: =internalIdle!J62 -> 1835.054519 | H142: =Table1[[#This Row],[EmissionRate]]*Table1[[#This Row],[Activity]] -> 0
B143: NOx | C143: 3 | D143: 4 | E143: 6 | F143: =RatesSummary!I33 -> 0 | G143: =internalIdle!J63 -> 14066.17991 | H143: =Table1[[#This Row],[EmissionRate]]*Table1[[#This Row],[Activity]] -> 0
B144: NOx | C144: 3 | D144: 5 | E144: 6 | F144: =RatesSummary!I34 -> 0 | G144: =internalIdle!J64 -> 3601.286667 | H144: =Table1[[#This Row],[EmissionRate]]*Table1[[#This Row],[Activity]] -> 0
B145: NOx | C145: 3 | D145: 6 | E145: 6 | F145: =RatesSummary!I35 -> 0 | G145: =internalIdle!J65 -> 0 | H145: =Table1[[#This Row],[EmissionRate]]*Table1[[#This Row],[Activity]] -> 0
B146: VOCs | C146: 87 | D146: 1 | E146: 1 | F146: =RatesSummary!D39 -> 29.83893796 | G146: =internalIdle!J30 -> 0 | H146: =Table1[[#This Row],[EmissionRate]]*Table1[[#This Row],[Activity]] -> 0
B147: VOCs | C147: 87 | D147: 2 | E147: 1 | F147: =RatesSummary!D40 -> 5.774865572 | G147: =internalIdle!J31 -> 0 | H147: =Table1[[#This Row],[EmissionRate]]*Table1[[#This Row],[Activity]] -> 0
B148: VOCs | C148: 87 | D148: 3 | E148: 1 | F148: =RatesSummary!D41 -> 2.87271995 | G148: =internalIdle!J32 -> 0 | H148: =Table1[[#This Row],[EmissionRate]]*Table1[[#This Row],[Activity]] -> 0
B149: VOCs | C149: 87 | D149: 4 | E149: 1 | F149: =RatesSummary!D42 -> 2.8447304 | G149: =internalIdle!J33 -> 0 | H149: =Table1[[#This Row],[EmissionRate]]*Table1[[#This Row],[Activity]] -> 0
B150: VOCs | C150: 87 | D150: 5 | E150: 1 | F150: =RatesSummary!D43 -> 2.416764744 | G150: =internalIdle!J34 -> 0 | H150: =Table1[[#This Row],[EmissionRate]]*Table1[[#This Row],[Activity]] -> 0
B151: VOCs | C151: 87 | D151: 6 | E151: 1 | F151: =RatesSummary!D44 -> 2.391011607 | G151: =internalIdle!J35 -> 0 | H151: =Table1[[#This Row],[EmissionRate]]*Table1[[#This Row],[Activity]] -> 0
B152: VOCs | C152: 87 | D152: 1 | E152: 2 | F152: =RatesSummary!E39 -> 1.520559846 | G152: =internalIdle!J36 -> 0 | H152: =Table1[[#This Row],[EmissionRate]]*Table1[[#This Row],[Activity]] -> 0
B153: VOCs | C153: 87 | D153: 2 | E153: 2 | F153: =RatesSummary!E40 -> 1.520558003 | G153: =internalIdle!J37 -> 0 | H153: =Table1[[#This Row],[EmissionRate]]*Table1[[#This Row],[Activity]] -> 0
B154: VOCs | C154: 87 | D154: 3 | E154: 2 | F154: =RatesSummary!E41 -> 1.520561781 | G154: =internalIdle!J38 -> 0 | H154: =Table1[[#This Row],[EmissionRate]]*Table1[[#This Row],[Activity]] -> 0
B155: VOCs | C155: 87 | D155: 4 | E155: 2 | F155: =RatesSummary!E42 -> 1.520560846 | G155: =internalIdle!J39 -> 0 | H155: =Table1[[#This Row],[EmissionRate]]*Table1[[#This Row],[Activity]] -> 0
B156: VOCs | C156: 87 | D156: 5 | E156: 2 | F156: =RatesSummary!E43 -> 1.520557089 | G156: =internalIdle!J40 -> 0 | H156: =Table1[[#This Row],[EmissionRate]]*Table1[[#This Row],[Activity]] -> 0
B157: VOCs | C157: 87 | D157: 6 | E157: 2 | F157: =RatesSummary!E44 -> 0.6990341561 | G157: =internalIdle!J41 -> 0 | H157: =Table1[[#This Row],[EmissionRate]]*Table1[[#This Row],[Activity]] -> 0
B158: VOCs | C158: 87 | D158: 1 | E158: 3 | F158: =RatesSummary!F39 -> 0.511 | G158: =internalIdle!J42 -> 0 | H158: =Table1[[#This Row],[EmissionRate]]*Table1[[#This Row],[Activity]] -> 0
B159: VOCs | C159: 87 | D159: 2 | E159: 3 | F159: =RatesSummary!F40 -> 0.072 | G159: =internalIdle!J43 -> 0 | H159: =Table1[[#This Row],[EmissionRate]]*Table1[[#This Row],[Activity]] -> 0
B160: VOCs | C160: 87 | D160: 3 | E160: 3 | F160: =RatesSummary!F41 -> 0.076 | G160: =internalIdle!J44 -> 0 | H160: =Table1[[#This Row],[EmissionRate]]*Table1[[#This Row],[Activity]] -> 0
B161: VOCs | C161: 87 | D161: 4 | E161: 3 | F161: =RatesSummary!F42 -> 0.058 | G161: =internalIdle!J45 -> 0 | H161: =Table1[[#This Row],[EmissionRate]]*Table1[[#This Row],[Activity]] -> 0
B162: VOCs | C162: 87 | D162: 5 | E162: 3 | F162: =RatesSummary!F43 -> 0.05 | G162: =internalIdle!J46 -> 0 | H162: =Table1[[#This Row],[EmissionRate]]*Table1[[#This Row],[Activity]] -> 0
B163: VOCs | C163: 87 | D163: 6 | E163: 3 | F163: =RatesSummary!F44 -> 0.05 | G163: =internalIdle!J47 -> 0 | H163: =Table1[[#This Row],[EmissionRate]]*Table1[[#This Row],[Activity]] -> 0
B164: VOCs | C164: 87 | D164: 1 | E164: 4 | F164: =RatesSummary!G39 -> 0.174 | G164: =internalIdle!J48 -> 0 | H164: =Table1[[#This Row],[EmissionRate]]*Table1[[#This Row],[Activity]] -> 0
B165: VOCs | C165: 87 | D165: 2 | E165: 4 | F165: =RatesSummary!G40 -> 0.174 | G165: =internalIdle!J49 -> 0 | H165: =Table1[[#This Row],[EmissionRate]]*Table1[[#This Row],[Activity]] -> 0
B166: VOCs | C166: 87 | D166: 3 | E166: 4 | F166: =RatesSummary!G41 -> 0.174 | G166: =internalIdle!J50 -> 0 | H166: =Table1[[#This Row],[EmissionRate]]*Table1[[#This Row],[Activity]] -> 0
B167: VOCs | C167: 87 | D167: 4 | E167: 4 | F167: =RatesSummary!G42 -> 0.174 | G167: =internalIdle!J51 -> 0 | H167: =Table1[[#This Row],[EmissionRate]]*Table1[[#This Row],[Activity]] -> 0
B168: VOCs | C168: 87 | D168: 5 | E168: 4 | F168: =RatesSummary!G43 -> 0.174 | G168: =internalIdle!J52 -> 0 | H168: =Table1[[#This Row],[EmissionRate]]*Table1[[#This Row],[Activity]] -> 0
B169: VOCs | C169: 87 | D169: 6 | E169: 4 | F169: =RatesSummary!G44 -> 0.174 | G169: =internalIdle!J53 -> 0 | H169: =Table1[[#This Row],[EmissionRate]]*Table1[[#This Row],[Activity]] -> 0
B170: VOCs | C170: 87 | D170: 1 | E170: 5 | F170: =RatesSummary!H39 -> 0 | G170: =internalIdle!J54 -> 0 | H170: =Table1[[#This Row],[EmissionRate]]*Table1[[#This Row],[Activity]] -> 0
B171: VOCs | C171: 87 | D171: 2 | E171: 5 | F171: =RatesSummary!H40 -> 0 | G171: =internalIdle!J55 -> 0 | H171: =Table1[[#This Row],[EmissionRate]]*Table1[[#This Row],[Activity]] -> 0
B172: VOCs | C172: 87 | D172: 3 | E172: 5 | F172: =RatesSummary!H41 -> 0 | G172: =internalIdle!J56 -> 0 | H172: =Table1[[#This Row],[EmissionRate]]*Table1[[#This Row],[Activity]] -> 0
B173: VOCs | C173: 87 | D173: 4 | E173: 5 | F173: =RatesSummary!H42 -> 0 | G173: =internalIdle!J57 -> 0 | H173: =Table1[[#This Row],[EmissionRate]]*Table1[[#This Row],[Activity]] -> 0
B174: VOCs | C174: 87 | D174: 5 | E174: 5 | F174: =RatesSummary!H43 -> 0 | G174: =internalIdle!J58 -> 0 | H174: =Table1[[#This Row],[EmissionRate]]*Table1[[#This Row],[Activity]] -> 0
B175: VOCs | C175: 87 | D175: 6 | E175: 5 | F175: =RatesSummary!H44 -> 0 | G175: =internalIdle!J59 -> 0 | H175: =Table1[[#This Row],[EmissionRate]]*Table1[[#This Row],[Activity]] -> 0
B176: VOCs | C176: 87 | D176: 1 | E176: 6 | F176: =RatesSummary!I39 -> 0 | G176: =internalIdle!J60 -> 1834.177876 | H176: =Table1[[#This Row],[EmissionRate]]*Table1[[#This Row],[Activity]] -> 0
B177: VOCs | C177: 87 | D177: 2 | E177: 6 | F177: =RatesSummary!I40 -> 0 | G177: =internalIdle!J61 -> 1242.501026 | H177: =Table1[[#This Row],[EmissionRate]]*Table1[[#This Row],[Activity]] -> 0
B178: VOCs | C178: 87 | D178: 3 | E178: 6 | F178: =RatesSummary!I41 -> 0 | G178: =internalIdle!J62 -> 1835.054519 | H178: =Table1[[#This Row],[EmissionRate]]*Table1[[#This Row],[Activity]] -> 0
B179: VOCs | C179: 87 | D179: 4 | E179: 6 | F179: =RatesSummary!I42 -> 0 | G179: =internalIdle!J63 -> 14066.17991 | H179: =Table1[[#This Row],[EmissionRate]]*Table1[[#This Row],[Activity]] -> 0
B180: VOCs | C180: 87 | D180: 5 | E180: 6 | F180: =RatesSummary!I43 -> 0 | G180: =internalIdle!J64 -> 3601.286667 | H180: =Table1[[#This Row],[EmissionRate]]*Table1[[#This Row],[Activity]] -> 0
B181: VOCs | C181: 87 | D181: 6 | E181: 6 | F181: =RatesSummary!I44 -> 0 | G181: =internalIdle!J65 -> 0 | H181: =Table1[[#This Row],[EmissionRate]]*Table1[[#This Row],[Activity]] -> 0
B182: CO2 | C182: 90 | D182: 1 | E182: 1 | F182: =RatesSummary!D47 -> 9070.564371 | G182: =internalIdle!J30 -> 0 | H182: =Table1[[#This Row],[EmissionRate]]*Table1[[#This Row],[Activity]] -> 0
B183: CO2 | C183: 90 | D183: 2 | E183: 1 | F183: =RatesSummary!D48 -> 7157.563601 | G183: =internalIdle!J31 -> 0 | H183: =Table1[[#This Row],[EmissionRate]]*Table1[[#This Row],[Activity]] -> 0
B184: CO2 | C184: 90 | D184: 3 | E184: 1 | F184: =RatesSummary!D49 -> 7204.752072 | G184: =internalIdle!J32 -> 0 | H184: =Table1[[#This Row],[EmissionRate]]*Table1[[#This Row],[Activity]] -> 0
B185: CO2 | C185: 90 | D185: 4 | E185: 1 | F185: =RatesSummary!D50 -> 7230.63733 | G185: =internalIdle!J33 -> 0 | H185: =Table1[[#This Row],[EmissionRate]]*Table1[[#This Row],[Activity]] -> 0
B186: CO2 | C186: 90 | D186: 5 | E186: 1 | F186: =RatesSummary!D51 -> 7209.110813 | G186: =internalIdle!J34 -> 0 | H186: =Table1[[#This Row],[EmissionRate]]*Table1[[#This Row],[Activity]] -> 0
B187: CO2 | C187: 90 | D187: 6 | E187: 1 | F187: =RatesSummary!D52 -> 7207.815548 | G187: =internalIdle!J35 -> 0 | H187: =Table1[[#This Row],[EmissionRate]]*Table1[[#This Row],[Activity]] -> 0
B188: CO2 | C188: 90 | D188: 1 | E188: 2 | F188: =RatesSummary!E47 -> 3492.420812 | G188: =internalIdle!J36 -> 0 | H188: =Table1[[#This Row],[EmissionRate]]*Table1[[#This Row],[Activity]] -> 0
B189: CO2 | C189: 90 | D189: 2 | E189: 2 | F189: =RatesSummary!E48 -> 3492.422935 | G189: =internalIdle!J37 -> 0 | H189: =Table1[[#This Row],[EmissionRate]]*Table1[[#This Row],[Activity]] -> 0
B190: CO2 | C190: 90 | D190: 3 | E190: 2 | F190: =RatesSummary!E49 -> 3492.419758 | G190: =internalIdle!J38 -> 0 | H190: =Table1[[#This Row],[EmissionRate]]*Table1[[#This Row],[Activity]] -> 0
B191: CO2 | C191: 90 | D191: 4 | E191: 2 | F191: =RatesSummary!E50 -> 3492.421708 | G191: =internalIdle!J39 -> 0 | H191: =Table1[[#This Row],[EmissionRate]]*Table1[[#This Row],[Activity]] -> 0
B192: CO2 | C192: 90 | D192: 5 | E192: 2 | F192: =RatesSummary!E51 -> 3492.42346 | G192: =internalIdle!J40 -> 0 | H192: =Table1[[#This Row],[EmissionRate]]*Table1[[#This Row],[Activity]] -> 0
B193: CO2 | C193: 90 | D193: 6 | E193: 2 | F193: =RatesSummary!E52 -> 3492.421472 | G193: =internalIdle!J41 -> 0 | H193: =Table1[[#This Row],[EmissionRate]]*Table1[[#This Row],[Activity]] -> 0
B194: CO2 | C194: 90 | D194: 1 | E194: 3 | F194: =RatesSummary!F47 -> 1160.541976 | G194: =internalIdle!J42 -> 0 | H194: =Table1[[#This Row],[EmissionRate]]*Table1[[#This Row],[Activity]] -> 0
B195: CO2 | C195: 90 | D195: 2 | E195: 3 | F195: =RatesSummary!F48 -> 1160.542377 | G195: =internalIdle!J43 -> 0 | H195: =Table1[[#This Row],[EmissionRate]]*Table1[[#This Row],[Activity]] -> 0
B196: CO2 | C196: 90 | D196: 3 | E196: 3 | F196: =RatesSummary!F49 -> 1160.541833 | G196: =internalIdle!J44 -> 0 | H196: =Table1[[#This Row],[EmissionRate]]*Table1[[#This Row],[Activity]] -> 0
B197: CO2 | C197: 90 | D197: 4 | E197: 3 | F197: =RatesSummary!F50 -> 1160.542105 | G197: =internalIdle!J45 -> 0 | H197: =Table1[[#This Row],[EmissionRate]]*Table1[[#This Row],[Activity]] -> 0
B198: CO2 | C198: 90 | D198: 5 | E198: 3 | F198: =RatesSummary!F51 -> 1160.542034 | G198: =internalIdle!J46 -> 0 | H198: =Table1[[#This Row],[EmissionRate]]*Table1[[#This Row],[Activity]] -> 0
B199: CO2 | C199: 90 | D199: 6 | E199: 3 | F199: =RatesSummary!F52 -> 1160.54214 | G199: =internalIdle!J47 -> 0 | H199: =Table1[[#This Row],[EmissionRate]]*Table1[[#This Row],[Activity]] -> 0
B200: CO2 | C200: 90 | D200: 1 | E200: 4 | F200: NA | G200: =internalIdle!J48 -> 0 | H200: =Table1[[#This Row],[EmissionRate]]*Table1[[#This Row],[Activity]] -> 
... 89 more rows

Sheet RatesSummary (hidden)
B2: CO | C2: Model Year Group | D2: Extended Idle | E2: Diesel APU | F2: Battery APU | G2: Direct-fired Heater | H2: TSE | I2: Engine-off
B3: polid = 2 | C3: 2006 or earlier | D3: 54.38260141 | E3: 9.955999997 | F3: 2.463 | G3: 0.437 | H3: 0 | I3: 0 | K3: Emissions rates in g/hr
C4: 2007-2009 | D4: 44.79818712 | E4: 9.955996974 | F4: 0.51 | G4: 0.437 | H4: 0 | I4: 0
C5: 2010-2012 | D5: 39.88197828 | E5: 9.956003979 | F5: 1.89 | G5: 0.437 | H5: 0 | I5: 0 | K5: Green | L5: MOVES3 runs
C6: 2013-2020 | D6: 40.1034969 | E6: 9.956000322 | F6: 1.325 | G6: 0.437 | H6: 0 | I6: 0 | K6: Yellow | L6: Argonne idle reduction study
C7: 2021-2023 | D7: 39.9192189 | E7: 9.955998631 | F7: 1.265 | G7: 0.437 | H7: 0 | I7: 0 | K7: Orange | L7: Calculated based on fuel consumption
C8: 2024-2050 | D8: 39.90818155 | E8: 9.955999973 | F8: 1.359 | G8: 0.437 | H8: 0 | I8: 0
B11: PM2.5 | C11: Model Year Group | D11: Extended Idle | E11: Diesel APU | F11: Battery APU | G11: Direct-fired Heater | H11: TSE | I11: Engine-off
B12: polid = 110 | C12: 2006 or earlier | D12: 6.769711379 | E12: 0.9016855452 | F12: 0.45 | G12: 0.06 | H12: 0 | I12: 0
C13: 2007-2009 | D13: 0.1201217552 | E13: 0.9016853138 | F13: 0.018 | G13: 0.06 | H13: 0 | I13: 0
C14: 2010-2012 | D14: 0.323721288 | E14: 0.9016862616 | F14: 0.016 | G14: 0.06 | H14: 0 | I14: 0
C15: 2013-2020 | D15: 0.5547760862 | E15: 0.90168577 | F15: 0.022 | G15: 0.06 | H15: 0 | I15: 0
C16: 2021-2023 | D16: 0.4150669164 | E16: 0.3381313759 | F16: 0.018 | G16: 0.06 | H16: 0 | I16: 0 | L16: `
C17: 2024-2050 | D17: 0.4060440769 | E17: 0.01957598777 | F17: 0.018 | G17: 0.06 | H17: 0 | I17: 0
B20: PM10 | C20: Model Year Group | D20: Extended Idle | E20: Diesel APU | F20: Battery APU | G20: Direct-fired Heater | H20: TSE | I20: Engine-off
B21: polid = 100 | C21: 2006 or earlier | D21: 7.358401638 | E21: 0.9800960418 | F21: 0.489 | G21: 0.06 | H21: 0 | I21: 0
C22: 2007-2009 | D22: 0.1305675204 | E22: 0.9800957174 | F22: 0.019 | G22: 0.06 | H22: 0 | I22: 0
C23: 2010-2012 | D23: 0.3518720446 | E23: 0.9800970708 | F23: 0.017 | G23: 0.06 | H23: 0 | I23: 0
C24: 2013-2020 | D24: 0.6030193879 | E24: 0.9800963547 | F24: 0.024 | G24: 0.06 | H24: 0 | I24: 0
C25: 2021-2023 | D25: 0.451161118 | E25: 0.3675350555 | F25: 0.019 | G25: 0.06 | H25: 0 | I25: 0
C26: 2024-2050 | D26: 0.4413536651 | E26: 0.0212783162 | F26: 0.02 | G26: 0.06 | H26: 0 | I26: 0
B29: NOx | C29: Model Year Group | D29: Extended Idle | E29: Diesel APU | F29: Battery APU | G29: Direct-fired Heater | H29: TSE | I29: Engine-off
B30: polid = 3 | C30: 2006 or earlier | D30: 145.1960406 | E30: 16.63502925 | F30: 9.545 | G30: 0.2 | H30: 0 | I30: 0
C31: 2007-2009 | D31: 107.6675537 | E31: 16.63504448 | F31: 4.313 | G31: 0.2 | H31: 0 | I31: 0
C32: 2010-2012 | D32: 48.7848905 | E32: 16.63505536 | F32: 2.66 | G32: 0.2 | H32: 0 | I32: 0
C33: 2013-2020 | D33: 50.19596784 | E33: 16.63503114 | F33: 2.17 | G33: 0.2 | H33: 0 | I33: 0
C34: 2021-2023 | D34: 49.0224768 | E34: 20.78953796 | F34: 2.051 | G34: 0.2 | H34: 0 | I34: 0
C35: 2024-2050 | D35: 48.95185209 | E35: 16.63504212 | F35: 2.118 | G35: 0.2 | H35: 0 | I35: 0
B38: VOC | C38: Model Year Group | D38: Extended Idle | E38: Diesel APU | F38: Battery APU | G38: Direct-fired Heater | H38: TSE | I38: Engine-off
B39: polid = 87 | C39: 2006 or earlier | D39: 29.83893796 | E39: 1.520559846 | F39: 0.511 | G39: 0.174 | H39: 0 | I39: 0
C40: 2007-2009 | D40: 5.774865572 | E40: 1.520558003 | F40: 0.072 | G40: 0.174 | H40: 0 | I40: 0
C41: 2010-2012 | D41: 2.87271995 | E41: 1.520561781 | F41: 0.076 | G41: 0.174 | H41: 0 | I41: 0
C42: 2013-2020 | D42: 2.8447304 | E42: 1.520560846 | F42: 0.058 | G42: 0.174 | H42: 0 | I42: 0
C43: 2021-2023 | D43: 2.416764744 | E43: 1.520557089 | F43: 0.05 | G43: 0.174 | H43: 0 | I43: 0
C44: 2024-2050 | D44: 2.391011607 | E44: 0.6990341561 | F44: 0.05 | G44: 0.174 | H44: 0 | I44: 0
B46: CO2 | C46: Model Year Group | D46: Extended Idle | E46: Diesel APU | F46: Battery APU | G46: Direct-fired Heater | H46: TSE | I46: Engine-off
B47: polid = 90 | C47: 2006 or earlier | D47: 9070.564371 | E47: 3492.420812 | F47: 1160.541976 | G47: NA | H47: 0 | I47: 0
C48: 2007-2009 | D48: 7157.563601 | E48: 3492.422935 | F48: 1160.542377 | G48: NA | H48: 0 | I48: 0
C49: 2010-2012 | D49: 7204.752072 | E49: 3492.419758 | F49: 1160.541833 | G49: NA | H49: 0 | I49: 0
C50: 2013-2020 | D50: 7230.63733 | E50: 3492.421708 | F50: 1160.542105 | G50: NA | H50: 0 | I50: 0
C51: 2021-2023 | D51: 7209.110813 | E51: 3492.42346 | F51: 1160.542034 | G51: NA | H51: 0 | I51: 0
C52: 2024-2050 | D52: 7207.815548 | E52: 3492.421472 | F52: 1160.54214 | G52: NA | H52: 0 | I52: 0
B54: TEC | C54: Model Year Group | D54: Extended Idle | E54: Diesel APU | F54: Battery APU | G54: Direct-fired Heater | H54: TSE | I54: Engine-off
B55: polid = 91 | C55: 2006 or earlier | D55: =116.713332233224/1000 -> 0.1167133322 | E55: =L55/1000 -> 0.04493789534 | F55: 0.014933 | G55: NA | H55: 0 | I55: 0 | L55: 44.93789534
C56: 2007-2009 | D56: =92.0982882935192/1000 -> 0.09209828829 | E56: =L56/1000 -> 0.04493790384 | F56: 0.014933 | G56: NA | H56: 0 | I56: 0 | L56: 44.93790384
C57: 2010-2012 | D57: =92.705438854346/1000 -> 0.09270543885 | E57: 0.04493788081 | F57: 0.014933 | G57: NA | H57: 0 | I57: 0 | L57: 44.93788081
C58: 2013-2020 | D58: =93.0385028997021/1000 -> 0.0930385029 | E58: 0.04493790709 | F58: 0.014933 | G58: NA | H58: 0 | I58: 0 | L58: 44.93790709
C59: 2021-2023 | D59: =92.7615199500614/1000 -> 0.09276151995 | E59: 0.044937918 | F59: 0.014933 | G59: NA | H59: 0 | I59: 0 | L59: 44.937918
C60: 2024-2050 | D60: =92.7436225735007/1000 -> 0.09274362257 | E60: 0.0449379054 | F60: 0.014933 | G60: NA | H60: 0 | I60: 0 | L60: 44.9379054
B62: CO2e | C62: Model Year Group | D62: Extended Idle | E62: Diesel APU | F62: Battery APU | G62: Direct-fired Heater | H62: TSE | I62: Engine-off
B63: polid = 98 | C63: 2006 or earlier | D63: 9070.561955 | E63: 3492.420812 | F63: 1160.901073 | G63: NA | H63: 0 | I63: 0
C64: 2007-2009 | D64: 7282.164994 | E64: 3492.422935 | F64: 1161.9781 | G64: NA | H64: 0 | I64: 0
C65: 2010-2012 | D65: 7230.076634 | E65: 3492.419758 | F65: 1161.487319 | G65: NA | H65: 0 | I65: 0
C66: 2013-2020 | D66: 7245.521302 | E66: 3492.421708 | F66: 1161.189985 | G66: NA | H66: 0 | I66: 0
C67: 2021-2023 | D67: 7224.175176 | E67: 3492.42346 | F67: 1161.256194 | G67: NA | H67: 0 | I67: 0
C68: 2024-2050 | D68: 7222.797064 | E68: 3511.976391 | F68: 1161.332163 | G68: NA | H68: 0 | I68: 0

Sheet NationalDefaultActivity (hidden)
A1: yearID | B1: modelYearID | C1: activityTypeID | D1: activity | G1: YearID | H1: Model Year Group | I1: Operating Hours | J1: No. of Trucks | M1: PROJECT EVALUATION YEAR | O1: ='Diesel Idle Reduction'!G9 -> 2022 | R1: 4 = source hours operating
A2: 2018 | B2: 2018 | C2: 6 | D2: 96121.39844 | G2: 2018 | H2: =M7 -> 2006 or earlier | I2: 0.1859634593 | J2: 0.3950924127 | M2: Annual Activity | O2: ='Diesel Idle Reduction'!G16 -> 28224 | R2: 6 = population
A3: 2018 | B3: 2017 | C3: 6 | D3: 111865 | G3: 2018 | H3: 2007-2009 | I3: 0.1082098521 | J3: 0.1150695613
A4: 2018 | B4: 2016 | C4: 6 | D4: 113140 | G4: 2018 | H4: 2010-2012 | I4: 0.1302548782 | J4: 0.1055047933
A5: 2018 | B5: 2015 | C5: 6 | D5: 146549 | G5: 2018 | H5: 2013-2020 | I5: 0.5755718103 | J5: 0.3843332327 | M5: 2018 Fractions
A6: 2018 | B6: 2014 | C6: 6 | D6: 130237 | G6: 2018 | H6: 2021-2023 | I6: =N11 -> 0 | J6: 0 | M6: Model Year Group | N6: Operating Hours | O6: No. of Trucks | S6: TOTAL Hours Op | T6: TOTAL Pop
A7: 2018 | B7: 2013 | C7: 6 | D7: 95676.29688 | G7: 2018 | H7: 2024-2050 | I7: 0 | J7: 0 | M7: 2006 or earlier | N7: =( SUMIFS(D:D,C:C, "4",A:A, "2018",B:B, "2006")+ SUMIFS(D:D,C:C, "4",A:A, "2018",B:B, "2005")+ SUMIFS(D:D,C:C, "4",A:A, "2018",B:B, "2004")+ SUMIFS(D:D,C:C, "4",A:A, "2018",B:B, "2003")+ SUMIFS(D:D,C:C, "4",A:A, "2018",B:B, "2002")+ SUMIFS(D:D,C:C, "4",A:A, "2018",B:B, "2001")+SUMIFS(D:D,C:C, "4",A:A, "2018",B:B, "2000")+SUMIFS(D:D,C:C, "4",A:A, "2018",B:B, "1999")+SUMIFS(D:D,C:C, "4",A:A, "2018",B:B, "1998")+SUMIFS(D:D,C:C, "4",A:A, "2018",B:B, "1997")+SUMIFS(D:D,C:C, "4",A:A, "2018",B:B, "1996")+SUMIFS(D:D,C:C, "4",A:A, "2018",B:B, "1995")+SUMIFS(D:D,C:C, "4",A:A, "2018",B:B, "1994")+SUMIFS(D:D,C:C, "4",A:A, "2018",B:B, "1993")+SUMIFS(D:D,C:C, "4",A:A, "2018",B:B, "1992")+SUMIFS(D:D,C:C, "4",A:A, "2018",B:B, "1991")+SUMIFS(D:D,C:C, "4",A:A, "2018",B:B, "1990")+SUMIFS(D:D,C:C, "4",A:A, "2018",B:B, "1989")+SUMIFS(D:D,C:C, "4",A:A, "2018",B:B, "1988"))/S7 -> 0.1859634593 | O7: =( SUMIFS(D:D,C:C, "6",A:A, "2018",B:B, "2006")+ SUMIFS(D:D,C:C, "6",A:A, "2018",B:B, "2005")+ SUMIFS(D:D,C:C, "6",A:A, "2018",B:B, "2004")+ SUMIFS(D:D,C:C, "6",A:A, "2018",B:B, "2003")+ SUMIFS(D:D,C:C, "6",A:A, "2018",B:B, "2002")+ SUMIFS(D:D,C:C, "6",A:A, "2018",B:B, "2001")+SUMIFS(D:D,C:C, "6",A:A, "2018",B:B, "2000")+SUMIFS(D:D,C:C, "6",A:A, "2018",B:B, "1999")+SUMIFS(D:D,C:C, "6",A:A, "2018",B:B, "1998")+SUMIFS(D:D,C:C, "6",A:A, "2018",B:B, "1997")+SUMIFS(D:D,C:C, "6",A:A, "2018",B:B, "1996")+SUMIFS(D:D,C:C, "6",A:A, "2018",B:B, "1995")+SUMIFS(D:D,C:C, "6",A:A, "2018",B:B, "1994")+SUMIFS(D:D,C:C, "6",A:A, "2018",B:B, "1993")+SUMIFS(D:D,C:C, "6",A:A, "2018",B:B, "1992")+SUMIFS(D:D,C:C, "6",A:A, "2018",B:B, "1991")+SUMIFS(D:D,C:C, "6",A:A, "2018",B:B, "1990")+SUMIFS(D:D,C:C, "6",A:A, "2018",B:B, "1989")+SUMIFS(D:D,C:C, "6",A:A, "2018",B:B, "1988"))/T7 -> 0.3950924127 | R7: 2018 | S7: =SUMIFS(D:D,C:C, "4",A:A, "2018") -> 3468503954 | T7: =SUMIFS(D:D,C:C, "6",A:A, "2018") -> 1804654.493
A8: 2018 | B8: 2012 | C8: 6 | D8: 96760.60156 | G8: 2019 | H8: =M16 -> 2006 or earlier | I8: 0.15136405 | J8: 0.350552973 | M8: 2007-2009 | N8: =( SUMIFS(D:D,C:C, "4",A:A, "2018",B:B, "2007")+ SUMIFS(D:D,C:C, "4",A:A, "2018",B:B, "2008")+ SUMIFS(D:D,C:C, "4",A:A, "2018",B:B, "2009"))/S7 -> 0.1082098521 | O8: =( SUMIFS(D:D,C:C, "6",A:A, "2018",B:B, "2007")+ SUMIFS(D:D,C:C, "6",A:A, "2018",B:B, "2008")+ SUMIFS(D:D,C:C, "6",A:A, "2018",B:B, "2009"))/T7 -> 0.1150695613 | R8: 2019 | S8: =SUMIFS(D:D,C:C, "4",A:A, "2019") -> 3564226585 | T8: =SUMIFS(D:D,C:C, "6",A:A, "2019") -> 1814584.634
A9: 2018 | B9: 2011 | C9: 6 | D9: 51608.19922 | G9: 2019 | H9: 2007-2009 | I9: 0.09323854477 | J9: 0.1091059059 | M9: 2010-2012 | N9: =( SUMIFS(D:D,C:C, "4",A:A, "2018",B:B, "2010")+ SUMIFS(D:D,C:C, "4",A:A, "2018",B:B, "2011")+ SUMIFS(D:D,C:C, "4",A:A, "2018",B:B, "2012"))/S7 -> 0.1302548782 | O9: =( SUMIFS(D:D,C:C, "6",A:A, "2018",B:B, "2010")+ SUMIFS(D:D,C:C, "6",A:A, "2018",B:B, "2011")+ SUMIFS(D:D,C:C, "6",A:A, "2018",B:B, "2012"))/T7 -> 0.1055047933 | R9: 2020 | S9: =SUMIFS(D:D,C:C, "4",A:A, "2020") -> 3596424904 | T9: =SUMIFS(D:D,C:C, "6",A:A, "2020") -> 1814888.814
A10: 2018 | B10: 2010 | C10: 6 | D10: 42030.89844 | G10: 2019 | H10: 2010-2012 | I10: 0.1168512158 | J10: 0.1018760952 | M10: 2013-2020 | N10: =( SUMIFS(D:D,C:C, "4",A:A, "2018",B:B, "2013")+ SUMIFS(D:D,C:C, "4",A:A, "2018",B:B, "2014")+ SUMIFS(D:D,C:C, "4",A:A, "2018",B:B, "2015")+SUMIFS(D:D,C:C, "4",A:A, "2018",B:B, "2016")+SUMIFS(D:D,C:C, "4",A:A, "2018",B:B, "2017")+SUMIFS(D:D,C:C, "4",A:A, "2018",B:B, "2018"))/S7 -> 0.5755718103 | O10: =( SUMIFS(D:D,C:C, "6",A:A, "2018",B:B, "2013")+ SUMIFS(D:D,C:C, "6",A:A, "2018",B:B, "2014")+ SUMIFS(D:D,C:C, "6",A:A, "2018",B:B, "2015")+SUMIFS(D:D,C:C, "6",A:A, "2018",B:B, "2016")+SUMIFS(D:D,C:C, "6",A:A, "2018",B:B, "2017")+SUMIFS(D:D,C:C, "6",A:A, "2018",B:B, "2018"))/T7 -> 0.3843332327 | R10: 2021 | S10: =SUMIFS(D:D,C:C, "4",A:A, "2021") -> 3607006699 | T10: =SUMIFS(D:D,C:C, "6",A:A, "2021") -> 1811107.419
A11: 2018 | B11: 2009 | C11: 6 | D11: 51556.10156 | G11: 2019 | H11: 2013-2020 | I11: 0.6385461894 | J11: 0.4384650259 | M11: 2021-2023 | N11: 0 | O11: 0 | R11: 2022 | S11: =SUMIFS(D:D,C:C, "4",A:A, "2022") -> 3631969900 | T11: =SUMIFS(D:D,C:C, "6",A:A, "2022") -> 1814526.199
A12: 2018 | B12: 2008 | C12: 6 | D12: 32500.69922 | G12: 2019 | H12: 2021-2023 | I12: 0 | J12: 0 | M12: 2024-2050 | N12: 0 | O12: 0 | R12: 2023 | S12: =SUMIFS(D:D,C:C, "4",A:A, "2023") -> 3656452747 | T12: =SUMIFS(D:D,C:C,"6",A:A,"2023") -> 1813168.506
A13: 2018 | B13: 2007 | C13: 6 | D13: 123604 | G13: 2019 | H13: 2024-2050 | I13: 0 | J13: 0 | N13: =SUM(N7:N12) -> 1 | O13: =SUM(O7:O12) -> 1 | R13: 2024 | S13: =SUMIFS(D:D,C:C, "4",A:A, "2024") -> 3676270039 | T13: =SUMIFS(D:D,C:C,"6",A:A,"2024") -> 1811903.986
A14: 2018 | B14: 2006 | C14: 6 | D14: 90961.29688 | G14: 2020 | H14: =M26 -> 2006 or earlier | I14: 0.1232666156 | J14: =O26 -> 0.3118987813 | M14: 2019 Fractions | R14: 2025 | S14: =SUMIFS(D:D,C:C, "4",A:A, "2025") -> 3698976121 | T14: =SUMIFS(D:D,C:C,"6",A:A,"2025") -> 1815127.41
A15: 2018 | B15: 2005 | C15: 6 | D15: 83196.5 | G15: 2020 | H15: 2007-2009 | I15: 0.07922755448 | J15: 0.1023323847 | M15: Model Year Group | N15: Operating Hours | O15: No. of Trucks | R15: 2026 | S15: =SUMIFS(D:D,C:C, "4",A:A, "2026") -> 3728406140 | T15: =SUMIFS(D:D,C:C,"6",A:A,"2026") -> 1819250.826
A16: 2018 | B16: 2004 | C16: 6 | D16: 46049.60156 | G16: 2020 | H16: 2010-2012 | I16: 0.104315099 | J16: 0.09785392834 | M16: 2006 or earlier | N16: =( SUMIFS(D:D,C:C, "4",A:A, "2019",B:B, "2006")+ SUMIFS(D:D,C:C, "4",A:A, "2019",B:B, "2005")+ SUMIFS(D:D,C:C, "4",A:A, "2019",B:B, "2004")+ SUMIFS(D:D,C:C, "4",A:A, "2019",B:B, "2003")+ SUMIFS(D:D,C:C, "4",A:A, "2019",B:B, "2002")+ SUMIFS(D:D,C:C, "4",A:A, "2019",B:B, "2001")+SUMIFS(D:D,C:C, "4",A:A, "2019",B:B, "2000")+SUMIFS(D:D,C:C, "4",A:A, "2019",B:B, "1999")+SUMIFS(D:D,C:C, "4",A:A, "2019",B:B, "1998")+SUMIFS(D:D,C:C, "4",A:A, "2019",B:B, "1997")+SUMIFS(D:D,C:C, "4",A:A, "2019",B:B, "1996")+SUMIFS(D:D,C:C, "4",A:A, "2019",B:B, "1995")+SUMIFS(D:D,C:C, "4",A:A, "2019",B:B, "1994")+SUMIFS(D:D,C:C, "4",A:A, "2019",B:B, "1993")+SUMIFS(D:D,C:C, "4",A:A, "2019",B:B, "1992")+SUMIFS(D:D,C:C, "4",A:A, "2019",B:B, "1991")+SUMIFS(D:D,C:C, "4",A:A, "2019",B:B, "1990")+SUMIFS(D:D,C:C, "4",A:A, "2019",B:B, "1989"))/S8 -> 0.15136405 | O16: =( SUMIFS(D:D,C:C, "6",A:A, "2019",B:B, "2006")+ SUMIFS(D:D,C:C, "6",A:A, "2019",B:B, "2005")+ SUMIFS(D:D,C:C, "6",A:A, "2019",B:B, "2004")+ SUMIFS(D:D,C:C, "6",A:A, "2019",B:B, "2003")+ SUMIFS(D:D,C:C, "6",A:A, "2019",B:B, "2002")+ SUMIFS(D:D,C:C, "6",A:A, "2019",B:B, "2001")+SUMIFS(D:D,C:C, "6",A:A, "2019",B:B, "2000")+SUMIFS(D:D,C:C, "6",A:A, "2019",B:B, "1999")+SUMIFS(D:D,C:C, "6",A:A, "2019",B:B, "1998")+SUMIFS(D:D,C:C, "6",A:A, "2019",B:B, "1997")+SUMIFS(D:D,C:C, "6",A:A, "2019",B:B, "1996")+SUMIFS(D:D,C:C, "6",A:A, "2019",B:B, "1995")+SUMIFS(D:D,C:C, "6",A:A, "2019",B:B, "1994")+SUMIFS(D:D,C:C, "6",A:A, "2019",B:B, "1993")+SUMIFS(D:D,C:C, "6",A:A, "2019",B:B, "1992")+SUMIFS(D:D,C:C, "6",A:A, "2019",B:B, "1991")+SUMIFS(D:D,C:C, "6",A:A, "2019",B:B, "1990")+SUMIFS(D:D,C:C, "6",A:A, "2019",B:B, "1989"))/T8 -> 0.350552973 | R16: 2027 | S16: =SUMIFS(D:D,C:C, "4",A:A, "2027") -> 3750469147 | T16: =SUMIFS(D:D,C:C,"6",A:A,"2027") -> 1824560.604
A17: 2018 | B17: 2003 | C17: 6 | D17: 41784.30078 | G17: 2020 | H17: 2013-2020 | I17: 0.6931907309 | J17: 0.4879149057 | M17: 2007-2009 | N17: =( SUMIFS(D:D,C:C, "4",A:A, "2019",B:B, "2007")+ SUMIFS(D:D,C:C, "4",A:A, "2019",B:B, "2008")+ SUMIFS(D:D,C:C, "4",A:A, "2019",B:B, "2009"))/S8 -> 0.09323854477 | O17: =( SUMIFS(D:D,C:C, "6",A:A, "2019",B:B, "2007")+ SUMIFS(D:D,C:C, "6",A:A, "2019",B:B, "2008")+ SUMIFS(D:D,C:C, "6",A:A, "2019",B:B, "2009"))/T8 -> 0.1091059059 | R17: 2028 | S17: =SUMIFS(D:D,C:C, "4",A:A, "2028") -> 3776206304 | T17: =SUMIFS(D:D,C:C,"6",A:A,"2028") -> 1818037.435
A18: 2018 | B18: 2002 | C18: 6 | D18: 27004.09961 | G18: 2020 | H18: 2021-2023 | I18: 0 | J18: 0 | M18: 2010-2012 | N18: =( SUMIFS(D:D,C:C, "4",A:A, "2019",B:B, "2010")+ SUMIFS(D:D,C:C, "4",A:A, "2019",B:B, "2011")+ SUMIFS(D:D,C:C, "4",A:A, "2019",B:B, "2012"))/S8 -> 0.1168512158 | O18: =( SUMIFS(D:D,C:C, "6",A:A, "2019",B:B, "2010")+ SUMIFS(D:D,C:C, "6",A:A, "2019",B:B, "2011")+ SUMIFS(D:D,C:C, "6",A:A, "2019",B:B, "2012"))/T8 -> 0.1018760952 | R18: 2029 | S18: =SUMIFS(D:D,C:C, "4",A:A, "2029") -> 3792491158 | T18: =SUMIFS(D:D,C:C,"6",A:A,"2029") -> 1815650.104
A19: 2018 | B19: 2001 | C19: 6 | D19: 44799.30078 | G19: 2020 | H19: 2024-2050 | I19: 0 | J19: 0 | M19: 2013-2020 | N19: =( SUMIFS(D:D,C:C, "4",A:A, "2019",B:B, "2013")+ SUMIFS(D:D,C:C, "4",A:A, "2019",B:B, "2014")+ SUMIFS(D:D,C:C, "4",A:A, "2019",B:B, "2015")+SUMIFS(D:D,C:C, "4",A:A, "2019",B:B, "2016")+SUMIFS(D:D,C:C, "4",A:A, "2019",B:B, "2017")+SUMIFS(D:D,C:C, "4",A:A, "2019",B:B, "2018")+SUMIFS(D:D,C:C, "4",A:A, "2019",B:B, "2019"))/S8 -> 0.6385461894 | O19: =( SUMIFS(D:D,C:C, "6",A:A, "2019",B:B, "2013")+ SUMIFS(D:D,C:C, "6",A:A, "2019",B:B, "2014")+ SUMIFS(D:D,C:C, "6",A:A, "2019",B:B, "2015")+SUMIFS(D:D,C:C, "6",A:A, "2019",B:B, "2016")+SUMIFS(D:D,C:C, "6",A:A, "2019",B:B, "2017")+SUMIFS(D:D,C:C, "6",A:A, "2019",B:B, "2018")+SUMIFS(D:D,C:C, "6",A:A, "2019",B:B, "2019"))/T8 -> 0.4384650259 | R19: 2030 | S19: =SUMIFS(D:D,C:C, "4",A:A, "2030") -> 3811504325 | T19: =SUMIFS(D:D,C:C,"6",A:A,"2030") -> 1817166.332
A20: 2018 | B20: 2000 | C20: 6 | D20: 69362.39844 | G20: 2021 | H20: =M36 -> 2006 or earlier | I20: 0.1002190041 | J20: 0.2775570423 | M20: 2021-2023 | N20: 0 | O20: 0 | R20: 2031 | S20: =SUMIFS(D:D,C:C, "4",A:A, R20) -> 3831976013 | T20: =SUMIFS(D:D,C:C,"6",A:A,R20) -> 1819851.759
A21: 2018 | B21: 1999 | C21: 6 | D21: 56699.30078 | G21: 2021 | H21: 2007-2009 | I21: 0.06679350223 | J21: 0.09585367434 | M21: 2024-2050 | N21: 0 | O21: 0 | R21: 2032 | S21: =SUMIFS(D:D,C:C, "4",A:A, R21) -> 3853665395 | T21: =SUMIFS(D:D,C:C,"6",A:A,R21) -> 1822334.251
A22: 2018 | B22: 1998 | C22: 6 | D22: 41537.39844 | G22: 2021 | H22: 2010-2012 | I22: 0.09280772617 | J22: 0.09377704219 | N22: =SUM(N16:N21) -> 1 | O22: =SUM(O16:O21) -> 1 | R22: 2033 | S22: 3873714090 | T22: 1812648.116
A23: 2018 | B23: 1997 | C23: 6 | D23: 29296.69922 | G23: 2021 | H23: 2013-2020 | I23: 0.6632807432 | J23: 0.4825755183 | R23: 2034 | S23: 3899149494 | T23: 1808485.894
A24: 2018 | B24: 1996 | C24: 6 | D24: 31474.40039 | G24: 2021 | H24: 2021-2023 | I24: 0.07689902436 | J24: 0.05023672289 | M24: 2020 Fractions | R24: 2035 | S24: 3930251202 | T24: 1813207.776
A25: 2018 | B25: 1995 | C25: 6 | D25: 28638.90039 | G25: 2021 | H25: 2024-2050 | I25: 0 | J25: 0 | M25: Model Year Group | N25: Operating Hours | O25: No. of Trucks | R25: 2036 | S25: 3958259348 | T25: 1815652.75
A26: 2018 | B26: 1994 | C26: 6 | D26: 24248 | G26: 2022 | H26: =M46 -> 2006 or earlier | I26: 0.0812330763 | J26: 0.2448954989 | M26: 2006 or earlier | N26: =( SUMIFS(D:D,C:C, "4",A:A, "2020",B:B, "2006")+ SUMIFS(D:D,C:C, "4",A:A, "2020",B:B, "2005")+ SUMIFS(D:D,C:C, "4",A:A, "2020",B:B, "2004")+ SUMIFS(D:D,C:C, "4",A:A, "2020",B:B, "2003")+ SUMIFS(D:D,C:C, "4",A:A, "2020",B:B, "2002")+ SUMIFS(D:D,C:C, "4",A:A, "2020",B:B, "2001")+SUMIFS(D:D,C:C, "4",A:A, "2020",B:B, "2000")+SUMIFS(D:D,C:C, "4",A:A, "2020",B:B, "1999")+SUMIFS(D:D,C:C, "4",A:A, "2020",B:B, "1998")+SUMIFS(D:D,C:C, "4",A:A, "2020",B:B, "1997")+SUMIFS(D:D,C:C, "4",A:A, "2020",B:B, "1996")+SUMIFS(D:D,C:C, "4",A:A, "2020",B:B, "1995")+SUMIFS(D:D,C:C, "4",A:A, "2020",B:B, "1994")+SUMIFS(D:D,C:C, "4",A:A, "2020",B:B, "1993")+SUMIFS(D:D,C:C, "4",A:A, "2020",B:B, "1992")+SUMIFS(D:D,C:C, "4",A:A, "2020",B:B, "1991")+SUMIFS(D:D,C:C, "4",A:A, "2020",B:B, "1990"))/S9 -> 0.1232666156 | O26: =( SUMIFS(D:D,C:C, "6",A:A, "2020",B:B, "2006")+ SUMIFS(D:D,C:C, "6",A:A, "2020",B:B, "2005")+ SUMIFS(D:D,C:C, "6",A:A, "2020",B:B, "2004")+ SUMIFS(D:D,C:C, "6",A:A, "2020",B:B, "2003")+ SUMIFS(D:D,C:C, "6",A:A, "2020",B:B, "2002")+ SUMIFS(D:D,C:C, "6",A:A, "2020",B:B, "2001")+SUMIFS(D:D,C:C, "6",A:A, "2020",B:B, "2000")+SUMIFS(D:D,C:C, "6",A:A, "2020",B:B, "1999")+SUMIFS(D:D,C:C, "6",A:A, "2020",B:B, "1998")+SUMIFS(D:D,C:C, "6",A:A, "2020",B:B, "1997")+SUMIFS(D:D,C:C, "6",A:A, "2020",B:B, "1996")+SUMIFS(D:D,C:C, "6",A:A, "2020",B:B, "1995")+SUMIFS(D:D,C:C, "6",A:A, "2020",B:B, "1994")+SUMIFS(D:D,C:C, "6",A:A, "2020",B:B, "1993")+SUMIFS(D:D,C:C, "6",A:A, "2020",B:B, "1992")+SUMIFS(D:D,C:C, "6",A:A, "2020",B:B, "1991")+SUMIFS(D:D,C:C, "6",A:A, "2020",B:B, "1990"))/T9 -> 0.3118987813 | R26: 2037 | S26: 3989666570 | T26: 1823515.161
A27: 2018 | B27: 1993 | C27: 6 | D27: 19178.09961 | G27: 2022 | H27: 2007-2009 | I27: 0.05502856728 | J27: 0.08912998955 | M27: 2007-2009 | N27: =( SUMIFS(D:D,C:C, "4",A:A, "2020",B:B, "2007")+ SUMIFS(D:D,C:C, "4",A:A, "2020",B:B, "2008")+ SUMIFS(D:D,C:C, "4",A:A, "2020",B:B, "2009"))/S9 -> 0.07922755448 | O27: =( SUMIFS(D:D,C:C, "6",A:A, "2020",B:B, "2007")+ SUMIFS(D:D,C:C, "6",A:A, "2020",B:B, "2008")+ SUMIFS(D:D,C:C, "6",A:A, "2020",B:B, "2009"))/T9 -> 0.1023323847 | R27: 2038 | S27: 4019968097 | T27: 1824881.93
A28: 2018 | B28: 1992 | C28: 6 | D28: 12866.90039 | G28: 2022 | H28: 2010-2012 | I28: 0.08127190151 | J28: 0.08918499164 | M28: 2010-2012 | N28: =( SUMIFS(D:D,C:C, "4",A:A, "2020",B:B, "2010")+ SUMIFS(D:D,C:C, "4",A:A, "2020",B:B, "2011")+ SUMIFS(D:D,C:C, "4",A:A, "2020",B:B, "2012"))/S9 -> 0.104315099 | O28: =( SUMIFS(D:D,C:C, "6",A:A, "2020",B:B, "2010")+ SUMIFS(D:D,C:C, "6",A:A, "2020",B:B, "2011")+ SUMIFS(D:D,C:C, "6",A:A, "2020",B:B, "2012"))/T9 -> 0.09785392834 | R28: 2039 | S28: 4049392495 | T28: 1830770.072
A29: 2018 | B29: 1991 | C29: 6 | D29: 11432.90039 | G29: 2022 | H29: 2013-2020 | I29: 0.6229706948 | J29: 0.4728111929 | M29: 2013-2020 | N29: =( SUMIFS(D:D,C:C, "4",A:A, "2020",B:B, "2013")+ SUMIFS(D:D,C:C, "4",A:A, "2020",B:B, "2014")+ SUMIFS(D:D,C:C, "4",A:A, "2020",B:B, "2015")+SUMIFS(D:D,C:C, "4",A:A, "2020",B:B, "2016")+SUMIFS(D:D,C:C, "4",A:A, "2020",B:B, "2017")+SUMIFS(D:D,C:C, "4",A:A, "2020",B:B, "2018")+SUMIFS(D:D,C:C, "4",A:A, "2020",B:B, "2019")+SUMIFS(D:D,C:C, "4",A:A, "2020",B:B, "2020"))/S9 -> 0.6931907309 | O29: =( SUMIFS(D:D,C:C, "6",A:A, "2020",B:B, "2013")+ SUMIFS(D:D,C:C, "6",A:A, "2020",B:B, "2014")+ SUMIFS(D:D,C:C, "6",A:A, "2020",B:B, "2015")+SUMIFS(D:D,C:C, "6",A:A, "2020",B:B, "2016")+SUMIFS(D:D,C:C, "6",A:A, "2020",B:B, "2017")+SUMIFS(D:D,C:C, "6",A:A, "2020",B:B, "2018")+SUMIFS(D:D,C:C, "6",A:A, "2020",B:B, "2019")+SUMIFS(D:D,C:C, "6",A:A, "2020",B:B, "2020"))/T9 -> 0.4879149057 | R29: 2040 | S29: 4068086663 | T29: 1812103.917
A30: 2018 | B30: 1990 | C30: 6 | D30: 13166.2998 | G30: 2022 | H30: 2021-2023 | I30: 0.1594957601 | J30: 0.103978327 | M30: 2021-2023 | N30: 0 | O30: 0
A31: 2018 | B31: 1989 | C31: 6 | D31: 15792.09961 | G31: 2022 | H31: 2024-2050 | I31: 0 | J31: 0 | M31: 2024-2050 | N31: 0 | O31: 0
A32: 2018 | B32: 1988 | C32: 6 | D32: 25516.80078 | G32: 2023 | H32: =M56 -> 2006 or earlier | I32: 0.06656459958 | J32: 0.2141611207 | N32: =SUM(N26:N31) -> 1 | O32: =SUM(O26:O31) -> 1 | R32: Model Year Group | S32: Activity
A33: 2018 | B33: 2018 | C33: 4 | D33: 283602396 | G33: 2023 | H33: 2007-2009 | I33: 0.04428206002 | J33: 0.08236018768 | R33: 2006 or earlier | S33: =(IF(internalIdle!$C$9=1,(IF($O$1<>"Select",SUMIFS(I:I,G:G,$O$1,H:H,R33),0)),(IF($O$1<>"Select",SUMIFS(J:J,G:G,$O$1,H:H,R33),0)))*(IF($O$2<>"Enter",$O$2,0))) -> 2292.722345
A34: 2018 | B34: 2017 | C34: 4 | D34: 330054800 | G34: 2023 | H34: 2010-2012 | I34: 0.06999553603 | J34: 0.08415373414 | M34: 2021 Fractions | R34: 2007-2009 | S34: =IF(internalIdle!$C$9=1,(IF($O$1<>"Select",SUMIFS(I:I,G:G,$O$1,H:H,R34),0)),(IF($O$1<>"Select",SUMIFS(J:J,G:G,$O$1,H:H,R34),0)))*(IF($O$2<>"Enter",$O$2,0)) -> 1553.126283
A35: 2018 | B35: 2016 | C35: 4 | D35: 333816000 | G35: 2023 | H35: 2013-2020 | I35: 0.5779609786 | J35: 0.4622784371 | M35: Model Year Group | N35: Operating Hours | O35: No. of Trucks | R35: 2010-2012 | S35: =IF(internalIdle!$C$9=1,(IF($O$1<>"Select",SUMIFS(I:I,G:G,$O$1,H:H,R35),0)),(IF($O$1<>"Select",SUMIFS(J:J,G:G,$O$1,H:H,R35),0)))*(IF($O$2<>"Enter",$O$2,0)) -> 2293.818148
A36: 2018 | B36: 2015 | C36: 4 | D36: 432386100 | G36: 2023 | H36: 2021-2023 | I36: 0.2411968257 | J36: 0.1570465204 | M36: 2006 or earlier | N36: =( SUMIFS(D:D,C:C, "4",A:A, "2021",B:B, "2006")+ SUMIFS(D:D,C:C, "4",A:A, "2021",B:B, "2005")+ SUMIFS(D:D,C:C, "4",A:A, "2021",B:B, "2004")+ SUMIFS(D:D,C:C, "4",A:A, "2021",B:B, "2003")+ SUMIFS(D:D,C:C, "4",A:A, "2021",B:B, "2002")+ SUMIFS(D:D,C:C, "4",A:A, "2021",B:B, "2001")+SUMIFS(D:D,C:C, "4",A:A, "2021",B:B, "2000")+SUMIFS(D:D,C:C, "4",A:A, "2021",B:B, "1999")+SUMIFS(D:D,C:C, "4",A:A, "2021",B:B, "1998")+SUMIFS(D:D,C:C, "4",A:A, "2021",B:B, "1997")+SUMIFS(D:D,C:C, "4",A:A, "2021",B:B, "1996")+SUMIFS(D:D,C:C, "4",A:A, "2021",B:B, "1995")+SUMIFS(D:D,C:C, "4",A:A, "2021",B:B, "1994")+SUMIFS(D:D,C:C, "4",A:A, "2021",B:B, "1993")+SUMIFS(D:D,C:C, "4",A:A, "2021",B:B, "1992")+SUMIFS(D:D,C:C, "4",A:A, "2021",B:B, "1991"))/S10 -> 0.1002190041 | O36: =( SUMIFS(D:D,C:C, "6",A:A, "2021",B:B, "2006")+ SUMIFS(D:D,C:C, "6",A:A, "2021",B:B, "2005")+ SUMIFS(D:D,C:C, "6",A:A, "2021",B:B, "2004")+ SUMIFS(D:D,C:C, "6",A:A, "2021",B:B, "2003")+ SUMIFS(D:D,C:C, "6",A:A, "2021",B:B, "2002")+ SUMIFS(D:D,C:C, "6",A:A, "2021",B:B, "2001")+SUMIFS(D:D,C:C, "6",A:A, "2021",B:B, "2000")+SUMIFS(D:D,C:C, "6",A:A, "2021",B:B, "1999")+SUMIFS(D:D,C:C, "6",A:A, "2021",B:B, "1998")+SUMIFS(D:D,C:C, "6",A:A, "2021",B:B, "1997")+SUMIFS(D:D,C:C, "6",A:A, "2021",B:B, "1996")+SUMIFS(D:D,C:C, "6",A:A, "2021",B:B, "1995")+SUMIFS(D:D,C:C, "6",A:A, "2021",B:B, "1994")+SUMIFS(D:D,C:C, "6",A:A, "2021",B:B, "1993")+SUMIFS(D:D,C:C, "6",A:A, "2021",B:B, "1992")+SUMIFS(D:D,C:C, "6",A:A, "2021",B:B, "1991"))/T10 -> 0.2775570423 | R36: 2013-2020 | S36: =IF(internalIdle!$C$9=1,(IF($O$1<>"Select",SUMIFS(I:I,G:G,$O$1,H:H,R36),0)),(IF($O$1<>"Select",SUMIFS(J:J,G:G,$O$1,H:H,R36),0)))*(IF($O$2<>"Enter",$O$2,0)) -> 17582.72489
A37: 2018 | B37: 2014 | C37: 4 | D37: 363996104 | G37: 2023 | H37: 2024-2050 | I37: 0 | J37: 0 | M37: 2007-2009 | N37: =( SUMIFS(D:D,C:C, "4",A:A, "2021",B:B, "2007")+ SUMIFS(D:D,C:C, "4",A:A, "2021",B:B, "2008")+ SUMIFS(D:D,C:C, "4",A:A, "2021",B:B, "2009"))/S10 -> 0.06679350223 | O37: =( SUMIFS(D:D,C:C, "6",A:A, "2021",B:B, "2007")+ SUMIFS(D:D,C:C, "6",A:A, "2021",B:B, "2008")+ SUMIFS(D:D,C:C, "6",A:A, "2021",B:B, "2009"))/T10 -> 0.09585367434 | R37: 2021-2023 | S37: =(IF(internalIdle!$C$9=1,(IF($O$1<>"Select",SUMIFS(I:I,G:G,$O$1,H:H,R37),0)),(IF($O$1<>"Select",SUMIFS(J:J,G:G,$O$1,H:H,R37),0)))*(IF($O$2<>"Enter",$O$2,0))) -> 4501.608334
A38: 2018 | B38: 2013 | C38: 4 | D38: 252517700 | G38: 2024 | H38: =M66 -> 2006 or earlier | I38: 0.0541178251 | J38: 0.1862464006 | M38: 2010-2012 | N38: =( SUMIFS(D:D,C:C, "4",A:A, "2021",B:B, "2010")+ SUMIFS(D:D,C:C, "4",A:A, "2021",B:B, "2011")+ SUMIFS(D:D,C:C, "4",A:A, "2021",B:B, "2012"))/S10 -> 0.09280772617 | O38: =( SUMIFS(D:D,C:C, "6",A:A, "2021",B:B, "2010")+ SUMIFS(D:D,C:C, "6",A:A, "2021",B:B, "2011")+ SUMIFS(D:D,C:C, "6",A:A, "2021",B:B, "2012"))/T10 -> 0.09377704219 | R38: 2024-2050 | S38: =(IF(internalIdle!$C$9=1,(IF($O$1<>"Select",SUMIFS(I:I,G:G,$O$1,H:H,R38),0)),(IF($O$1<>"Select",SUMIFS(J:J,G:G,$O$1,H:H,R38),0)))*(IF($O$2<>"Enter",$O$2,0))) -> 0
A39: 2018 | B39: 2012 | C39: 4 | D39: 240325000 | G39: 2024 | H39: 2007-2009 | I39: 0.03719736813 | J39: 0.07617307317 | M39: 2013-2020 | N39: =( SUMIFS(D:D,C:C, "4",A:A, "2021",B:B, "2013")+ SUMIFS(D:D,C:C, "4",A:A, "2021",B:B, "2014")+ SUMIFS(D:D,C:C, "4",A:A, "2021",B:B, "2015")+SUMIFS(D:D,C:C, "4",A:A, "2021",B:B, "2016")+SUMIFS(D:D,C:C, "4",A:A, "2021",B:B, "2017")+SUMIFS(D:D,C:C, "4",A:A, "2021",B:B, "2018")+SUMIFS(D:D,C:C, "4",A:A, "2021",B:B, "2019")+SUMIFS(D:D,C:C, "4",A:A, "2021",B:B, "2020"))/S10 -> 0.6632807432 | O39: =( SUMIFS(D:D,C:C, "6",A:A, "2021",B:B, "2013")+ SUMIFS(D:D,C:C, "6",A:A, "2021",B:B, "2014")+ SUMIFS(D:D,C:C, "6",A:A, "2021",B:B, "2015")+SUMIFS(D:D,C:C, "6",A:A, "2021",B:B, "2016")+SUMIFS(D:D,C:C, "6",A:A, "2021",B:B, "2017")+SUMIFS(D:D,C:C, "6",A:A, "2021",B:B, "2018")+SUMIFS(D:D,C:C, "6",A:A, "2021",B:B, "2019")+SUMIFS(D:D,C:C, "6",A:A, "2021",B:B, "2020"))/T10 -> 0.4825755183 | S39: =SUM(S33:S38) -> 28224
A40: 2018 | B40: 2011 | C40: 4 | D40: 120150500 | G40: 2024 | H40: 2010-2012 | I40: 0.05968209834 | J40: 0.07929741306 | M40: 2021-2023 | N40: =( SUMIFS(D:D,C:C, "4",A:A, "2021",B:B, "2021"))/S10 -> 0.07689902436 | O40: =( SUMIFS(D:D,C:C, "6",A:A, "2021",B:B, "2021"))/T10 -> 0.05023672289
A41: 2018 | B41: 2010 | C41: 4 | D41: 91314060 | G41: 2024 | H41: 2013-2020 | I41: 0.5281829102 | J41: 0.4497925412 | M41: 2024-2050 | N41: 0 | O41: 0
A42: 2018 | B42: 2009 | C42: 4 | D42: 103986600 | G42: 2024 | H42: 2021-2023 | I42: 0.2426767355 | J42: 0.1577078599 | N42: =SUM(N36:N41) -> 1 | O42: =SUM(O36:O41) -> 1
A43: 2018 | B43: 2008 | C43: 4 | D43: 60496100 | G43: 2024 | H43: 2024-2050 | I43: =N71 -> 0.07814306266 | J43: 0.05078271207
A44: 2018 | B44: 2007 | C44: 4 | D44: 210843600 | G44: 2025 | H44: =M76 -> 2006 or earlier | I44: 0.04391705101 | J44: 0.1618217542 | M44: 2022 Fractions
A45: 2018 | B45: 2006 | C45: 4 | D45: 141009400 | G45: 2025 | H45: 2007-2009 | I45: 0.03132223248 | J45: 0.06992517487 | M45: Model Year Group | N45: Operating Hours | O45: No. of Trucks
A46: 2018 | B46: 2005 | C46: 4 | D46: 116028200 | G46: 2025 | H46: 2010-2012 | I46: 0.05018164322 | J46: 0.07439709106 | M46: 2006 or earlier | N46: =( SUMIFS(D:D,C:C, "4",A:A, "2022",B:B, "2006")+ SUMIFS(D:D,C:C, "4",A:A, "2022",B:B, "2005")+ SUMIFS(D:D,C:C, "4",A:A, "2022",B:B, "2004")+ SUMIFS(D:D,C:C, "4",A:A, "2022",B:B, "2003")+ SUMIFS(D:D,C:C, "4",A:A, "2022",B:B, "2002")+ SUMIFS(D:D,C:C, "4",A:A, "2022",B:B, "2001")+SUMIFS(D:D,C:C, "4",A:A, "2022",B:B, "2000")+SUMIFS(D:D,C:C, "4",A:A, "2022",B:B, "1999")+SUMIFS(D:D,C:C, "4",A:A, "2022",B:B, "1998")+SUMIFS(D:D,C:C, "4",A:A, "2022",B:B, "1997")+SUMIFS(D:D,C:C, "4",A:A, "2022",B:B, "1996")+SUMIFS(D:D,C:C, "4",A:A, "2022",B:B, "1995")+SUMIFS(D:D,C:C, "4",A:A, "2022",B:B, "1994")+SUMIFS(D:D,C:C, "4",A:A, "2022",B:B, "1993")+SUMIFS(D:D,C:C, "4",A:A, "2022",B:B, "1992"))/S11 -> 0.0812330763 | O46: =( SUMIFS(D:D,C:C, "6",A:A, "2022",B:B, "2006")+ SUMIFS(D:D,C:C, "6",A:A, "2022",B:B, "2005")+ SUMIFS(D:D,C:C, "6",A:A, "2022",B:B, "2004")+ SUMIFS(D:D,C:C, "6",A:A, "2022",B:B, "2003")+ SUMIFS(D:D,C:C, "6",A:A, "2022",B:B, "2002")+ SUMIFS(D:D,C:C, "6",A:A, "2022",B:B, "2001")+SUMIFS(D:D,C:C, "6",A:A, "2022",B:B, "2000")+SUMIFS(D:D,C:C, "6",A:A, "2022",B:B, "1999")+SUMIFS(D:D,C:C, "6",A:A, "2022",B:B, "1998")+SUMIFS(D:D,C:C, "6",A:A, "2022",B:B, "1997")+SUMIFS(D:D,C:C, "6",A:A, "2022",B:B, "1996")+SUMIFS(D:D,C:C, "6",A:A, "2022",B:B, "1995")+SUMIFS(D:D,C:C, "6",A:A, "2022",B:B, "1994")+SUMIFS(D:D,C:C, "6",A:A, "2022",B:B, "1993")+SUMIFS(D:D,C:C, "6",A:A, "2022",B:B, "1992"))/T11 -> 0.2448954989
A47: 2018 | B47: 2004 | C47: 4 | D47: 57057610 | G47: 2025 | H47: 2013-2020 | I47: 0.4785227701 | J47: 0.4349477645 | M47: 2007-2009 | N47: =( SUMIFS(D:D,C:C, "4",A:A, "2022",B:B, "2007")+ SUMIFS(D:D,C:C, "4",A:A, "2022",B:B, "2008")+ SUMIFS(D:D,C:C, "4",A:A, "2022",B:B, "2009"))/S11 -> 0.05502856728 | O47: =( SUMIFS(D:D,C:C, "6",A:A, "2022",B:B, "2007")+ SUMIFS(D:D,C:C, "6",A:A, "2022",B:B, "2008")+ SUMIFS(D:D,C:C, "6",A:A, "2022",B:B, "2009"))/T11 -> 0.08912998955
A48: 2018 | B48: 2003 | C48: 4 | D48: 45271630 | G48: 2025 | H48: 2021-2023 | I48: 0.2401581873 | J48: 0.158048078 | M48: 2010-2012 | N48: =( SUMIFS(D:D,C:C, "4",A:A, "2022",B:B, "2010")+ SUMIFS(D:D,C:C, "4",A:A, "2022",B:B, "2011")+ SUMIFS(D:D,C:C, "4",A:A, "2022",B:B, "2012"))/S11 -> 0.08127190151 | O48: =( SUMIFS(D:D,C:C, "6",A:A, "2022",B:B, "2010")+ SUMIFS(D:D,C:C, "6",A:A, "2022",B:B, "2011")+ SUMIFS(D:D,C:C, "6",A:A, "2022",B:B, "2012"))/T11 -> 0.08918499164
A49: 2018 | B49: 2002 | C49: 4 | D49: 25056450 | G49: 2025 | H49: 2024-2050 | I49: 0.1558981159 | J49: 0.1008601374 | M49: 2013-2020 | N49: =( SUMIFS(D:D,C:C, "4",A:A, "2022",B:B, "2013")+ SUMIFS(D:D,C:C, "4",A:A, "2022",B:B, "2014")+ SUMIFS(D:D,C:C, "4",A:A, "2022",B:B, "2015")+SUMIFS(D:D,C:C, "4",A:A, "2022",B:B, "2016")+SUMIFS(D:D,C:C, "4",A:A, "2022",B:B, "2017")+SUMIFS(D:D,C:C, "4",A:A, "2022",B:B, "2018")+SUMIFS(D:D,C:C, "4",A:A, "2022",B:B, "2019")+SUMIFS(D:D,C:C, "4",A:A, "2022",B:B, "2020"))/S11 -> 0.6229706948 | O49: =( SUMIFS(D:D,C:C, "6",A:A, "2022",B:B, "2013")+ SUMIFS(D:D,C:C, "6",A:A, "2022",B:B, "2014")+ SUMIFS(D:D,C:C, "6",A:A, "2022",B:B, "2015")+SUMIFS(D:D,C:C, "6",A:A, "2022",B:B, "2016")+SUMIFS(D:D,C:C, "6",A:A, "2022",B:B, "2017")+SUMIFS(D:D,C:C, "6",A:A, "2022",B:B, "2018")+SUMIFS(D:D,C:C, "6",A:A, "2022",B:B, "2019")+SUMIFS(D:D,C:C, "6",A:A, "2022",B:B, "2020"))/T11 -> 0.4728111929 | P49: =T11 -> 1814526.199
A50: 2018 | B50: 2001 | C50: 4 | D50: 39085730 | G50: 2026 | H50: =M86 -> 2006 or earlier | I50: 0.03531165197 | J50: 0.1398909007 | M50: 2021-2023 | N50: =( SUMIFS(D:D,C:C, "4",A:A, "2022",B:B, "2021")+SUMIFS(D:D,C:C, "4",A:A, "2022",B:B, "2022")+SUMIFS(D:D,C:C, "4",A:A, "2022",B:B, "2023"))/S11 -> 0.1594957601 | O50: =( SUMIFS(D:D,C:C, "6",A:A, "2022",B:B, "2021")+SUMIFS(D:D,C:C, "6",A:A, "2022",B:B, "2022")+SUMIFS(D:D,C:C, "6",A:A, "2022",B:B, "2023"))/T11 -> 0.103978327
A51: 2018 | B51: 2000 | C51: 4 | D51: 56672380 | G51: 2026 | H51: 2007-2009 | I51: 0.02705122677 | J51: 0.0641549229 | M51: 2024-2050 | N51: 0 | O51: 0
A52: 2018 | B52: 1999 | C52: 4 | D52: 43183960 | G52: 2026 | H52: 2010-2012 | I52: 0.0415960317 | J52: 0.06967499971 | N52: =SUM(N46:N51) -> 1 | O52: =SUM(O46:O51) -> 1
A53: 2018 | B53: 1998 | C53: 4 | D53: 29334390 | G53: 2026 | H53: 2013-2020 | I53: 0.4294694676 | J53: 0.418135138
A54: 2018 | B54: 1997 | C54: 4 | D54: 19066310 | G54: 2026 | H54: 2021-2023 | I54: 0.2325303552 | J54: 0.1576659438 | M54: 2023 Fractions
A55: 2018 | B55: 1996 | C55: 4 | D55: 18739380 | G55: 2026 | H55: 2024-2050 | I55: 0.2340412668 | J55: 0.1504780949 | M55: Model Year Group | N55: Operating Hours | O55: No. of Trucks
A56: 2018 | B56: 1995 | C56: 4 | D56: 15464180 | G56: 2027 | H56: =M96 -> 2006 or earlier | I56: 0.02829691936 | J56: 0.1213885123 | M56: 2006 or earlier | N56: =( SUMIFS(D:D,C:C, "4",A:A, "2023",B:B, "2006")+ SUMIFS(D:D,C:C, "4",A:A, "2023",B:B, "2005")+ SUMIFS(D:D,C:C, "4",A:A, "2023",B:B, "2004")+ SUMIFS(D:D,C:C, "4",A:A, "2023",B:B, "2003")+ SUMIFS(D:D,C:C, "4",A:A, "2023",B:B, "2002")+ SUMIFS(D:D,C:C, "4",A:A, "2023",B:B, "2001")+SUMIFS(D:D,C:C, "4",A:A, "2023",B:B, "2000")+SUMIFS(D:D,C:C, "4",A:A, "2023",B:B, "1999")+SUMIFS(D:D,C:C, "4",A:A, "2023",B:B, "1998")+SUMIFS(D:D,C:C, "4",A:A, "2023",B:B, "1997")+SUMIFS(D:D,C:C, "4",A:A, "2023",B:B, "1996")+SUMIFS(D:D,C:C, "4",A:A, "2023",B:B, "1995")+SUMIFS(D:D,C:C, "4",A:A, "2023",B:B, "1994")+SUMIFS(D:D,C:C, "4",A:A, "2023",B:B, "1993"))/S12 -> 0.06656459958 | O56: =( SUMIFS(D:D,C:C, "6",A:A, "2023",B:B, "2006")+ SUMIFS(D:D,C:C, "6",A:A, "2023",B:B, "2005")+ SUMIFS(D:D,C:C, "6",A:A, "2023",B:B, "2004")+ SUMIFS(D:D,C:C, "6",A:A, "2023",B:B, "2003")+ SUMIFS(D:D,C:C, "6",A:A, "2023",B:B, "2002")+ SUMIFS(D:D,C:C, "6",A:A, "2023",B:B, "2001")+SUMIFS(D:D,C:C, "6",A:A, "2023",B:B, "2000")+SUMIFS(D:D,C:C, "6",A:A, "2023",B:B, "1999")+SUMIFS(D:D,C:C, "6",A:A, "2023",B:B, "1998")+SUMIFS(D:D,C:C, "6",A:A, "2023",B:B, "1997")+SUMIFS(D:D,C:C, "6",A:A, "2023",B:B, "1996")+SUMIFS(D:D,C:C, "6",A:A, "2023",B:B, "1995")+SUMIFS(D:D,C:C, "6",A:A, "2023",B:B, "1994")+SUMIFS(D:D,C:C, "6",A:A, "2023",B:B, "1993"))/T12 -> 0.2141611207
A57: 2018 | B57: 1994 | C57: 4 | D57: 11749470 | G57: 2027 | H57: 2007-2009 | I57: 0.02309894485 | J57: 0.05832105367 | M57: 2007-2009 | N57: =( SUMIFS(D:D,C:C, "4",A:A, "2023",B:B, "2007")+ SUMIFS(D:D,C:C, "4",A:A, "2023",B:B, "2008")+ SUMIFS(D:D,C:C, "4",A:A, "2023",B:B, "2009"))/S12 -> 0.04428206002 | O57: =( SUMIFS(D:D,C:C, "6",A:A, "2023",B:B, "2007")+ SUMIFS(D:D,C:C, "6",A:A, "2023",B:B, "2008")+ SUMIFS(D:D,C:C, "6",A:A, "2023",B:B, "2009"))/T12 -> 0.08236018768
A58: 2018 | B58: 1993 | C58: 4 | D58: 8230052 | G58: 2027 | H58: 2010-2012 | I58: 0.03456353723 | J58: 0.06509704297 | M58: 2010-2012 | N58: =( SUMIFS(D:D,C:C, "4",A:A, "2023",B:B, "2010")+ SUMIFS(D:D,C:C, "4",A:A, "2023",B:B, "2011")+ SUMIFS(D:D,C:C, "4",A:A, "2023",B:B, "2012"))/S12 -> 0.06999553603 | O58: =( SUMIFS(D:D,C:C, "6",A:A, "2023",B:B, "2010")+ SUMIFS(D:D,C:C, "6",A:A, "2023",B:B, "2011")+ SUMIFS(D:D,C:C, "6",A:A, "2023",B:B, "2012"))/T12 -> 0.08415373414
A59: 2018 | B59: 1992 | C59: 4 | D59: 4808651 | G59: 2027 | H59: 2013-2020 | I59: 0.3823219719 | J59: 0.4001006625 | M59: 2013-2020 | N59: =( SUMIFS(D:D,C:C, "4",A:A, "2023",B:B, "2013")+ SUMIFS(D:D,C:C, "4",A:A, "2023",B:B, "2014")+ SUMIFS(D:D,C:C, "4",A:A, "2023",B:B, "2015")+SUMIFS(D:D,C:C, "4",A:A, "2023",B:B, "2016")+SUMIFS(D:D,C:C, "4",A:A, "2023",B:B, "2017")+SUMIFS(D:D,C:C, "4",A:A, "2023",B:B, "2018")+SUMIFS(D:D,C:C, "4",A:A, "2023",B:B, "2019")+SUMIFS(D:D,C:C, "4",A:A, "2023",B:B, "2020"))/S12 -> 0.5779609786 | O59: =( SUMIFS(D:D,C:C, "6",A:A, "2023",B:B, "2013")+ SUMIFS(D:D,C:C, "6",A:A, "2023",B:B, "2014")+ SUMIFS(D:D,C:C, "6",A:A, "2023",B:B, "2015")+SUMIFS(D:D,C:C, "6",A:A, "2023",B:B, "2016")+SUMIFS(D:D,C:C, "6",A:A, "2023",B:B, "2017")+SUMIFS(D:D,C:C, "6",A:A, "2023",B:B, "2018")+SUMIFS(D:D,C:C, "6",A:A, "2023",B:B, "2019")+SUMIFS(D:D,C:C, "6",A:A, "2023",B:B, "2020"))/T12 -> 0.4622784371
A60: 2018 | B60: 1991 | C60: 4 | D60: 3639197 | G60: 2027 | H60: 2021-2023 | I60: 0.2190508088 | J60: 0.1558216817 | M60: 2021-2023 | N60: =( SUMIFS(D:D,C:C, "4",A:A, "2023",B:B, "2021")+ SUMIFS(D:D,C:C, "4",A:A, "2023",B:B, "2022")+ SUMIFS(D:D,C:C, "4",A:A, "2023",B:B, "2023"))/S12 -> 0.2411968257 | O60: =( SUMIFS(D:D,C:C, "6",A:A, "2023",B:B, "2021")+SUMIFS(D:D,C:C, "6",A:A, "2023",B:B, "2022")+SUMIFS(D:D,C:C, "6",A:A, "2023",B:B, "2023"))/T12 -> 0.1570465204
A61: 2018 | B61: 1990 | C61: 4 | D61: 3461345 | G61: 2027 | H61: 2024-2050 | I61: 0.3126678178 | J61: 0.1992710469 | M61: 2024-2050 | N61: 0 | O61: 0
A62: 2018 | B62: 1989 | C62: 4 | D62: 3276506 | G62: 2028 | H62: =M106 -> 2006 or earlier | I62: 0.02207583784 | J62: 0.1027145148 | N62: =SUM(N56:N61) -> 1 | O62: =SUM(O56:O61) -> 1
A63: 2018 | B63: 1988 | C63: 4 | D63: 3880153 | G63: 2028 | H63: 2007-2009 | I63: 0.01946453241 | J63: 0.05272817655
A64: 2019 | B64: 2019 | C64: 6 | D64: 102644 | G64: 2028 | H64: 2010-2012 | I64: 0.0286861843 | J64: 0.06018660555 | M64: 2024 Fractions
A65: 2019 | B65: 2018 | C65: 6 | D65: 96658.29688 | G65: 2028 | H65: 2013-2020 | I65: 0.3362249167 | J65: 0.3817934032 | M65: Model Year Group | N65: Operating Hours | O65: No. of Trucks
A66: 2019 | B66: 2017 | C66: 6 | D66: 112490 | G66: 2028 | H66: 2021-2023 | I66: 0.2045800578 | J66: 0.1535802827 | M66: 2006 or earlier | N66: =( SUMIFS(D:D,C:C, "4",A:A, "2024",B:B, "2006")+ SUMIFS(D:D,C:C, "4",A:A, "2024",B:B, "2005")+ SUMIFS(D:D,C:C, "4",A:A, "2024",B:B, "2004")+ SUMIFS(D:D,C:C, "4",A:A, "2024",B:B, "2003")+ SUMIFS(D:D,C:C, "4",A:A, "2024",B:B, "2002")+ SUMIFS(D:D,C:C, "4",A:A, "2024",B:B, "2001")+SUMIFS(D:D,C:C, "4",A:A, "2024",B:B, "2000")+SUMIFS(D:D,C:C, "4",A:A, "2024",B:B, "1999")+SUMIFS(D:D,C:C, "4",A:A, "2024",B:B, "1998")+SUMIFS(D:D,C:C, "4",A:A, "2024",B:B, "1997")+SUMIFS(D:D,C:C, "4",A:A, "2024",B:B, "1996")+SUMIFS(D:D,C:C, "4",A:A, "2024",B:B, "1995")+SUMIFS(D:D,C:C, "4",A:A, "2024",B:B, "1994"))/S13 -> 0.0541178251 | O66: =( SUMIFS(D:D,C:C, "6",A:A, "2024",B:B, "2006")+ SUMIFS(D:D,C:C, "6",A:A, "2024",B:B, "2005")+ SUMIFS(D:D,C:C, "6",A:A, "2024",B:B, "2004")+ SUMIFS(D:D,C:C, "6",A:A, "2024",B:B, "2003")+ SUMIFS(D:D,C:C, "6",A:A, "2024",B:B, "2002")+ SUMIFS(D:D,C:C, "6",A:A, "2024",B:B, "2001")+SUMIFS(D:D,C:C, "6",A:A, "2024",B:B, "2000")+SUMIFS(D:D,C:C, "6",A:A, "2024",B:B, "1999")+SUMIFS(D:D,C:C, "6",A:A, "2024",B:B, "1998")+SUMIFS(D:D,C:C, "6",A:A, "2024",B:B, "1997")+SUMIFS(D:D,C:C, "6",A:A, "2024",B:B, "1996")+SUMIFS(D:D,C:C, "6",A:A, "2024",B:B, "1995")+SUMIFS(D:D,C:C, "6",A:A, "2024",B:B, "1994"))/T13 -> 0.1862464006
A67: 2019 | B67: 2016 | C67: 6 | D67: 113772 | G67: 2028 | H67: 2024-2050 | I67: 0.3889684709 | J67: 0.2489970172 | M67: 2007-2009 | N67: =( SUMIFS(D:D,C:C, "4",A:A, "2024",B:B, "2007")+ SUMIFS(D:D,C:C, "4",A:A, "2024",B:B, "2008")+ SUMIFS(D:D,C:C, "4",A:A, "2024",B:B, "2009"))/S13 -> 0.03719736813 | O67: =( SUMIFS(D:D,C:C, "6",A:A, "2024",B:B, "2007")+ SUMIFS(D:D,C:C, "6",A:A, "2024",B:B, "2008")+ SUMIFS(D:D,C:C, "6",A:A, "2024",B:B, "2009"))/T13 -> 0.07617307317
A68: 2019 | B68: 2015 | C68: 6 | D68: 147367 | G68: 2029 | H68: =M116 -> 2006 or earlier | I68: 0.01687674284 | J68: 0.08492423806 | M68: 2010-2012 | N68: =( SUMIFS(D:D,C:C, "4",A:A, "2024",B:B, "2010")+ SUMIFS(D:D,C:C, "4",A:A, "2024",B:B, "2011")+ SUMIFS(D:D,C:C, "4",A:A, "2024",B:B, "2012"))/S13 -> 0.05968209834 | O68: =( SUMIFS(D:D,C:C, "6",A:A, "2024",B:B, "2010")+ SUMIFS(D:D,C:C, "6",A:A, "2024",B:B, "2011")+ SUMIFS(D:D,C:C, "6",A:A, "2024",B:B, "2012"))/T13 -> 0.07929741306
A69: 2019 | B69: 2014 | C69: 6 | D69: 129152 | G69: 2029 | H69: 2007-2009 | I69: 0.01630085013 | J69: 0.04772945947 | M69: 2013-2020 | N69: =( SUMIFS(D:D,C:C, "4",A:A, "2024",B:B, "2013")+ SUMIFS(D:D,C:C, "4",A:A, "2024",B:B, "2014")+ SUMIFS(D:D,C:C, "4",A:A, "2024",B:B, "2015")+SUMIFS(D:D,C:C, "4",A:A, "2024",B:B, "2016")+SUMIFS(D:D,C:C, "4",A:A, "2024",B:B, "2017")+SUMIFS(D:D,C:C, "4",A:A, "2024",B:B, "2018")+SUMIFS(D:D,C:C, "4",A:A, "2024",B:B, "2019")+SUMIFS(D:D,C:C, "4",A:A, "2024",B:B, "2020"))/S13 -> 0.5281829102 | O69: =( SUMIFS(D:D,C:C, "6",A:A, "2024",B:B, "2013")+ SUMIFS(D:D,C:C, "6",A:A, "2024",B:B, "2014")+ SUMIFS(D:D,C:C, "6",A:A, "2024",B:B, "2015")+SUMIFS(D:D,C:C, "6",A:A, "2024",B:B, "2016")+SUMIFS(D:D,C:C, "6",A:A, "2024",B:B, "2017")+SUMIFS(D:D,C:C, "6",A:A, "2024",B:B, "2018")+SUMIFS(D:D,C:C, "6",A:A, "2024",B:B, "2019")+SUMIFS(D:D,C:C, "6",A:A, "2024",B:B, "2020"))/T13 -> 0.4497925412
A70: 2019 | B70: 2013 | C70: 6 | D70: 93548.60156 | G70: 2029 | H70: 2010-2012 | I70: 0.02503276502 | J70: 0.05565416917 | M70: 2021-2023 | N70: =( SUMIFS(D:D,C:C, "4",A:A, "2024",B:B, "2021")+ SUMIFS(D:D,C:C, "4",A:A, "2024",B:B, "2022")+ SUMIFS(D:D,C:C, "4",A:A, "2024",B:B, "2023"))/S13 -> 0.2426767355 | O70: =( SUMIFS(D:D,C:C, "6",A:A, "2024",B:B, "2021")+SUMIFS(D:D,C:C, "6",A:A, "2024",B:B, "2022")+SUMIFS(D:D,C:C, "6",A:A, "2024",B:B, "2023"))/T13 -> 0.1577078599
A71: 2019 | B71: 2012 | C71: 6 | D71: 94608.79688 | G71: 2029 | H71: 2013-2020 | I71: 0.2924316614 | J71: 0.3635258256 | M71: 2024-2050 | N71: =( SUMIFS(D:D,C:C, "4",A:A, "2024",B:B, "2024"))/S13 -> 0.07814306266 | O71: =( SUMIFS(D:D,C:C, "6",A:A, "2024",B:B, "2024"))/T13 -> 0.05078271207
A72: 2019 | B72: 2011 | C72: 6 | D72: 49742.5 | G72: 2029 | H72: 2021-2023 | I72: 0.1886975527 | J72: 0.1501590512 | N72: =SUM(N66:N71) -> 1 | O72: =SUM(O66:O71) -> 1
A73: 2019 | B73: 2010 | C73: 6 | D73: 40511.5 | G73: 2029 | H73: 2024-2050 | I73: 0.460660428 | J73: 0.2980072565
A74: 2019 | B74: 2009 | C74: 6 | D74: 49692.30078 | G74: 2030 | H74: =M126 -> 2006 or earlier | I74: 0.01265618582 | J74: 0.06848648165 | M74: 2025 Fractions
A75: 2019 | B75: 2008 | C75: 6 | D75: 30873.59961 | G75: 2030 | H75: 2007-2009 | I75: 0.01350331512 | J75: 0.04306199077 | M75: Model Year Group | N75: Operating Hours | O75: No. of Trucks
A76: 2019 | B76: 2007 | C76: 6 | D76: 117416 | G76: 2030 | H76: 2010-2012 | I76: 0.02159891816 | J76: 0.05113483471 | M76: 2006 or earlier | N76: =( SUMIFS(D:D,C:C, "4",A:A, "2025",B:B, "2006")+ SUMIFS(D:D,C:C, "4",A:A, "2025",B:B, "2005")+ SUMIFS(D:D,C:C, "4",A:A, "2025",B:B, "2004")+ SUMIFS(D:D,C:C, "4",A:A, "2025",B:B, "2003")+ SUMIFS(D:D,C:C, "4",A:A, "2025",B:B, "2002")+ SUMIFS(D:D,C:C, "4",A:A, "2025",B:B, "2001")+SUMIFS(D:D,C:C, "4",A:A, "2025",B:B, "2000")+SUMIFS(D:D,C:C, "4",A:A, "2025",B:B, "1999")+SUMIFS(D:D,C:C, "4",A:A, "2025",B:B, "1998")+SUMIFS(D:D,C:C, "4",A:A, "2025",B:B, "1997")+SUMIFS(D:D,C:C, "4",A:A, "2025",B:B, "1996")+SUMIFS(D:D,C:C, "4",A:A, "2025",B:B, "1995"))/S14 -> 0.04391705101 | O76: =( SUMIFS(D:D,C:C, "6",A:A, "2025",B:B, "2006")+ SUMIFS(D:D,C:C, "6",A:A, "2025",B:B, "2005")+ SUMIFS(D:D,C:C, "6",A:A, "2025",B:B, "2004")+ SUMIFS(D:D,C:C, "6",A:A, "2025",B:B, "2003")+ SUMIFS(D:D,C:C, "6",A:A, "2025",B:B, "2002")+ SUMIFS(D:D,C:C, "6",A:A, "2025",B:B, "2001")+SUMIFS(D:D,C:C, "6",A:A, "2025",B:B, "2000")+SUMIFS(D:D,C:C, "6",A:A, "2025",B:B, "1999")+SUMIFS(D:D,C:C, "6",A:A, "2025",B:B, "1998")+SUMIFS(D:D,C:C, "6",A:A, "2025",B:B, "1997")+SUMIFS(D:D,C:C, "6",A:A, "2025",B:B, "1996")+SUMIFS(D:D,C:C, "6",A:A, "2025",B:B, "1995"))/T14 -> 0.1618217542
A77: 2019 | B77: 2006 | C77: 6 | D77: 85142.10156 | G77: 2030 | H77: 2013-2020 | I77: 0.2523640899 | J77: 0.3450647247 | M77: 2007-2009 | N77: =( SUMIFS(D:D,C:C, "4",A:A, "2025",B:B, "2007")+ SUMIFS(D:D,C:C, "4",A:A, "2025",B:B, "2008")+ SUMIFS(D:D,C:C, "4",A:A, "2025",B:B, "2009"))/S14 -> 0.03132223248 | O77: =( SUMIFS(D:D,C:C, "6",A:A, "2025",B:B, "2007")+ SUMIFS(D:D,C:C, "6",A:A, "2025",B:B, "2008")+ SUMIFS(D:D,C:C, "6",A:A, "2025",B:B, "2009"))/T14 -> 0.06992517487
A78: 2019 | B78: 2005 | C78: 6 | D78: 77874 | G78: 2030 | H78: 2021-2023 | I78: 0.1725415594 | J78: 0.1462539737 | M78: 2010-2012 | N78: =( SUMIFS(D:D,C:C, "4",A:A, "2025",B:B, "2010")+ SUMIFS(D:D,C:C, "4",A:A, "2025",B:B, "2011")+ SUMIFS(D:D,C:C, "4",A:A, "2025",B:B, "2012"))/S14 -> 0.05018164322 | O78: =( SUMIFS(D:D,C:C, "6",A:A, "2025",B:B, "2010")+ SUMIFS(D:D,C:C, "6",A:A, "2025",B:B, "2011")+ SUMIFS(D:D,C:C, "6",A:A, "2025",B:B, "2012"))/T14 -> 0.07439709106
A79: 2019 | B79: 2004 | C79: 6 | D79: 43103.60156 | G79: 2030 | H79: 2024-2050 | I79: 0.5273359316 | J79: 0.3459979944 | M79: 2013-2020 | N79: =( SUMIFS(D:D,C:C, "4",A:A, "2025",B:B, "2013")+ SUMIFS(D:D,C:C, "4",A:A, "2025",B:B, "2014")+ SUMIFS(D:D,C:C, "4",A:A, "2025",B:B, "2015")+SUMIFS(D:D,C:C, "4",A:A, "2025",B:B, "2016")+SUMIFS(D:D,C:C, "4",A:A, "2025",B:B, "2017")+SUMIFS(D:D,C:C, "4",A:A, "2025",B:B, "2018")+SUMIFS(D:D,C:C, "4",A:A, "2025",B:B, "2019")+SUMIFS(D:D,C:C, "4",A:A, "2025",B:B, "2020"))/S14 -> 0.4785227701 | O79: =( SUMIFS(D:D,C:C, "6",A:A, "2025",B:B, "2013")+ SUMIFS(D:D,C:C, "6",A:A, "2025",B:B, "2014")+ SUMIFS(D:D,C:C, "6",A:A, "2025",B:B, "2015")+SUMIFS(D:D,C:C, "6",A:A, "2025",B:B, "2016")+SUMIFS(D:D,C:C, "6",A:A, "2025",B:B, "2017")+SUMIFS(D:D,C:C, "6",A:A, "2025",B:B, "2018")+SUMIFS(D:D,C:C, "6",A:A, "2025",B:B, "2019")+SUMIFS(D:D,C:C, "6",A:A, "2025",B:B, "2020"))/T14 -> 0.4349477645
A80: 2019 | B80: 2003 | C80: 6 | D80: 38529.80078 | G80: 2031 | H80: =M136 -> 2006 or earlier | I80: =N136 -> 0.009562454691 | J80: =O136 -> 0.0571138652 | M80: 2021-2023 | N80: =( SUMIFS(D:D,C:C, "4",A:A, "2025",B:B, "2021")+ SUMIFS(D:D,C:C, "4",A:A, "2025",B:B, "2022")+ SUMIFS(D:D,C:C, "4",A:A, "2025",B:B, "2023"))/S14 -> 0.2401581873 | O80: =( SUMIFS(D:D,C:C, "6",A:A, "2025",B:B, "2021")+SUMIFS(D:D,C:C, "6",A:A, "2025",B:B, "2022")+SUMIFS(D:D,C:C, "6",A:A, "2025",B:B, "2023"))/T14 -> 0.158048078
A81: 2019 | B81: 2002 | C81: 6 | D81: 24900.80078 | G81: 2031 | H81: =M137 -> 2007-2009 | I81: =N137 -> 0.01105863968 | J81: =O137 -> 0.03866661043 | M81: 2024-2050 | N81: =( SUMIFS(D:D,C:C, "4",A:A, "2025",B:B, "2024")+SUMIFS(D:D,C:C, "4",A:A, "2025",B:B, "2025"))/S14 -> 0.1558981159 | O81: =( SUMIFS(D:D,C:C, "6",A:A, "2025",B:B, "2024")+SUMIFS(D:D,C:C, "6",A:A, "2025",B:B, "2025"))/T14 -> 0.1008601374
A82: 2019 | B82: 2001 | C82: 6 | D82: 40686.80078 | G82: 2031 | H82: 2010-2012 | I82: 0.01847222941 | J82: 0.04668374749 | N82: =SUM(N76:N81) -> 1 | O82: =SUM(O76:O81) -> 1
A83: 2019 | B83: 2000 | C83: 6 | D83: 62995.10156 | G83: 2031 | H83: 2013-2020 | I83: 0.2159059783 | J83: 0.3244649453
A84: 2019 | B84: 1999 | C84: 6 | D84: 50705.60156 | G84: 2031 | H84: 2021-2023 | I84: 0.15605022 | J84: 0.1413086552 | M84: 2026 Fractions
A85: 2019 | B85: 1998 | C85: 6 | D85: 37146.5 | G85: 2031 | H85: 2024-2050 | I85: 0.5889504779 | J85: 0.3917621764 | M85: Model Year Group | N85: Operating Hours | O85: No. of Trucks
A86: 2019 | B86: 1997 | C86: 6 | D86: 26199.69922 | G86: 2032 | H86: 2006 or earlier | I86: =N146 -> 0.007238899629 | J86: =O146 -> 0.04907088298 | M86: 2006 or earlier | N86: =( SUMIFS(D:D,C:C, "4",A:A, "2026",B:B, "2006")+ SUMIFS(D:D,C:C, "4",A:A, "2026",B:B, "2005")+ SUMIFS(D:D,C:C, "4",A:A, "2026",B:B, "2004")+ SUMIFS(D:D,C:C, "4",A:A, "2026",B:B, "2003")+ SUMIFS(D:D,C:C, "4",A:A, "2026",B:B, "2002")+ SUMIFS(D:D,C:C, "4",A:A, "2026",B:B, "2001")+SUMIFS(D:D,C:C, "4",A:A, "2026",B:B, "2000")+SUMIFS(D:D,C:C, "4",A:A, "2026",B:B, "1999")+SUMIFS(D:D,C:C, "4",A:A, "2026",B:B, "1998")+SUMIFS(D:D,C:C, "4",A:A, "2026",B:B, "1997")+SUMIFS(D:D,C:C, "4",A:A, "2026",B:B, "1996"))/S15 -> 0.03531165197 | O86: =( SUMIFS(D:D,C:C, "6",A:A, "2026",B:B, "2006")+ SUMIFS(D:D,C:C, "6",A:A, "2026",B:B, "2005")+ SUMIFS(D:D,C:C, "6",A:A, "2026",B:B, "2004")+ SUMIFS(D:D,C:C, "6",A:A, "2026",B:B, "2003")+ SUMIFS(D:D,C:C, "6",A:A, "2026",B:B, "2002")+ SUMIFS(D:D,C:C, "6",A:A, "2026",B:B, "2001")+SUMIFS(D:D,C:C, "6",A:A, "2026",B:B, "2000")+SUMIFS(D:D,C:C, "6",A:A, "2026",B:B, "1999")+SUMIFS(D:D,C:C, "6",A:A, "2026",B:B, "1998")+SUMIFS(D:D,C:C, "6",A:A, "2026",B:B, "1997")+SUMIFS(D:D,C:C, "6",A:A, "2026",B:B, "1996"))/T15 -> 0.1398909007
A87: 2019 | B87: 1996 | C87: 6 | D87: 27709.30078 | G87: 2032 | H87: 2007-2009 | I87: =N147 -> 0.008914723122 | J87: =O147 -> 0.03456243044 | M87: 2007-2009 | N87: =( SUMIFS(D:D,C:C, "4",A:A, "2026",B:B, "2007")+ SUMIFS(D:D,C:C, "4",A:A, "2026",B:B, "2008")+ SUMIFS(D:D,C:C, "4",A:A, "2026",B:B, "2009"))/S15 -> 0.02705122677 | O87: =( SUMIFS(D:D,C:C, "6",A:A, "2026",B:B, "2007")+ SUMIFS(D:D,C:C, "6",A:A, "2026",B:B, "2008")+ SUMIFS(D:D,C:C, "6",A:A, "2026",B:B, "2009"))/T15 -> 0.0641549229
A88: 2019 | B88: 1995 | C88: 6 | D88: 25213.09961 | G88: 2032 | H88: 2010-2012 | I88: 0.01558166417 | J88: 0.04227769883 | M88: 2010-2012 | N88: =( SUMIFS(D:D,C:C, "4",A:A, "2026",B:B, "2010")+ SUMIFS(D:D,C:C, "4",A:A, "2026",B:B, "2011")+ SUMIFS(D:D,C:C, "4",A:A, "2026",B:B, "2012"))/S15 -> 0.0415960317 | O88: =( SUMIFS(D:D,C:C, "6",A:A, "2026",B:B, "2010")+ SUMIFS(D:D,C:C, "6",A:A, "2026",B:B, "2011")+ SUMIFS(D:D,C:C, "6",A:A, "2026",B:B, "2012"))/T15 -> 0.06967499971
A89: 2019 | B89: 1994 | C89: 6 | D89: 21347.40039 | G89: 2032 | H89: 2013-2020 | I89: 0.1838903582 | J89: 0.3032159443 | M89: 2013-2020 | N89: =( SUMIFS(D:D,C:C, "4",A:A, "2026",B:B, "2013")+ SUMIFS(D:D,C:C, "4",A:A, "2026",B:B, "2014")+ SUMIFS(D:D,C:C, "4",A:A, "2026",B:B, "2015")+SUMIFS(D:D,C:C, "4",A:A, "2026",B:B, "2016")+SUMIFS(D:D,C:C, "4",A:A, "2026",B:B, "2017")+SUMIFS(D:D,C:C, "4",A:A, "2026",B:B, "2018")+SUMIFS(D:D,C:C, "4",A:A, "2026",B:B, "2019")+SUMIFS(D:D,C:C, "4",A:A, "2026",B:B, "2020"))/S15 -> 0.4294694676 | O89: =( SUMIFS(D:D,C:C, "6",A:A, "2026",B:B, "2013")+ SUMIFS(D:D,C:C, "6",A:A, "2026",B:B, "2014")+ SUMIFS(D:D,C:C, "6",A:A, "2026",B:B, "2015")+SUMIFS(D:D,C:C, "6",A:A, "2026",B:B, "2016")+SUMIFS(D:D,C:C, "6",A:A, "2026",B:B, "2017")+SUMIFS(D:D,C:C, "6",A:A, "2026",B:B, "2018")+SUMIFS(D:D,C:C, "6",A:A, "2026",B:B, "2019")+SUMIFS(D:D,C:C, "6",A:A, "2026",B:B, "2020"))/T15 -> 0.418135138
A90: 2019 | B90: 1993 | C90: 6 | D90: 16617.09961 | G90: 2032 | H90: 2021-2023 | I90: 0.1396292996 | J90: 0.135770261 | M90: 2021-2023 | N90: =( SUMIFS(D:D,C:C, "4",A:A, "2026",B:B, "2021")+ SUMIFS(D:D,C:C, "4",A:A, "2026",B:B, "2022")+ SUMIFS(D:D,C:C, "4",A:A, "2026",B:B, "2023"))/S15 -> 0.2325303552 | O90: =( SUMIFS(D:D,C:C, "6",A:A, "2026",B:B, "2021")+SUMIFS(D:D,C:C, "6",A:A, "2026",B:B, "2022")+SUMIFS(D:D,C:C, "6",A:A, "2026",B:B, "2023"))/T15 -> 0.1576659438
A91: 2019 | B91: 1992 | C91: 6 | D91: 11148.7002 | G91: 2032 | H91: 2024-2050 | I91: 0.6447450552 | J91: 0.4351027824 | M91: 2024-2050 | N91: =( SUMIFS(D:D,C:C, "4",A:A, "2026",B:B, "2024")+SUMIFS(D:D,C:C, "4",A:A, "2026",B:B, "2025")+SUMIFS(D:D,C:C, "4",A:A, "2026",B:B, "2026"))/S15 -> 0.2340412668 | O91: =( SUMIFS(D:D,C:C, "6",A:A, "2026",B:B, "2024")+SUMIFS(D:D,C:C, "6",A:A, "2026",B:B, "2025")+SUMIFS(D:D,C:C, "6",A:A, "2026",B:B, "2026"))/T15 -> 0.1504780949
A92: 2019 | B92: 1991 | C92: 6 | D92: 9906.230469 | G92: 2033 | H92: 2006 or earlier | I92: =N156 -> 0.00520314007 | J92: =O156 -> 0.04040688871 | N92: =SUM(N86:N91) -> 1 | O92: =SUM(O86:O91) -> 1
A93: 2019 | B93: 1990 | C93: 6 | D93: 11225 | G93: 2033 | H93: 2007-2009 | I93: =N157 -> 0.006944815073 | J93: =O157 -> 0.03040730339
A94: 2019 | B94: 1989 | C94: 6 | D94: 25657.19922 | G94: 2033 | H94: 2010-2012 | I94: 0.01288319939 | J94: 0.03796638772 | M94: 2027 Fractions
A95: 2019 | B95: 2019 | C95: 4 | D95: 307606996 | G95: 2033 | H95: 2013-2020 | I95: 0.154658536 | J95: 0.2810896416 | M95: Model Year Group | N95: Operating Hours | O95: No. of Trucks
A96: 2019 | B96: 2018 | C96: 4 | D96: 289668808 | G96: 2033 | H96: 2021-2023 | I96: 0.123204085 | J96: 0.1301798747 | M96: 2006 or earlier | N96: =( SUMIFS(D:D,C:C, "4",A:A, "2027",B:B, "2006")+ SUMIFS(D:D,C:C, "4",A:A, "2027",B:B, "2005")+ SUMIFS(D:D,C:C, "4",A:A, "2027",B:B, "2004")+ SUMIFS(D:D,C:C, "4",A:A, "2027",B:B, "2003")+ SUMIFS(D:D,C:C, "4",A:A, "2027",B:B, "2002")+ SUMIFS(D:D,C:C, "4",A:A, "2027",B:B, "2001")+SUMIFS(D:D,C:C, "4",A:A, "2027",B:B, "2000")+SUMIFS(D:D,C:C, "4",A:A, "2027",B:B, "1999")+SUMIFS(D:D,C:C, "4",A:A, "2027",B:B, "1998")+SUMIFS(D:D,C:C, "4",A:A, "2027",B:B, "1997"))/S16 -> 0.02829691936 | O96: =( SUMIFS(D:D,C:C, "6",A:A, "2027",B:B, "2006")+ SUMIFS(D:D,C:C, "6",A:A, "2027",B:B, "2005")+ SUMIFS(D:D,C:C, "6",A:A, "2027",B:B, "2004")+ SUMIFS(D:D,C:C, "6",A:A, "2027",B:B, "2003")+ SUMIFS(D:D,C:C, "6",A:A, "2027",B:B, "2002")+ SUMIFS(D:D,C:C, "6",A:A, "2027",B:B, "2001")+SUMIFS(D:D,C:C, "6",A:A, "2027",B:B, "2000")+SUMIFS(D:D,C:C, "6",A:A, "2027",B:B, "1999")+SUMIFS(D:D,C:C, "6",A:A, "2027",B:B, "1998")+SUMIFS(D:D,C:C, "6",A:A, "2027",B:B, "1997"))/T16 -> 0.1213885123
A97: 2019 | B97: 2017 | C97: 4 | D97: 337115092 | G97: 2033 | H97: 2024-2050 | I97: 0.6971062245 | J97: 0.4799499038 | M97: 2007-2009 | N97: =( SUMIFS(D:D,C:C, "4",A:A, "2027",B:B, "2007")+ SUMIFS(D:D,C:C, "4",A:A, "2027",B:B, "2008")+ SUMIFS(D:D,C:C, "4",A:A, "2027",B:B, "2009"))/S16 -> 0.02309894485 | O97: =( SUMIFS(D:D,C:C, "6",A:A, "2027",B:B, "2007")+ SUMIFS(D:D,C:C, "6",A:A, "2027",B:B, "2008")+ SUMIFS(D:D,C:C, "6",A:A, "2027",B:B, "2009"))/T16 -> 0.05832105367
A98: 2019 | B98: 2016 | C98: 4 | D98: 340956408 | G98: 2034 | H98: 2006 or earlier | I98: =N166 -> 0.003636500735 | J98: =O166 -> 0.03271559895 | M98: 2010-2012 | N98: =( SUMIFS(D:D,C:C, "4",A:A, "2027",B:B, "2010")+ SUMIFS(D:D,C:C, "4",A:A, "2027",B:B, "2011")+ SUMIFS(D:D,C:C, "4",A:A, "2027",B:B, "2012"))/S16 -> 0.03456353723 | O98: =( SUMIFS(D:D,C:C, "6",A:A, "2027",B:B, "2010")+ SUMIFS(D:D,C:C, "6",A:A, "2027",B:B, "2011")+ SUMIFS(D:D,C:C, "6",A:A, "2027",B:B, "2012"))/T16 -> 0.06509704297
A99: 2019 | B99: 2015 | C99: 4 | D99: 418346804 | G99: 2034 | H99: 2007-2009 | I99: =N167 -> 0.005318644754 | J99: 0.02679412622 | M99: 2013-2020 | N99: =( SUMIFS(D:D,C:C, "4",A:A, "2027",B:B, "2013")+ SUMIFS(D:D,C:C, "4",A:A, "2027",B:B, "2014")+ SUMIFS(D:D,C:C, "4",A:A, "2027",B:B, "2015")+SUMIFS(D:D,C:C, "4",A:A, "2027",B:B, "2016")+SUMIFS(D:D,C:C, "4",A:A, "2027",B:B, "2017")+SUMIFS(D:D,C:C, "4",A:A, "2027",B:B, "2018")+SUMIFS(D:D,C:C, "4",A:A, "2027",B:B, "2019")+SUMIFS(D:D,C:C, "4",A:A, "2027",B:B, "2020"))/S16 -> 0.3823219719 | O99: =( SUMIFS(D:D,C:C, "6",A:A, "2027",B:B, "2013")+ SUMIFS(D:D,C:C, "6",A:A, "2027",B:B, "2014")+ SUMIFS(D:D,C:C, "6",A:A, "2027",B:B, "2015")+SUMIFS(D:D,C:C, "6",A:A, "2027",B:B, "2016")+SUMIFS(D:D,C:C, "6",A:A, "2027",B:B, "2017")+SUMIFS(D:D,C:C, "6",A:A, "2027",B:B, "2018")+SUMIFS(D:D,C:C, "6",A:A, "2027",B:B, "2019")+SUMIFS(D:D,C:C, "6",A:A, "2027",B:B, "2020"))/T16 -> 0.4001006625
A100: 2019 | B100: 2014 | C100: 4 | D100: 346229396 | G100: 2034 | H100: 2010-2012 | I100: 0.0105512033 | J100: 0.03406352221 | M100: 2021-2023 | N100: =( SUMIFS(D:D,C:C, "4",A:A, "2027",B:B, "2021")+ SUMIFS(D:D,C:C, "4",A:A, "2027",B:B, "2022")+ SUMIFS(D:D,C:C, "4",A:A, "2027",B:B, "2023"))/S16 -> 0.2190508088 | O100: =( SUMIFS(D:D,C:C, "6",A:A, "2027",B:B, "2021")+SUMIFS(D:D,C:C, "6",A:A, "2027",B:B, "2022")+SUMIFS(D:D,C:C, "6",A:A, "2027",B:B, "2023"))/T16 -> 0.1558216817
A101: 2019 | B101: 2013 | C101: 4 | D101: 235999800 | G101: 2034 | H101: 2013-2020 | I101: 0.129849938 | J101: 0.2596351443 | M101: 2024-2050 | N101: =( SUMIFS(D:D,C:C, "4",A:A, "2027",B:B, "2024")+SUMIFS(D:D,C:C, "4",A:A, "2027",B:B, "2025")+SUMIFS(D:D,C:C, "4",A:A, "2027",B:B, "2026")+SUMIFS(D:D,C:C, "4",A:A, "2027",B:B, "2027"))/S16 -> 0.3126678178 | O101: =( SUMIFS(D:D,C:C, "6",A:A, "2027",B:B, "2024")+SUMIFS(D:D,C:C, "6",A:A, "2027",B:B, "2025")+SUMIFS(D:D,C:C, "6",A:A, "2027",B:B, "2026")+SUMIFS(D:D,C:C, "6",A:A, "2027",B:B, "2027"))/T16 -> 0.1992710469
A102: 2019 | B102: 2012 | C102: 4 | D102: 223723300 | G102: 2034 | H102: 2021-2023 | I102: 0.1067701561 | J102: 0.123679704 | N102: =SUM(N96:N101) -> 1 | O102: =SUM(O96:O101) -> 1
A103: 2019 | B103: 2011 | C103: 4 | D103: 109766500 | G103: 2034 | H103: 2024-2050 | I103: 0.7438735572 | J103: 0.5231119043
A104: 2019 | B104: 2010 | C104: 4 | D104: 82994410 | G104: 2035 | H104: 2006 or earlier | I104: =N176 -> 0.002214715435 | J104: =O176 -> 0.0230177697 | M104: 2028 Fractions
A105: 2019 | B105: 2009 | C105: 4 | D105: 93950160 | G105: 2035 | H105: 2007-2009 | I105: =N177 -> 0.004005540153 | J105: 0.02383630837 | M105: Model Year Group | N105: Operating Hours | O105: No. of Trucks
A106: 2019 | B106: 2008 | C106: 4 | D106: 53491740 | G106: 2035 | H106: 2010-2012 | I106: 0.008576681557 | J106: 0.03069074595 | M106: 2006 or earlier | N106: =( SUMIFS(D:D,C:C, "4",A:A, "2028",B:B, "2006")+ SUMIFS(D:D,C:C, "4",A:A, "2028",B:B, "2005")+ SUMIFS(D:D,C:C, "4",A:A, "2028",B:B, "2004")+ SUMIFS(D:D,C:C, "4",A:A, "2028",B:B, "2003")+ SUMIFS(D:D,C:C, "4",A:A, "2028",B:B, "2002")+ SUMIFS(D:D,C:C, "4",A:A, "2028",B:B, "2001")+SUMIFS(D:D,C:C, "4",A:A, "2028",B:B, "2000")+SUMIFS(D:D,C:C, "4",A:A, "2028",B:B, "1999")+SUMIFS(D:D,C:C, "4",A:A, "2028",B:B, "1998"))/S17 -> 0.02207583784 | O106: =( SUMIFS(D:D,C:C, "6",A:A, "2028",B:B, "2006")+ SUMIFS(D:D,C:C, "6",A:A, "2028",B:B, "2005")+ SUMIFS(D:D,C:C, "6",A:A, "2028",B:B, "2004")+ SUMIFS(D:D,C:C, "6",A:A, "2028",B:B, "2003")+ SUMIFS(D:D,C:C, "6",A:A, "2028",B:B, "2002")+ SUMIFS(D:D,C:C, "6",A:A, "2028",B:B, "2001")+SUMIFS(D:D,C:C, "6",A:A, "2028",B:B, "2000")+SUMIFS(D:D,C:C, "6",A:A, "2028",B:B, "1999")+SUMIFS(D:D,C:C, "6",A:A, "2028",B:B, "1998"))/T17 -> 0.1027145148
A107: 2019 | B107: 2007 | C107: 4 | D107: 184881400 | G107: 2035 | H107: 2013-2020 | I107: 0.1094854623 | J107: 0.2404743713 | M107: 2007-2009 | N107: =( SUMIFS(D:D,C:C, "4",A:A, "2028",B:B, "2007")+ SUMIFS(D:D,C:C, "4",A:A, "2028",B:B, "2008")+ SUMIFS(D:D,C:C, "4",A:A, "2028",B:B, "2009"))/S17 -> 0.01946453241 | O107: =( SUMIFS(D:D,C:C, "6",A:A, "2028",B:B, "2007")+ SUMIFS(D:D,C:C, "6",A:A, "2028",B:B, "2008")+ SUMIFS(D:D,C:C, "6",A:A, "2028",B:B, "2009"))/T17 -> 0.05272817655
A108: 2019 | B108: 2006 | C108: 4 | D108: 120607900 | G108: 2035 | H108: 2021-2023 | I108: 0.09152795623 | J108: 0.1175609376 | M108: 2010-2012 | N108: =( SUMIFS(D:D,C:C, "4",A:A, "2028",B:B, "2010")+ SUMIFS(D:D,C:C, "4",A:A, "2028",B:B, "2011")+ SUMIFS(D:D,C:C, "4",A:A, "2028",B:B, "2012"))/S17 -> 0.0286861843 | O108: =( SUMIFS(D:D,C:C, "6",A:A, "2028",B:B, "2010")+ SUMIFS(D:D,C:C, "6",A:A, "2028",B:B, "2011")+ SUMIFS(D:D,C:C, "6",A:A, "2028",B:B, "2012"))/T17 -> 0.06018660555
A109: 2019 | B109: 2005 | C109: 4 | D109: 98006090 | G109: 2035 | H109: 2024-2050 | I109: 0.7841896443 | J109: 0.5644198671 | M109: 2013-2020 | N109: =( SUMIFS(D:D,C:C, "4",A:A, "2028",B:B, "2013")+ SUMIFS(D:D,C:C, "4",A:A, "2028",B:B, "2014")+ SUMIFS(D:D,C:C, "4",A:A, "2028",B:B, "2015")+SUMIFS(D:D,C:C, "4",A:A, "2028",B:B, "2016")+SUMIFS(D:D,C:C, "4",A:A, "2028",B:B, "2017")+SUMIFS(D:D,C:C, "4",A:A, "2028",B:B, "2018")+SUMIFS(D:D,C:C, "4",A:A, "2028",B:B, "2019")+SUMIFS(D:D,C:C, "4",A:A, "2028",B:B, "2020"))/S17 -> 0.3362249167 | O109: =( SUMIFS(D:D,C:C, "6",A:A, "2028",B:B, "2013")+ SUMIFS(D:D,C:C, "6",A:A, "2028",B:B, "2014")+ SUMIFS(D:D,C:C, "6",A:A, "2028",B:B, "2015")+SUMIFS(D:D,C:C, "6",A:A, "2028",B:B, "2016")+SUMIFS(D:D,C:C, "6",A:A, "2028",B:B, "2017")+SUMIFS(D:D,C:C, "6",A:A, "2028",B:B, "2018")+SUMIFS(D:D,C:C, "6",A:A, "2028",B:B, "2019")+SUMIFS(D:D,C:C, "6",A:A, "2028",B:B, "2020"))/T17 -> 0.3817934032
A110: 2019 | B110: 2004 | C110: 4 | D110: 47435100 | G110: 2036 | H110: 2006 or earlier | I110: =N186 -> 0.00119357313 | J110: =O186 -> 0.0141394332 | M110: 2021-2023 | N110: =( SUMIFS(D:D,C:C, "4",A:A, "2028",B:B, "2021")+ SUMIFS(D:D,C:C, "4",A:A, "2028",B:B, "2022")+ SUMIFS(D:D,C:C, "4",A:A, "2028",B:B, "2023"))/S17 -> 0.2045800578 | O110: =( SUMIFS(D:D,C:C, "6",A:A, "2028",B:B, "2021")+SUMIFS(D:D,C:C, "6",A:A, "2028",B:B, "2022")+SUMIFS(D:D,C:C, "6",A:A, "2028",B:B, "2023"))/T17 -> 0.1535802827
A111: 2019 | B111: 2003 | C111: 4 | D111: 36312890 | G111: 2036 | H111: 2007-2009 | I111: =N187 -> 0.002894257802 | J111: 0.02104091712 | M111: 2024-2050 | N111: =( SUMIFS(D:D,C:C, "4",A:A, "2028",B:B, "2024")+SUMIFS(D:D,C:C, "4",A:A, "2028",B:B, "2025")+SUMIFS(D:D,C:C, "4",A:A, "2028",B:B, "2026")+SUMIFS(D:D,C:C, "4",A:A, "2028",B:B, "2027")+SUMIFS(D:D,C:C, "4",A:A, "2028",B:B, "2028"))/S17 -> 0.3889684709 | O111: =( SUMIFS(D:D,C:C, "6",A:A, "2028",B:B, "2024")+SUMIFS(D:D,C:C, "6",A:A, "2028",B:B, "2025")+SUMIFS(D:D,C:C, "6",A:A, "2028",B:B, "2026")+SUMIFS(D:D,C:C, "6",A:A, "2028",B:B, "2027")+SUMIFS(D:D,C:C, "6",A:A, "2028",B:B, "2028"))/T17 -> 0.2489970172
A112: 2019 | B112: 2002 | C112: 4 | D112: 22066480 | G112: 2036 | H112: 2010-2012 | I112: 0.006865853046 | J112: 0.02757600549 | N112: =SUM(N106:N111) -> 1 | O112: =SUM(O106:O111) -> 1
A113: 2019 | B113: 2001 | C113: 4 | D113: 33765600 | G113: 2036 | H113: 2013-2020 | I113: 0.09249578358 | J113: 0.2215220962
A114: 2019 | B114: 2000 | C114: 4 | D114: 48733180 | G114: 2036 | H114: 2021-2023 | I114: 0.07712691442 | J114: 0.1113428765 | M114: 2029 Fractions
A115: 2019 | B115: 1999 | C115: 4 | D115: 36371970 | G115: 2036 | H115: 2024-2050 | I115: 0.819423618 | J115: 0.6043786715 | M115: Model Year Group | N115: Operating Hours | O115: No. of Trucks
A116: 2019 | B116: 1998 | C116: 4 | D116: 24554960 | G116: 2037 | H116: 2006 or earlier | I116: =N196 -> 0 | J116: =O196 -> 0 | M116: 2006 or earlier | N116: =( SUMIFS(D:D,C:C, "4",A:A, "2029",B:B, "2006")+ SUMIFS(D:D,C:C, "4",A:A, "2029",B:B, "2005")+ SUMIFS(D:D,C:C, "4",A:A, "2029",B:B, "2004")+ SUMIFS(D:D,C:C, "4",A:A, "2029",B:B, "2003")+ SUMIFS(D:D,C:C, "4",A:A, "2029",B:B, "2002")+ SUMIFS(D:D,C:C, "4",A:A, "2029",B:B, "2001")+SUMIFS(D:D,C:C, "4",A:A, "2029",B:B, "2000")+SUMIFS(D:D,C:C, "4",A:A, "2029",B:B, "1999"))/S18 -> 0.01687674284 | O116: =( SUMIFS(D:D,C:C, "6",A:A, "2029",B:B, "2006")+ SUMIFS(D:D,C:C, "6",A:A, "2029",B:B, "2005")+ SUMIFS(D:D,C:C, "6",A:A, "2029",B:B, "2004")+ SUMIFS(D:D,C:C, "6",A:A, "2029",B:B, "2003")+ SUMIFS(D:D,C:C, "6",A:A, "2029",B:B, "2002")+ SUMIFS(D:D,C:C, "6",A:A, "2029",B:B, "2001")+SUMIFS(D:D,C:C, "6",A:A, "2029",B:B, "2000")+SUMIFS(D:D,C:C, "6",A:A, "2029",B:B, "1999"))/T18 -> 0.08492423806
A117: 2019 | B117: 1997 | C117: 4 | D117: 15844120 | G117: 2037 | H117: 2007-2009 | I117: =N197 -> 0.00231654747 | J117: 0.02247916578 | M117: 2007-2009 | N117: =( SUMIFS(D:D,C:C, "4",A:A, "2029",B:B, "2007")+ SUMIFS(D:D,C:C, "4",A:A, "2029",B:B, "2008")+ SUMIFS(D:D,C:C, "4",A:A, "2029",B:B, "2009"))/S18 -> 0.01630085013 | O117: =( SUMIFS(D:D,C:C, "6",A:A, "2029",B:B, "2007")+ SUMIFS(D:D,C:C, "6",A:A, "2029",B:B, "2008")+ SUMIFS(D:D,C:C, "6",A:A, "2029",B:B, "2009"))/T18 -> 0.04772945947
A118: 2019 | B118: 1996 | C118: 4 | D118: 15197390 | G118: 2037 | H118: 2010-2012 | I118: 0.005426031379 | J118: 0.02486863396 | M118: 2010-2012 | N118: =( SUMIFS(D:D,C:C, "4",A:A, "2029",B:B, "2010")+ SUMIFS(D:D,C:C, "4",A:A, "2029",B:B, "2011")+ SUMIFS(D:D,C:C, "4",A:A, "2029",B:B, "2012"))/S18 -> 0.02503276502 | O118: =( SUMIFS(D:D,C:C, "6",A:A, "2029",B:B, "2010")+ SUMIFS(D:D,C:C, "6",A:A, "2029",B:B, "2011")+ SUMIFS(D:D,C:C, "6",A:A, "2029",B:B, "2012"))/T18 -> 0.05565416917
A119: 2019 | B119: 1995 | C119: 4 | D119: 12409160 | G119: 2037 | H119: 2013-2020 | I119: 0.07907490375 | J119: 0.2042080636 | M119: 2013-2020 | N119: =( SUMIFS(D:D,C:C, "4",A:A, "2029",B:B, "2013")+ SUMIFS(D:D,C:C, "4",A:A, "2029",B:B, "2014")+ SUMIFS(D:D,C:C, "4",A:A, "2029",B:B, "2015")+SUMIFS(D:D,C:C, "4",A:A, "2029",B:B, "2016")+SUMIFS(D:D,C:C, "4",A:A, "2029",B:B, "2017")+SUMIFS(D:D,C:C, "4",A:A, "2029",B:B, "2018")+SUMIFS(D:D,C:C, "4",A:A, "2029",B:B, "2019")+SUMIFS(D:D,C:C, "4",A:A, "2029",B:B, "2020"))/S18 -> 0.2924316614 | O119: =( SUMIFS(D:D,C:C, "6",A:A, "2029",B:B, "2013")+ SUMIFS(D:D,C:C, "6",A:A, "2029",B:B, "2014")+ SUMIFS(D:D,C:C, "6",A:A, "2029",B:B, "2015")+SUMIFS(D:D,C:C, "6",A:A, "2029",B:B, "2016")+SUMIFS(D:D,C:C, "6",A:A, "2029",B:B, "2017")+SUMIFS(D:D,C:C, "6",A:A, "2029",B:B, "2018")+SUMIFS(D:D,C:C, "6",A:A, "2029",B:B, "2019")+SUMIFS(D:D,C:C, "6",A:A, "2029",B:B, "2020"))/T18 -> 0.3635258256
A120: 2019 | B120: 1994 | C120: 4 | D120: 9304997 | G120: 2037 | H120: 2021-2023 | I120: 0.06392465774 | J120: 0.1054512778 | M120: 2021-2023 | N120: =( SUMIFS(D:D,C:C, "4",A:A, "2029",B:B, "2021")+ SUMIFS(D:D,C:C, "4",A:A, "2029",B:B, "2022")+ SUMIFS(D:D,C:C, "4",A:A, "2029",B:B, "2023"))/S18 -> 0.1886975527 | O120: =( SUMIFS(D:D,C:C, "6",A:A, "2029",B:B, "2021")+SUMIFS(D:D,C:C, "6",A:A, "2029",B:B, "2022")+SUMIFS(D:D,C:C, "6",A:A, "2029",B:B, "2023"))/T18 -> 0.1501590512
A121: 2019 | B121: 1993 | C121: 4 | D121: 6307833 | G121: 2037 | H121: 2024-2050 | I121: 0.8492578597 | J121: 0.6429928588 | M121: 2024-2050 | N121: =( SUMIFS(D:D,C:C, "4",A:A, "2029",B:B, "2024")+SUMIFS(D:D,C:C, "4",A:A, "2029",B:B, "2025")+SUMIFS(D:D,C:C, "4",A:A, "2029",B:B, "2026")+SUMIFS(D:D,C:C, "4",A:A, "2029",B:B, "2027")+SUMIFS(D:D,C:C, "4",A:A, "2029",B:B, "2028")+SUMIFS(D:D,C:C, "4",A:A, "2029",B:B, "2029"))/S18 -> 0.460660428 | O121: =( SUMIFS(D:D,C:C, "6",A:A, "2029",B:B, "2024")+SUMIFS(D:D,C:C, "6",A:A, "2029",B:B, "2025")+SUMIFS(D:D,C:C, "6",A:A, "2029",B:B, "2026")+SUMIFS(D:D,C:C, "6",A:A, "2029",B:B, "2027")+SUMIFS(D:D,C:C, "6",A:A, "2029",B:B, "2028")+SUMIFS(D:D,C:C, "6",A:A, "2029",B:B, "2029"))/T18 -> 0.2980072565
A122: 2019 | B122: 1992 | C122: 4 | D122: 3604508 | G122: 2038 | H122: 2006 or earlier | I122: =N206 -> 0 | J122: =O206 -> 0 | N122: =SUM(N116:N121) -> 1 | O122: =SUM(O116:O121) -> 1
A123: 2019 | B123: 1991 | C123: 4 | D123: 2645219 | G123: 2038 | H123: 2007-2009 | I123: =N207 -> 0.001735220487 | J123: 0.01878403203
A124: 2019 | B124: 1990 | C124: 4 | D124: 2365549 | G124: 2038 | H124: 2010-2012 | I124: 0.004132101449 | J124: 0.02194294814 | M124: 2030 Fractions
A125: 2019 | B125: 1989 | C125: 4 | D125: 3962825 | G125: 2038 | H125: 2013-2020 | I125: 0.0663519022 | J125: 0.1849336061 | M125: Model Year Group | N125: Operating Hours | O125: No. of Trucks
A126: 2020 | B126: 2020 | C126: 6 | D126: 95704.5 | G126: 2038 | H126: 2021-2023 | I126: 0.05308935664 | J126: 0.09845563122 | M126: 2006 or earlier | N126: =( SUMIFS(D:D,C:C, "4",A:A, "2030",B:B, "2006")+ SUMIFS(D:D,C:C, "4",A:A, "2030",B:B, "2005")+ SUMIFS(D:D,C:C, "4",A:A, "2030",B:B, "2004")+ SUMIFS(D:D,C:C, "4",A:A, "2030",B:B, "2003")+ SUMIFS(D:D,C:C, "4",A:A, "2030",B:B, "2002")+ SUMIFS(D:D,C:C, "4",A:A, "2030",B:B, "2001")+SUMIFS(D:D,C:C, "4",A:A, "2030",B:B, "2000"))/S19 -> 0.01265618582 | O126: =( SUMIFS(D:D,C:C, "6",A:A, "2030",B:B, "2006")+ SUMIFS(D:D,C:C, "6",A:A, "2030",B:B, "2005")+ SUMIFS(D:D,C:C, "6",A:A, "2030",B:B, "2004")+ SUMIFS(D:D,C:C, "6",A:A, "2030",B:B, "2003")+ SUMIFS(D:D,C:C, "6",A:A, "2030",B:B, "2002")+ SUMIFS(D:D,C:C, "6",A:A, "2030",B:B, "2001")+SUMIFS(D:D,C:C, "6",A:A, "2030",B:B, "2000"))/T19 -> 0.06848648165
A127: 2020 | B127: 2019 | C127: 6 | D127: 102977 | G127: 2038 | H127: 2024-2050 | I127: 0.8746914192 | J127: 0.6758837825 | M127: 2007-2009 | N127: =( SUMIFS(D:D,C:C, "4",A:A, "2030",B:B, "2007")+ SUMIFS(D:D,C:C, "4",A:A, "2030",B:B, "2008")+ SUMIFS(D:D,C:C, "4",A:A, "2030",B:B, "2009"))/S19 -> 0.01350331512 | O127: =( SUMIFS(D:D,C:C, "6",A:A, "2030",B:B, "2007")+ SUMIFS(D:D,C:C, "6",A:A, "2030",B:B, "2008")+ SUMIFS(D:D,C:C, "6",A:A, "2030",B:B, "2009"))/T19 -> 0.04306199077
A128: 2020 | B128: 2018 | C128: 6 | D128: 96972.20312 | G128: 2039 | H128: 2006 or earlier | I128: =N216 -> 0 | J128: =O216 -> 0 | M128: 2010-2012 | N128: =( SUMIFS(D:D,C:C, "4",A:A, "2030",B:B, "2010")+ SUMIFS(D:D,C:C, "4",A:A, "2030",B:B, "2011")+ SUMIFS(D:D,C:C, "4",A:A, "2030",B:B, "2012"))/S19 -> 0.02159891816 | O128: =( SUMIFS(D:D,C:C, "6",A:A, "2030",B:B, "2010")+ SUMIFS(D:D,C:C, "6",A:A, "2030",B:B, "2011")+ SUMIFS(D:D,C:C, "6",A:A, "2030",B:B, "2012"))/T19 -> 0.05113483471
A129: 2020 | B129: 2017 | C129: 6 | D129: 112856 | G129: 2039 | H129: 2007-2009 | I129: =N217 -> 0.001202250709 | J129: 0.01413945967 | M129: 2013-2020 | N129: =( SUMIFS(D:D,C:C, "4",A:A, "2030",B:B, "2013")+ SUMIFS(D:D,C:C, "4",A:A, "2030",B:B, "2014")+ SUMIFS(D:D,C:C, "4",A:A, "2030",B:B, "2015")+SUMIFS(D:D,C:C, "4",A:A, "2030",B:B, "2016")+SUMIFS(D:D,C:C, "4",A:A, "2030",B:B, "2017")+SUMIFS(D:D,C:C, "4",A:A, "2030",B:B, "2018")+SUMIFS(D:D,C:C, "4",A:A, "2030",B:B, "2019")+SUMIFS(D:D,C:C, "4",A:A, "2030",B:B, "2020"))/S19 -> 0.2523640899 | O129: =( SUMIFS(D:D,C:C, "6",A:A, "2030",B:B, "2013")+ SUMIFS(D:D,C:C, "6",A:A, "2030",B:B, "2014")+ SUMIFS(D:D,C:C, "6",A:A, "2030",B:B, "2015")+SUMIFS(D:D,C:C, "6",A:A, "2030",B:B, "2016")+SUMIFS(D:D,C:C, "6",A:A, "2030",B:B, "2017")+SUMIFS(D:D,C:C, "6",A:A, "2030",B:B, "2018")+SUMIFS(D:D,C:C, "6",A:A, "2030",B:B, "2019")+SUMIFS(D:D,C:C, "6",A:A, "2030",B:B, "2020"))/T19 -> 0.3450647247
A130: 2020 | B130: 2016 | C130: 6 | D130: 114142 | G130: 2039 | H130: 2010-2012 | I130: 0.00307241173 | J130: 0.01943787472 | M130: 2021-2023 | N130: =( SUMIFS(D:D,C:C, "4",A:A, "2030",B:B, "2021")+ SUMIFS(D:D,C:C, "4",A:A, "2030",B:B, "2022")+ SUMIFS(D:D,C:C, "4",A:A, "2030",B:B, "2023"))/S19 -> 0.1725415594 | O130: =( SUMIFS(D:D,C:C, "6",A:A, "2030",B:B, "2021")+SUMIFS(D:D,C:C, "6",A:A, "2030",B:B, "2022")+SUMIFS(D:D,C:C, "6",A:A, "2030",B:B, "2023"))/T19 -> 0.1462539737
A131: 2020 | B131: 2015 | C131: 6 | D131: 145755 | G131: 2039 | H131: 2013-2020 | I131: 0.05524994608 | J131: 0.1675949413 | M131: 2024-2050 | N131: =( SUMIFS(D:D,C:C, "4",A:A, "2030",B:B, "2024")+SUMIFS(D:D,C:C, "4",A:A, "2030",B:B, "2025")+SUMIFS(D:D,C:C, "4",A:A, "2030",B:B, "2026")+SUMIFS(D:D,C:C, "4",A:A, "2030",B:B, "2027")+SUMIFS(D:D,C:C, "4",A:A, "2030",B:B, "2028")+SUMIFS(D:D,C:C, "4",A:A, "2030",B:B, "2029")+SUMIFS(D:D,C:C, "4",A:A, "2030",B:B, "2030"))/S19 -> 0.5273359316 | O131: =( SUMIFS(D:D,C:C, "6",A:A, "2030",B:B, "2024")+SUMIFS(D:D,C:C, "6",A:A, "2030",B:B, "2025")+SUMIFS(D:D,C:C, "6",A:A, "2030",B:B, "2026")+SUMIFS(D:D,C:C, "6",A:A, "2030",B:B, "2027")+SUMIFS(D:D,C:C, "6",A:A, "2030",B:B, "2028")+SUMIFS(D:D,C:C, "6",A:A, "2030",B:B, "2029")+SUMIFS(D:D,C:C, "6",A:A, "2030",B:B, "2030"))/T19 -> 0.3459979944
A132: 2020 | B132: 2014 | C132: 6 | D132: 125907 | G132: 2039 | H132: 2021-2023 | I132: 0.0448227284 | J132: 0.09148275962 | N132: =SUM(N126:N131) -> 1 | O132: =SUM(O126:O131) -> 1
A133: 2020 | B133: 2013 | C133: 6 | D133: 91197.60156 | G133: 2039 | H133: 2024-2050 | I133: 0.8956526631 | J133: 0.7073449647
A134: 2020 | B134: 2012 | C134: 6 | D134: 90888.79688 | G134: 2040 | H134: 2006 or earlier | I134: =N226 -> 0 | J134: =O226 -> 0 | M134: 2031
A135: 2020 | B135: 2011 | C135: 6 | D135: 47786.60156 | G135: 2040 | H135: 2007-2009 | I135: =N227 -> 0 | J135: 0 | M135: Model Year Group | N135: Operating Hours | O135: No. of Trucks
A136: 2020 | B136: 2010 | C136: 6 | D136: 38918.60156 | G136: 2040 | H136: 2010-2012 | I136: 0.003056587539 | J136: 0.0277094039 | M136: 2006 or earlier | N136: =( SUMIFS(D:D,C:C, "4",A:A, M134,B:B, "2006")+ SUMIFS(D:D,C:C, "4",A:A, M134,B:B, "2005")+ SUMIFS(D:D,C:C, "4",A:A, M134,B:B, "2004")+ SUMIFS(D:D,C:C, "4",A:A, M134,B:B, "2003")+ SUMIFS(D:D,C:C, "4",A:A, M134,B:B, "2002")+ SUMIFS(D:D,C:C, "4",A:A, M134,B:B, "2001")+SUMIFS(D:D,C:C, "4",A:A, M134,B:B, "2000"))/S$20 -> 0.009562454691 | O136: =( SUMIFS(D:D,C:C, "6",A:A, M134,B:B, "2006")+ SUMIFS(D:D,C:C, "6",A:A, M134,B:B, "2005")+ SUMIFS(D:D,C:C, "6",A:A, M134,B:B, "2004")+ SUMIFS(D:D,C:C, "6",A:A, M134,B:B, "2003")+ SUMIFS(D:D,C:C, "6",A:A, M134,B:B, "2002")+ SUMIFS(D:D,C:C, "6",A:A, M134,B:B, "2001")+SUMIFS(D:D,C:C, "6",A:A, M134,B:B, "2000"))/$T20 -> 0.0571138652
A137: 2020 | B137: 2009 | C137: 6 | D137: 47033.30078 | G137: 2040 | H137: 2013-2020 | I137: 0.04434234984 | J137: 0.1483733354 | M137: 2007-2009 | N137: =( SUMIFS(D:D,C:C, "4",A:A, M134,B:B, "2007")+ SUMIFS(D:D,C:C, "4",A:A, M134,B:B, "2008")+ SUMIFS(D:D,C:C, "4",A:A, M134,B:B, "2009"))/S$20 -> 0.01105863968 | O137: =( SUMIFS(D:D,C:C, "6",A:A, M134,B:B, "2007")+ SUMIFS(D:D,C:C, "6",A:A, M134,B:B, "2008")+ SUMIFS(D:D,C:C, "6",A:A, M134,B:B, "2009"))/T$20 -> 0.03866661043
A138: 2020 | B138: 2008 | C138: 6 | D138: 29221.59961 | G138: 2040 | H138: 2021-2023 | I138: 0.03838690592 | J138: 0.08377157588 | M138: 2010-2012 | N138: =( SUMIFS(D:D,C:C, "4",A:A, M134,B:B, "2010")+ SUMIFS(D:D,C:C, "4",A:A, M134,B:B, "2011")+ SUMIFS(D:D,C:C, "4",A:A, M134,B:B, "2012"))/S$20 -> 0.01847222941 | O138: =( SUMIFS(D:D,C:C, "6",A:A, M134,B:B, "2010")+ SUMIFS(D:D,C:C, "6",A:A, M134,B:B, "2011")+ SUMIFS(D:D,C:C, "6",A:A, M134,B:B, "2012"))/T$20 -> 0.04668374749
A139: 2020 | B139: 2007 | C139: 6 | D139: 109467 | G139: 2040 | H139: 2024-2050 | I139: 0.9142141567 | J139: 0.7401456848 | M139: 2013-2020 | N139: =( SUMIFS(D:D,C:C, "4",A:A, M134,B:B, "2013")+ SUMIFS(D:D,C:C, "4",A:A, M134,B:B, "2014")+ SUMIFS(D:D,C:C, "4",A:A, M134,B:B, "2015")+SUMIFS(D:D,C:C, "4",A:A, M134,B:B, "2016")+SUMIFS(D:D,C:C, "4",A:A, M134,B:B, "2017")+SUMIFS(D:D,C:C, "4",A:A, M134,B:B, "2018")+SUMIFS(D:D,C:C, "4",A:A, M134,B:B, "2019")+SUMIFS(D:D,C:C, "4",A:A, M134,B:B, "2020"))/S$20 -> 0.2159059783 | O139: =( SUMIFS(D:D,C:C, "6",A:A, M134,B:B, "2013")+ SUMIFS(D:D,C:C, "6",A:A, M134,B:B, "2014")+ SUMIFS(D:D,C:C, "6",A:A, M134,B:B, "2015")+SUMIFS(D:D,C:C, "6",A:A, M134,B:B, "2016")+SUMIFS(D:D,C:C, "6",A:A, M134,B:B, "2017")+SUMIFS(D:D,C:C, "6",A:A, M134,B:B, "2018")+SUMIFS(D:D,C:C, "6",A:A, M134,B:B, "2019")+SUMIFS(D:D,C:C, "6",A:A, M134,B:B, "2020"))/T$20 -> 0.3244649453
A140: 2020 | B140: 2006 | C140: 6 | D140: 79378.10156 | M140: 2021-2023 | N140: =( SUMIFS(D:D,C:C, "4",A:A, M134,B:B, "2021")+ SUMIFS(D:D,C:C, "4",A:A, M134,B:B, "2022")+ SUMIFS(D:D,C:C, "4",A:A, M134,B:B, "2023"))/S$20 -> 0.15605022 | O140: =( SUMIFS(D:D,C:C, "6",A:A, M134,B:B, "2021")+SUMIFS(D:D,C:C, "6",A:A, M134,B:B, "2022")+SUMIFS(D:D,C:C, "6",A:A, M134,B:B, "2023"))/T$20 -> 0.1413086552
A141: 2020 | B141: 2005 | C141: 6 | D141: 72602.10156 | M141: 2024-2050 | N141: =( SUMIFS(D:D,C:C, "4",A:A, M134,B:B, "2024")+SUMIFS(D:D,C:C, "4",A:A, M134,B:B, "2025")+SUMIFS(D:D,C:C, "4",A:A, M134,B:B, "2026")+SUMIFS(D:D,C:C, "4",A:A, M134,B:B, "2027")+SUMIFS(D:D,C:C, "4",A:A, M134,B:B, "2028")+SUMIFS(D:D,C:C, "4",A:A, M134,B:B, "2029")+SUMIFS(D:D,C:C, "4",A:A, M134,B:B, "2030")+SUMIFS(D:D,C:C, "4",A:A, M134,B:B, "2031"))/S$20 -> 0.5889504779 | O141: =( SUMIFS(D:D,C:C, "6",A:A, M134,B:B, "2024")+SUMIFS(D:D,C:C, "6",A:A, M134,B:B, "2025")+SUMIFS(D:D,C:C, "6",A:A, M134,B:B, "2026")+SUMIFS(D:D,C:C, "6",A:A, M134,B:B, "2027")+SUMIFS(D:D,C:C, "6",A:A, M134,B:B, "2028")+SUMIFS(D:D,C:C, "6",A:A, M134,B:B, "2029")+SUMIFS(D:D,C:C, "6",A:A, M134,B:B, "2030")+SUMIFS(D:D,C:C, "6",A:A, M134,B:B, "2031"))/T$20 -> 0.3917621764
A142: 2020 | B142: 2004 | C142: 6 | D142: 39574 | N142: =SUM(N136:N141) -> 1 | O142: =SUM(O136:O141) -> 1
A143: 2020 | B143: 2003 | C143: 6 | D143: 35374.69922
A144: 2020 | B144: 2002 | C144: 6 | D144: 22508.40039 | M144: 2032
A145: 2020 | B145: 2001 | C145: 6 | D145: 36777.69922 | M145: Model Year Group | N145: Operating Hours | O145: No. of Trucks
A146: 2020 | B146: 2000 | C146: 6 | D146: 56048.89844 | M146: 2006 or earlier | N146: =( SUMIFS(D:D,C:C, "4",A:A, M144,B:B, "2006")+ SUMIFS(D:D,C:C, "4",A:A, M144,B:B, "2005")+ SUMIFS(D:D,C:C, "4",A:A, M144,B:B, "2004")+ SUMIFS(D:D,C:C, "4",A:A, M144,B:B, "2003")+ SUMIFS(D:D,C:C, "4",A:A, M144,B:B, "2002")+ SUMIFS(D:D,C:C, "4",A:A, M144,B:B, "2001")+SUMIFS(D:D,C:C, "4",A:A, M144,B:B, "2000"))/$S21 -> 0.007238899629 | O146: =( SUMIFS(D:D,C:C, "6",A:A, M144,B:B, "2006")+ SUMIFS(D:D,C:C, "6",A:A, M144,B:B, "2005")+ SUMIFS(D:D,C:C, "6",A:A, M144,B:B, "2004")+ SUMIFS(D:D,C:C, "6",A:A, M144,B:B, "2003")+ SUMIFS(D:D,C:C, "6",A:A, M144,B:B, "2002")+ SUMIFS(D:D,C:C, "6",A:A, M144,B:B, "2001")+SUMIFS(D:D,C:C, "6",A:A, M144,B:B, "2000"))/$T21 -> 0.04907088298
A147: 2020 | B147: 1999 | C147: 6 | D147: 45114.5 | M147: 2007-2009 | N147: =( SUMIFS(D:D,C:C, "4",A:A, M144,B:B, "2007")+ SUMIFS(D:D,C:C, "4",A:A, M144,B:B, "2008")+ SUMIFS(D:D,C:C, "4",A:A, M144,B:B, "2009"))/S$21 -> 0.008914723122 | O147: =( SUMIFS(D:D,C:C, "6",A:A, M144,B:B, "2007")+ SUMIFS(D:D,C:C, "6",A:A, M144,B:B, "2008")+ SUMIFS(D:D,C:C, "6",A:A, M144,B:B, "2009"))/T$21 -> 0.03456243044
A148: 2020 | B148: 1998 | C148: 6 | D148: 33050.5 | M148: 2010-2012 | N148: =( SUMIFS(D:D,C:C, "4",A:A, M144,B:B, "2010")+ SUMIFS(D:D,C:C, "4",A:A, M144,B:B, "2011")+ SUMIFS(D:D,C:C, "4",A:A, M144,B:B, "2012"))/S$21 -> 0.01558166417 | O148: =( SUMIFS(D:D,C:C, "6",A:A, M144,B:B, "2010")+ SUMIFS(D:D,C:C, "6",A:A, M144,B:B, "2011")+ SUMIFS(D:D,C:C, "6",A:A, M144,B:B, "2012"))/T$21 -> 0.04227769883
A149: 2020 | B149: 1997 | C149: 6 | D149: 22939 | M149: 2013-2020 | N149: =( SUMIFS(D:D,C:C, "4",A:A, M144,B:B, "2013")+ SUMIFS(D:D,C:C, "4",A:A, M144,B:B, "2014")+ SUMIFS(D:D,C:C, "4",A:A, M144,B:B, "2015")+SUMIFS(D:D,C:C, "4",A:A, M144,B:B, "2016")+SUMIFS(D:D,C:C, "4",A:A, M144,B:B, "2017")+SUMIFS(D:D,C:C, "4",A:A, M144,B:B, "2018")+SUMIFS(D:D,C:C, "4",A:A, M144,B:B, "2019")+SUMIFS(D:D,C:C, "4",A:A, M144,B:B, "2020"))/S$21 -> 0.1838903582 | O149: =( SUMIFS(D:D,C:C, "6",A:A, M144,B:B, "2013")+ SUMIFS(D:D,C:C, "6",A:A, M144,B:B, "2014")+ SUMIFS(D:D,C:C, "6",A:A, M144,B:B, "2015")+SUMIFS(D:D,C:C, "6",A:A, M144,B:B, "2016")+SUMIFS(D:D,C:C, "6",A:A, M144,B:B, "2017")+SUMIFS(D:D,C:C, "6",A:A, M144,B:B, "2018")+SUMIFS(D:D,C:C, "6",A:A, M144,B:B, "2019")+SUMIFS(D:D,C:C, "6",A:A, M144,B:B, "2020"))/T$21 -> 0.3032159443
A150: 2020 | B150: 1996 | C150: 6 | D150: 24260.80078 | M150: 2021-2023 | N150: =( SUMIFS(D:D,C:C, "4",A:A, M144,B:B, "2021")+ SUMIFS(D:D,C:C, "4",A:A, M144,B:B, "2022")+ SUMIFS(D:D,C:C, "4",A:A, M144,B:B, "2023"))/S$21 -> 0.1396292996 | O150: =( SUMIFS(D:D,C:C, "6",A:A, M144,B:B, "2021")+SUMIFS(D:D,C:C, "6",A:A, M144,B:B, "2022")+SUMIFS(D:D,C:C, "6",A:A, M144,B:B, "2023"))/T$21 -> 0.135770261
A151: 2020 | B151: 1995 | C151: 6 | D151: 22075.19922 | M151: 2024-2050 | N151: =( SUMIFS(D:D,C:C, "4",A:A, M144,B:B, "2024")+SUMIFS(D:D,C:C, "4",A:A, M144,B:B, "2025")+SUMIFS(D:D,C:C, "4",A:A, M144,B:B, "2026")+SUMIFS(D:D,C:C, "4",A:A, M144,B:B, "2027")+SUMIFS(D:D,C:C, "4",A:A, M144,B:B, "2028")+SUMIFS(D:D,C:C, "4",A:A, M144,B:B, "2029")+SUMIFS(D:D,C:C, "4",A:A, M144,B:B, "2030")+SUMIFS(D:D,C:C, "4",A:A, M144,B:B, "2031")+SUMIFS(D:D,C:C, "4",A:A, M144,B:B, "2032"))/S$21 -> 0.6447450552 | O151: =( SUMIFS(D:D,C:C, "6",A:A, M144,B:B, "2024")+SUMIFS(D:D,C:C, "6",A:A, M144,B:B, "2025")+SUMIFS(D:D,C:C, "6",A:A, M144,B:B, "2026")+SUMIFS(D:D,C:C, "6",A:A, M144,B:B, "2027")+SUMIFS(D:D,C:C, "6",A:A, M144,B:B, "2028")+SUMIFS(D:D,C:C, "6",A:A, M144,B:B, "2029")+SUMIFS(D:D,C:C, "6",A:A, M144,B:B, "2030")+SUMIFS(D:D,C:C, "6",A:A, M144,B:B, "2031")+SUMIFS(D:D,C:C, "6",A:A, M144,B:B, "2032"))/T$21 -> 0.4351027824
A152: 2020 | B152: 1994 | C152: 6 | D152: 18387.69922 | N152: =SUM(N146:N151) -> 1 | O152: =SUM(O146:O151) -> 1
A153: 2020 | B153: 1993 | C153: 6 | D153: 14313.2998
A154: 2020 | B154: 1992 | C154: 6 | D154: 9602.990234 | M154: 2033
A155: 2020 | B155: 1991 | C155: 6 | D155: 8392.219727 | M155: Model Year Group | N155: Operating Hours | O155: No. of Trucks
A156: 2020 | B156: 1990 | C156: 6 | D156: 25661.5 | M156: 2006 or earlier | N156: =( SUMIFS(D:D,C:C, "4",A:A, M154,B:B, "2006")+ SUMIFS(D:D,C:C, "4",A:A, M154,B:B, "2005")+ SUMIFS(D:D,C:C, "4",A:A, M154,B:B, "2004")+ SUMIFS(D:D,C:C, "4",A:A, M154,B:B, "2003")+ SUMIFS(D:D,C:C, "4",A:A, M154,B:B, "2002")+ SUMIFS(D:D,C:C, "4",A:A, M154,B:B, "2001")+SUMIFS(D:D,C:C, "4",A:A, M154,B:B, "2000"))/$S22 -> 0.00520314007 | O156: =( SUMIFS(D:D,C:C, "6",A:A, M154,B:B, "2006")+ SUMIFS(D:D,C:C, "6",A:A, M154,B:B, "2005")+ SUMIFS(D:D,C:C, "6",A:A, M154,B:B, "2004")+ SUMIFS(D:D,C:C, "6",A:A, M154,B:B, "2003")+ SUMIFS(D:D,C:C, "6",A:A, M154,B:B, "2002")+ SUMIFS(D:D,C:C, "6",A:A, M154,B:B, "2001")+SUMIFS(D:D,C:C, "6",A:A, M154,B:B, "2000"))/$T22 -> 0.04040688871
A157: 2020 | B157: 2020 | C157: 4 | D157: 289215308 | M157: 2007-2009 | N157: =( SUMIFS(D:D,C:C, "4",A:A, M154,B:B, "2007")+ SUMIFS(D:D,C:C, "4",A:A, M154,B:B, "2008")+ SUMIFS(D:D,C:C, "4",A:A, M154,B:B, "2009"))/S$22 -> 0.006944815073 | O157: =( SUMIFS(D:D,C:C, "6",A:A, M154,B:B, "2007")+ SUMIFS(D:D,C:C, "6",A:A, M154,B:B, "2008")+ SUMIFS(D:D,C:C, "6",A:A, M154,B:B, "2009"))/T$22 -> 0.03040730339
A158: 2020 | B158: 2019 | C158: 4 | D158: 311192300 | M158: 2010-2012 | N158: =( SUMIFS(D:D,C:C, "4",A:A, M154,B:B, "2010")+ SUMIFS(D:D,C:C, "4",A:A, M154,B:B, "2011")+ SUMIFS(D:D,C:C, "4",A:A, M154,B:B, "2012"))/S$22 -> 0.01288319939 | O158: =( SUMIFS(D:D,C:C, "6",A:A, M154,B:B, "2010")+ SUMIFS(D:D,C:C, "6",A:A, M154,B:B, "2011")+ SUMIFS(D:D,C:C, "6",A:A, M154,B:B, "2012"))/T$22 -> 0.03796638772
A159: 2020 | B159: 2018 | C159: 4 | D159: 293046004 | M159: 2013-2020 | N159: =( SUMIFS(D:D,C:C, "4",A:A, M154,B:B, "2013")+ SUMIFS(D:D,C:C, "4",A:A, M154,B:B, "2014")+ SUMIFS(D:D,C:C, "4",A:A, M154,B:B, "2015")+SUMIFS(D:D,C:C, "4",A:A, M154,B:B, "2016")+SUMIFS(D:D,C:C, "4",A:A, M154,B:B, "2017")+SUMIFS(D:D,C:C, "4",A:A, M154,B:B, "2018")+SUMIFS(D:D,C:C, "4",A:A, M154,B:B, "2019")+SUMIFS(D:D,C:C, "4",A:A, M154,B:B, "2020"))/S$22 -> 0.154658536 | O159: =( SUMIFS(D:D,C:C, "6",A:A, M154,B:B, "2013")+ SUMIFS(D:D,C:C, "6",A:A, M154,B:B, "2014")+ SUMIFS(D:D,C:C, "6",A:A, M154,B:B, "2015")+SUMIFS(D:D,C:C, "6",A:A, M154,B:B, "2016")+SUMIFS(D:D,C:C, "6",A:A, M154,B:B, "2017")+SUMIFS(D:D,C:C, "6",A:A, M154,B:B, "2018")+SUMIFS(D:D,C:C, "6",A:A, M154,B:B, "2019")+SUMIFS(D:D,C:C, "6",A:A, M154,B:B, "2020"))/T$22 -> 0.2810896416
A160: 2020 | B160: 2017 | C160: 4 | D160: 341044400 | M160: 2021-2023 | N160: =( SUMIFS(D:D,C:C, "4",A:A, M154,B:B, "2021")+ SUMIFS(D:D,C:C, "4",A:A, M154,B:B, "2022")+ SUMIFS(D:D,C:C, "4",A:A, M154,B:B, "2023"))/S$22 -> 0.123204085 | O160: =( SUMIFS(D:D,C:C, "6",A:A, M154,B:B, "2021")+SUMIFS(D:D,C:C, "6",A:A, M154,B:B, "2022")+SUMIFS(D:D,C:C, "6",A:A, M154,B:B, "2023"))/T$22 -> 0.1301798747
A161: 2020 | B161: 2016 | C161: 4 | D161: 326742196 | M161: 2024-2050 | N161: =( SUMIFS(D:D,C:C, "4",A:A, M154,B:B, "2024")+SUMIFS(D:D,C:C, "4",A:A, M154,B:B, "2025")+SUMIFS(D:D,C:C, "4",A:A, M154,B:B, "2026")+SUMIFS(D:D,C:C, "4",A:A, M154,B:B, "2027")+SUMIFS(D:D,C:C, "4",A:A, M154,B:B, "2028")+SUMIFS(D:D,C:C, "4",A:A, M154,B:B, "2029")+SUMIFS(D:D,C:C, "4",A:A, M154,B:B, "2030")+SUMIFS(D:D,C:C, "4",A:A, M154,B:B, "2031")+SUMIFS(D:D,C:C, "4",A:A, M154,B:B, "2032")+SUMIFS(D:D,C:C, "4",A:A, M154,B:B, "2033"))/S$22 -> 0.6971062245 | O161: =( SUMIFS(D:D,C:C, "6",A:A, M154,B:B, "2024")+SUMIFS(D:D,C:C, "6",A:A, M154,B:B, "2025")+SUMIFS(D:D,C:C, "6",A:A, M154,B:B, "2026")+SUMIFS(D:D,C:C, "6",A:A, M154,B:B, "2027")+SUMIFS(D:D,C:C, "6",A:A, M154,B:B, "2028")+SUMIFS(D:D,C:C, "6",A:A, M154,B:B, "2029")+SUMIFS(D:D,C:C, "6",A:A, M154,B:B, "2030")+SUMIFS(D:D,C:C, "6",A:A, M154,B:B, "2031")+SUMIFS(D:D,C:C, "6",A:A, M154,B:B, "2032")+SUMIFS(D:D,C:C, "6",A:A, M154,B:B, "2033"))/T$22 -> 0.4799499038
A162: 2020 | B162: 2015 | C162: 4 | D162: 394010400 | N162: =SUM(N156:N161) -> 1 | O162: =SUM(O156:O161) -> 1
A163: 2020 | B163: 2014 | C163: 4 | D163: 320293600
A164: 2020 | B164: 2013 | C164: 4 | D164: 217464200 | M164: 2034
A165: 2020 | B165: 2012 | C165: 4 | D165: 202244500 | M165: Model Year Group | N165: Operating Hours | O165: No. of Trucks
A166: 2020 | B166: 2011 | C166: 4 | D166: 98719310 | M166: 2006 or earlier | N166: =( SUMIFS(D:D,C:C, "4",A:A, M164,B:B, "2006")+ SUMIFS(D:D,C:C, "4",A:A, M164,B:B, "2005")+ SUMIFS(D:D,C:C, "4",A:A, M164,B:B, "2004")+ SUMIFS(D:D,C:C, "4",A:A, M164,B:B, "2003")+ SUMIFS(D:D,C:C, "4",A:A, M164,B:B, "2002")+ SUMIFS(D:D,C:C, "4",A:A, M164,B:B, "2001")+SUMIFS(D:D,C:C, "4",A:A, M164,B:B, "2000"))/$S23 -> 0.003636500735 | O166: =( SUMIFS(D:D,C:C, "6",A:A, M164,B:B, "2006")+ SUMIFS(D:D,C:C, "6",A:A, M164,B:B, "2005")+ SUMIFS(D:D,C:C, "6",A:A, M164,B:B, "2004")+ SUMIFS(D:D,C:C, "6",A:A, M164,B:B, "2003")+ SUMIFS(D:D,C:C, "6",A:A, M164,B:B, "2002")+ SUMIFS(D:D,C:C, "6",A:A, M164,B:B, "2001")+SUMIFS(D:D,C:C, "6",A:A, M164,B:B, "2000"))/$T23 -> 0.03271559895
A167: 2020 | B167: 2010 | C167: 4 | D167: 74197610 | M167: 2007-2009 | N167: =( SUMIFS(D:D,C:C, "4",A:A, M164,B:B, "2007")+ SUMIFS(D:D,C:C, "4",A:A, M164,B:B, "2008")+ SUMIFS(D:D,C:C, "4",A:A, M164,B:B, "2009"))/S$23 -> 0.005318644754 | O167: =( SUMIFS(D:D,C:C, "6",A:A, M164,B:B, "2007")+ SUMIFS(D:D,C:C, "6",A:A, M164,B:B, "2008")+ SUMIFS(D:D,C:C, "6",A:A, M164,B:B, "2009"))/T$23 -> 0.02679412622
A168: 2020 | B168: 2009 | C168: 4 | D168: 82173140 | M168: 2010-2012 | N168: =( SUMIFS(D:D,C:C, "4",A:A, M164,B:B, "2010")+ SUMIFS(D:D,C:C, "4",A:A, M164,B:B, "2011")+ SUMIFS(D:D,C:C, "4",A:A, M164,B:B, "2012"))/S$23 -> 0.0105512033 | O168: =( SUMIFS(D:D,C:C, "6",A:A, M164,B:B, "2010")+ SUMIFS(D:D,C:C, "6",A:A, M164,B:B, "2011")+ SUMIFS(D:D,C:C, "6",A:A, M164,B:B, "2012"))/T$23 -> 0.03406352221
A169: 2020 | B169: 2008 | C169: 4 | D169: 46397210 | M169: 2013-2020 | N169: =( SUMIFS(D:D,C:C, "4",A:A, M164,B:B, "2013")+ SUMIFS(D:D,C:C, "4",A:A, M164,B:B, "2014")+ SUMIFS(D:D,C:C, "4",A:A, M164,B:B, "2015")+SUMIFS(D:D,C:C, "4",A:A, M164,B:B, "2016")+SUMIFS(D:D,C:C, "4",A:A, M164,B:B, "2017")+SUMIFS(D:D,C:C, "4",A:A, M164,B:B, "2018")+SUMIFS(D:D,C:C, "4",A:A, M164,B:B, "2019")+SUMIFS(D:D,C:C, "4",A:A, M164,B:B, "2020"))/S$23 -> 0.129849938 | O169: =( SUMIFS(D:D,C:C, "6",A:A, M164,B:B, "2013")+ SUMIFS(D:D,C:C, "6",A:A, M164,B:B, "2014")+ SUMIFS(D:D,C:C, "6",A:A, M164,B:B, "2015")+SUMIFS(D:D,C:C, "6",A:A, M164,B:B, "2016")+SUMIFS(D:D,C:C, "6",A:A, M164,B:B, "2017")+SUMIFS(D:D,C:C, "6",A:A, M164,B:B, "2018")+SUMIFS(D:D,C:C, "6",A:A, M164,B:B, "2019")+SUMIFS(D:D,C:C, "6",A:A, M164,B:B, "2020"))/T$23 -> 0.2596351443
A170: 2020 | B170: 2007 | C170: 4 | D170: 156365600 | M170: 2021-2023 | N170: =( SUMIFS(D:D,C:C, "4",A:A, M164,B:B, "2021")+ SUMIFS(D:D,C:C, "4",A:A, M164,B:B, "2022")+ SUMIFS(D:D,C:C, "4",A:A, M164,B:B, "2023"))/S$23 -> 0.1067701561 | O170: =( SUMIFS(D:D,C:C, "6",A:A, M164,B:B, "2021")+SUMIFS(D:D,C:C, "6",A:A, M164,B:B, "2022")+SUMIFS(D:D,C:C, "6",A:A, M164,B:B, "2023"))/T$23 -> 0.123679704
A171: 2020 | B171: 2006 | C171: 4 | D171: 100736200 | M171: 2024-2050 | N171: =( SUMIFS(D:D,C:C, "4",A:A, M164,B:B, "2024")+SUMIFS(D:D,C:C, "4",A:A, M164,B:B, "2025")+SUMIFS(D:D,C:C, "4",A:A, M164,B:B, "2026")+SUMIFS(D:D,C:C, "4",A:A, M164,B:B, "2027")+SUMIFS(D:D,C:C, "4",A:A, M164,B:B, "2028")+SUMIFS(D:D,C:C, "4",A:A, M164,B:B, "2029")+SUMIFS(D:D,C:C, "4",A:A, M164,B:B, "2030")+SUMIFS(D:D,C:C, "4",A:A, M164,B:B, "2031")+SUMIFS(D:D,C:C, "4",A:A, M164,B:B, "2032")+SUMIFS(D:D,C:C, "4",A:A, M164,B:B, "2033")+SUMIFS(D:D,C:C, "4",A:A, M164,B:B, "2034"))/S$23 -> 0.7438735572 | O171: =( SUMIFS(D:D,C:C, "6",A:A, M164,B:B, "2024")+SUMIFS(D:D,C:C, "6",A:A, M164,B:B, "2025")+SUMIFS(D:D,C:C, "6",A:A, M164,B:B, "2026")+SUMIFS(D:D,C:C, "6",A:A, M164,B:B, "2027")+SUMIFS(D:D,C:C, "6",A:A, M164,B:B, "2028")+SUMIFS(D:D,C:C, "6",A:A, M164,B:B, "2029")+SUMIFS(D:D,C:C, "6",A:A, M164,B:B, "2030")+SUMIFS(D:D,C:C, "6",A:A, M164,B:B, "2031")+SUMIFS(D:D,C:C, "6",A:A, M164,B:B, "2032")+SUMIFS(D:D,C:C, "6",A:A, M164,B:B, "2033")+SUMIFS(D:D,C:C, "6",A:A, M164,B:B, "2034"))/T$23 -> 0.5231119043
A172: 2020 | B172: 2005 | C172: 4 | D172: 80567610 | N172: =SUM(N166:N171) -> 1 | O172: =SUM(O166:O171) -> 1
A173: 2020 | B173: 2004 | C173: 4 | D173: 37609540
A174: 2020 | B174: 2003 | C174: 4 | D174: 31610960 | M174: 2035
A175: 2020 | B175: 2002 | C175: 4 | D175: 18836050 | M175: Model Year Group | N175: Operating Hours | O175: No. of Trucks
A176: 2020 | B176: 2001 | C176: 4 | D176: 28689790 | M176: 2006 or earlier | N176: =( SUMIFS(D:D,C:C, "4",A:A, M174,B:B, "2006")+ SUMIFS(D:D,C:C, "4",A:A, M174,B:B, "2005")+ SUMIFS(D:D,C:C, "4",A:A, M174,B:B, "2004")+ SUMIFS(D:D,C:C, "4",A:A, M174,B:B, "2003")+ SUMIFS(D:D,C:C, "4",A:A, M174,B:B, "2002")+ SUMIFS(D:D,C:C, "4",A:A, M174,B:B, "2001")+SUMIFS(D:D,C:C, "4",A:A, M174,B:B, "2000"))/$S24 -> 0.002214715435 | O176: =( SUMIFS(D:D,C:C, "6",A:A, M174,B:B, "2006")+ SUMIFS(D:D,C:C, "6",A:A, M174,B:B, "2005")+ SUMIFS(D:D,C:C, "6",A:A, M174,B:B, "2004")+ SUMIFS(D:D,C:C, "6",A:A, M174,B:B, "2003")+ SUMIFS(D:D,C:C, "6",A:A, M174,B:B, "2002")+ SUMIFS(D:D,C:C, "6",A:A, M174,B:B, "2001")+SUMIFS(D:D,C:C, "6",A:A, M174,B:B, "2000"))/$T24 -> 0.0230177697
A177: 2020 | B177: 2000 | C177: 4 | D177: 40541760 | M177: 2007-2009 | N177: =( SUMIFS(D:D,C:C, "4",A:A, M174,B:B, "2007")+ SUMIFS(D:D,C:C, "4",A:A, M174,B:B, "2008")+ SUMIFS(D:D,C:C, "4",A:A, M174,B:B, "2009"))/S$24 -> 0.004005540153 | O177: =( SUMIFS(D:D,C:C, "6",A:A, M174,B:B, "2007")+ SUMIFS(D:D,C:C, "6",A:A, M174,B:B, "2008")+ SUMIFS(D:D,C:C, "6",A:A, M174,B:B, "2009"))/T$24 -> 0.02383630837
A178: 2020 | B178: 1999 | C178: 4 | D178: 30071980 | M178: 2010-2012 | N178: =( SUMIFS(D:D,C:C, "4",A:A, M174,B:B, "2010")+ SUMIFS(D:D,C:C, "4",A:A, M174,B:B, "2011")+ SUMIFS(D:D,C:C, "4",A:A, M174,B:B, "2012"))/S$24 -> 0.008576681557 | O178: =( SUMIFS(D:D,C:C, "6",A:A, M174,B:B, "2010")+ SUMIFS(D:D,C:C, "6",A:A, M174,B:B, "2011")+ SUMIFS(D:D,C:C, "6",A:A, M174,B:B, "2012"))/T$24 -> 0.03069074595
A179: 2020 | B179: 1998 | C179: 4 | D179: 20154610 | M179: 2013-2020 | N179: =( SUMIFS(D:D,C:C, "4",A:A, M174,B:B, "2013")+ SUMIFS(D:D,C:C, "4",A:A, M174,B:B, "2014")+ SUMIFS(D:D,C:C, "4",A:A, M174,B:B, "2015")+SUMIFS(D:D,C:C, "4",A:A, M174,B:B, "2016")+SUMIFS(D:D,C:C, "4",A:A, M174,B:B, "2017")+SUMIFS(D:D,C:C, "4",A:A, M174,B:B, "2018")+SUMIFS(D:D,C:C, "4",A:A, M174,B:B, "2019")+SUMIFS(D:D,C:C, "4",A:A, M174,B:B, "2020"))/S$24 -> 0.1094854623 | O179: =( SUMIFS(D:D,C:C, "6",A:A, M174,B:B, "2013")+ SUMIFS(D:D,C:C, "6",A:A, M174,B:B, "2014")+ SUMIFS(D:D,C:C, "6",A:A, M174,B:B, "2015")+SUMIFS(D:D,C:C, "6",A:A, M174,B:B, "2016")+SUMIFS(D:D,C:C, "6",A:A, M174,B:B, "2017")+SUMIFS(D:D,C:C, "6",A:A, M174,B:B, "2018")+SUMIFS(D:D,C:C, "6",A:A, M174,B:B, "2019")+SUMIFS(D:D,C:C, "6",A:A, M174,B:B, "2020"))/T$24 -> 0.2404743713
A180: 2020 | B180: 1997 | C180: 4 | D180: 12686530 | M180: 2021-2023 | N180: =( SUMIFS(D:D,C:C, "4",A:A, M174,B:B, "2021")+ SUMIFS(D:D,C:C, "4",A:A, M174,B:B, "2022")+ SUMIFS(D:D,C:C, "4",A:A, M174,B:B, "2023"))/S$24 -> 0.09152795623 | O180: =( SUMIFS(D:D,C:C, "6",A:A, M174,B:B, "2021")+SUMIFS(D:D,C:C, "6",A:A, M174,B:B, "2022")+SUMIFS(D:D,C:C, "6",A:A, M174,B:B, "2023"))/T$24 -> 0.1175609376
A181: 2020 | B181: 1996 | C181: 4 | D181: 12040520 | M181: 2024-2050 | N181: =( SUMIFS(D:D,C:C, "4",A:A, M174,B:B, "2024")+SUMIFS(D:D,C:C, "4",A:A, M174,B:B, "2025")+SUMIFS(D:D,C:C, "4",A:A, M174,B:B, "2026")+SUMIFS(D:D,C:C, "4",A:A, M174,B:B, "2027")+SUMIFS(D:D,C:C, "4",A:A, M174,B:B, "2028")+SUMIFS(D:D,C:C, "4",A:A, M174,B:B, "2029")+SUMIFS(D:D,C:C, "4",A:A, M174,B:B, "2030")+SUMIFS(D:D,C:C, "4",A:A, M174,B:B, "2031")+SUMIFS(D:D,C:C, "4",A:A, M174,B:B, "2032")+SUMIFS(D:D,C:C, "4",A:A, M174,B:B, "2033")+SUMIFS(D:D,C:C, "4",A:A, M174,B:B, "2034")+SUMIFS(D:D,C:C, "4",A:A, M174,B:B, "2035"))/S$24 -> 0.7841896443 | O181: =( SUMIFS(D:D,C:C, "6",A:A, M174,B:B, "2024")+SUMIFS(D:D,C:C, "6",A:A, M174,B:B, "2025")+SUMIFS(D:D,C:C, "6",A:A, M174,B:B, "2026")+SUMIFS(D:D,C:C, "6",A:A, M174,B:B, "2027")+SUMIFS(D:D,C:C, "6",A:A, M174,B:B, "2028")+SUMIFS(D:D,C:C, "6",A:A, M174,B:B, "2029")+SUMIFS(D:D,C:C, "6",A:A, M174,B:B, "2030")+SUMIFS(D:D,C:C, "6",A:A, M174,B:B, "2031")+SUMIFS(D:D,C:C, "6",A:A, M174,B:B, "2032")+SUMIFS(D:D,C:C, "6",A:A, M174,B:B, "2033")+SUMIFS(D:D,C:C, "6",A:A, M174,B:B, "2034")+SUMIFS(D:D,C:C, "6",A:A, M174,B:B, "2035"))/T$24 -> 0.5644198671
A182: 2020 | B182: 1995 | C182: 4 | D182: 9702878 | N182: =SUM(N176:N181) -> 1 | O182: =SUM(O176:O181) -> 1
A183: 2020 | B183: 1994 | C183: 4 | D183: 7038438
A184: 2020 | B184: 1993 | C184: 4 | D184: 4666428 | M184: 2036
A185: 2020 | B185: 1992 | C185: 4 | D185: 2585731 | M185: Model Year Group | N185: Operating Hours | O185: No. of Trucks
A186: 2020 | B186: 1991 | C186: 4 | D186: 1783392 | M186: 2006 or earlier | N186: =( SUMIFS(D:D,C:C, "4",A:A, M184,B:B, "2006")+ SUMIFS(D:D,C:C, "4",A:A, M184,B:B, "2005")+ SUMIFS(D:D,C:C, "4",A:A, M184,B:B, "2004")+ SUMIFS(D:D,C:C, "4",A:A, M184,B:B, "2003")+ SUMIFS(D:D,C:C, "4",A:A, M184,B:B, "2002")+ SUMIFS(D:D,C:C, "4",A:A, M184,B:B, "2001")+SUMIFS(D:D,C:C, "4",A:A, M184,B:B, "2000"))/$S25 -> 0.00119357313 | O186: =( SUMIFS(D:D,C:C, "6",A:A, M184,B:B, "2006")+ SUMIFS(D:D,C:C, "6",A:A, M184,B:B, "2005")+ SUMIFS(D:D,C:C, "6",A:A, M184,B:B, "2004")+ SUMIFS(D:D,C:C, "6",A:A, M184,B:B, "2003")+ SUMIFS(D:D,C:C, "6",A:A, M184,B:B, "2002")+ SUMIFS(D:D,C:C, "6",A:A, M184,B:B, "2001")+SUMIFS(D:D,C:C, "6",A:A, M184,B:B, "2000"))/$T25 -> 0.0141394332
A187: 2020 | B187: 1990 | C187: 4 | D187: 3996709 | M187: 2007-2009 | N187: =( SUMIFS(D:D,C:C, "4",A:A, M184,B:B, "2007")+ SUMIFS(D:D,C:C, "4",A:A, M184,B:B, "2008")+ SUMIFS(D:D,C:C, "4",A:A, M184,B:B, "2009"))/S$25 -> 0.002894257802 | O187: =( SUMIFS(D:D,C:C, "6",A:A, M184,B:B, "2007")+ SUMIFS(D:D,C:C, "6",A:A, M184,B:B, "2008")+ SUMIFS(D:D,C:C, "6",A:A, M184,B:B, "2009"))/T$25 -> 0.02104091712
A188: 2021 | B188: 2021 | C188: 6 | D188: 90984.10156 | M188: 2010-2012 | N188: =( SUMIFS(D:D,C:C, "4",A:A, M184,B:B, "2010")+ SUMIFS(D:D,C:C, "4",A:A, M184,B:B, "2011")+ SUMIFS(D:D,C:C, "4",A:A, M184,B:B, "2012"))/S$25 -> 0.006865853046 | O188: =( SUMIFS(D:D,C:C, "6",A:A, M184,B:B, "2010")+ SUMIFS(D:D,C:C, "6",A:A, M184,B:B, "2011")+ SUMIFS(D:D,C:C, "6",A:A, M184,B:B, "2012"))/T$25 -> 0.02757600549
A189: 2021 | B189: 2020 | C189: 6 | D189: 95883.20312 | M189: 2013-2020 | N189: =( SUMIFS(D:D,C:C, "4",A:A, M184,B:B, "2013")+ SUMIFS(D:D,C:C, "4",A:A, M184,B:B, "2014")+ SUMIFS(D:D,C:C, "4",A:A, M184,B:B, "2015")+SUMIFS(D:D,C:C, "4",A:A, M184,B:B, "2016")+SUMIFS(D:D,C:C, "4",A:A, M184,B:B, "2017")+SUMIFS(D:D,C:C, "4",A:A, M184,B:B, "2018")+SUMIFS(D:D,C:C, "4",A:A, M184,B:B, "2019")+SUMIFS(D:D,C:C, "4",A:A, M184,B:B, "2020"))/S$25 -> 0.09249578358 | O189: =( SUMIFS(D:D,C:C, "6",A:A, M184,B:B, "2013")+ SUMIFS(D:D,C:C, "6",A:A, M184,B:B, "2014")+ SUMIFS(D:D,C:C, "6",A:A, M184,B:B, "2015")+SUMIFS(D:D,C:C, "6",A:A, M184,B:B, "2016")+SUMIFS(D:D,C:C, "6",A:A, M184,B:B, "2017")+SUMIFS(D:D,C:C, "6",A:A, M184,B:B, "2018")+SUMIFS(D:D,C:C, "6",A:A, M184,B:B, "2019")+SUMIFS(D:D,C:C, "6",A:A, M184,B:B, "2020"))/T$25 -> 0.2215220962
A190: 2021 | B190: 2019 | C190: 6 | D190: 103169 | M190: 2021-2023 | N190: =( SUMIFS(D:D,C:C, "4",A:A, M184,B:B, "2021")+ SUMIFS(D:D,C:C, "4",A:A, M184,B:B, "2022")+ SUMIFS(D:D,C:C, "4",A:A, M184,B:B, "2023"))/S$25 -> 0.07712691442 | O190: =( SUMIFS(D:D,C:C, "6",A:A, M184,B:B, "2021")+SUMIFS(D:D,C:C, "6",A:A, M184,B:B, "2022")+SUMIFS(D:D,C:C, "6",A:A, M184,B:B, "2023"))/T$25 -> 0.1113428765
A191: 2021 | B191: 2018 | C191: 6 | D191: 97153.29688 | M191: 2024-2050 | N191: =( SUMIFS(D:D,C:C, "4",A:A, M184,B:B, "2024")+SUMIFS(D:D,C:C, "4",A:A, M184,B:B, "2025")+SUMIFS(D:D,C:C, "4",A:A, M184,B:B, "2026")+SUMIFS(D:D,C:C, "4",A:A, M184,B:B, "2027")+SUMIFS(D:D,C:C, "4",A:A, M184,B:B, "2028")+SUMIFS(D:D,C:C, "4",A:A, M184,B:B, "2029")+SUMIFS(D:D,C:C, "4",A:A, M184,B:B, "2030")+SUMIFS(D:D,C:C, "4",A:A, M184,B:B, "2031")+SUMIFS(D:D,C:C, "4",A:A, M184,B:B, "2032")+SUMIFS(D:D,C:C, "4",A:A, M184,B:B, "2033")+SUMIFS(D:D,C:C, "4",A:A, M184,B:B, "2034")+SUMIFS(D:D,C:C, "4",A:A, M184,B:B, "2035")+SUMIFS(D:D,C:C, "4",A:A, M184,B:B, "2036"))/S$25 -> 0.819423618 | O191: =( SUMIFS(D:D,C:C, "6",A:A, M184,B:B, "2024")+SUMIFS(D:D,C:C, "6",A:A, M184,B:B, "2025")+SUMIFS(D:D,C:C, "6",A:A, M184,B:B, "2026")+SUMIFS(D:D,C:C, "6",A:A, M184,B:B, "2027")+SUMIFS(D:D,C:C, "6",A:A, M184,B:B, "2028")+SUMIFS(D:D,C:C, "6",A:A, M184,B:B, "2029")+SUMIFS(D:D,C:C, "6",A:A, M184,B:B, "2030")+SUMIFS(D:D,C:C, "6",A:A, M184,B:B, "2031")+SUMIFS(D:D,C:C, "6",A:A, M184,B:B, "2032")+SUMIFS(D:D,C:C, "6",A:A, M184,B:B, "2033")+SUMIFS(D:D,C:C, "6",A:A, M184,B:B, "2034")+SUMIFS(D:D,C:C, "6",A:A, M184,B:B, "2035")+SUMIFS(D:D,C:C, "6",A:A, M184,B:B, "2036"))/T$25 -> 0.6043786715
A192: 2021 | B192: 2017 | C192: 6 | D192: 113066 | N192: =SUM(N186:N191) -> 1 | O192: =SUM(O186:O191) -> 1
A193: 2021 | B193: 2016 | C193: 6 | D193: 112741
A194: 2021 | B194: 2015 | C194: 6 | D194: 141904 | M194: 2037
A195: 2021 | B195: 2014 | C195: 6 | D195: 122581 | M195: Model Year Group | N195: Operating Hours | O195: No. of Trucks
A196: 2021 | B196: 2013 | C196: 6 | D196: 87498.60156 | M196: 2006 or earlier | N196: =( SUMIFS(D:D,C:C, "4",A:A, M194,B:B, "2006")+ SUMIFS(D:D,C:C, "4",A:A, M194,B:B, "2005")+ SUMIFS(D:D,C:C, "4",A:A, M194,B:B, "2004")+ SUMIFS(D:D,C:C, "4",A:A, M194,B:B, "2003")+ SUMIFS(D:D,C:C, "4",A:A, M194,B:B, "2002")+ SUMIFS(D:D,C:C, "4",A:A, M194,B:B, "2001")+SUMIFS(D:D,C:C, "4",A:A, M194,B:B, "2000"))/$S26 -> 0 | O196: =( SUMIFS(D:D,C:C, "6",A:A, M194,B:B, "2006")+ SUMIFS(D:D,C:C, "6",A:A, M194,B:B, "2005")+ SUMIFS(D:D,C:C, "6",A:A, M194,B:B, "2004")+ SUMIFS(D:D,C:C, "6",A:A, M194,B:B, "2003")+ SUMIFS(D:D,C:C, "6",A:A, M194,B:B, "2002")+ SUMIFS(D:D,C:C, "6",A:A, M194,B:B, "2001")+SUMIFS(D:D,C:C, "6",A:A, M194,B:B, "2000"))/$T26 -> 0
A197: 2021 | B197: 2012 | C197: 6 | D197: 87202.29688 | M197: 2007-2009 | N197: =( SUMIFS(D:D,C:C, "4",A:A, M194,B:B, "2007")+ SUMIFS(D:D,C:C, "4",A:A, M194,B:B, "2008")+ SUMIFS(D:D,C:C, "4",A:A, M194,B:B, "2009"))/S$26 -> 0.00231654747 | O197: =( SUMIFS(D:D,C:C, "6",A:A, M194,B:B, "2007")+ SUMIFS(D:D,C:C, "6",A:A, M194,B:B, "2008")+ SUMIFS(D:D,C:C, "6",A:A, M194,B:B, "2009"))/T$26 -> 0.02247916578
A198: 2021 | B198: 2011 | C198: 6 | D198: 45848.39844 | M198: 2010-2012 | N198: =( SUMIFS(D:D,C:C, "4",A:A, M194,B:B, "2010")+ SUMIFS(D:D,C:C, "4",A:A, M194,B:B, "2011")+ SUMIFS(D:D,C:C, "4",A:A, M194,B:B, "2012"))/S$26 -> 0.005426031379 | O198: =( SUMIFS(D:D,C:C, "6",A:A, M194,B:B, "2010")+ SUMIFS(D:D,C:C, "6",A:A, M194,B:B, "2011")+ SUMIFS(D:D,C:C, "6",A:A, M194,B:B, "2012"))/T$26 -> 0.02486863396
A199: 2021 | B199: 2010 | C199: 6 | D199: 36789.60156 | M199: 2013-2020 | N199: =( SUMIFS(D:D,C:C, "4",A:A, M194,B:B, "2013")+ SUMIFS(D:D,C:C, "4",A:A, M194,B:B, "2014")+ SUMIFS(D:D,C:C, "4",A:A, M194,B:B, "2015")+SUMIFS(D:D,C:C, "4",A:A, M194,B:B, "2016")+SUMIFS(D:D,C:C, "4",A:A, M194,B:B, "2017")+SUMIFS(D:D,C:C, "4",A:A, M194,B:B, "2018")+SUMIFS(D:D,C:C, "4",A:A, M194,B:B, "2019")+SUMIFS(D:D,C:C, "4",A:A, M194,B:B, "2020"))/S$26 -> 0.07907490375 | O199: =( SUMIFS(D:D,C:C, "6",A:A, M194,B:B, "2013")+ SUMIFS(D:D,C:C, "6",A:A, M194,B:B, "2014")+ SUMIFS(D:D,C:C, "6",A:A, M194,B:B, "2015")+SUMIFS(D:D,C:C, "6",A:A, M194,B:B, "2016")+SUMIFS(D:D,C:C, "6",A:A, M194,B:B, "2017")+SUMIFS(D:D,C:C, "6",A:A, M194,B:B, "2018")+SUMIFS(D:D,C:C, "6",A:A, M194,B:B, "2019")+SUMIFS(D:D,C:C, "6",A:A, M194,B:B, "2020"))/T$26 -> 0.2042080636
A200: 2021 | B200: 2009 | C200: 6 | D200: 44460.5 | M200: 2021-2023 | N200: =( SUMIFS(D:D,C:C, "4",A:A, M194,B:B, "2021")+ SUMIFS(D:D,C:C, "4",A:A, M194,B:B, "2022")+ SUMIFS(D:D,C:C, "4",A:A, M194,B:B, "2023"))/S$26 -> 0.06392465774 | O200: =( SUMIFS(D:D,C:C, "6",A:A, M194,B:B, "2021")+SUMIFS(D:D,C:C, "6",A:A, M194,B:B, "2022")+SUMIFS(D:D,C:C, "6",A:A, M194,B:B, "2023"))/T$26 -> 0.1054512778
... 1227 more rows

Sheet BatteryAPU (hidden)
A1: pollutantid | B1: Mygroupid | C1: inventory | D1: activity | E1: emissionRates | G1: unites | H1: energy content of diesel
A2: 2 | B2: 1 | C2: 580992425.3 | D2: 3434839590 | E2: 169.1468874 | F2: =(E2/H26)*$H$4 -> 2.462996189 | G2: g/hr | H2: 0.137 | I2: MMBTU/gal
A3: 2 | B3: 2 | C3: 83722721.12 | D3: 2394832375 | E3: 34.95974165 | F3: =(E3/H27)*$H$4 -> 0.5104051654 | H3: battery APU fuel use rate
A4: 2 | B4: 3 | C4: 464454309.7 | D4: 3450534586 | E4: 134.6035804 | F4: 1.890296293 | H4: 0.109 | I4: gal/hr
A5: 2 | B5: 4 | C5: 2288017815 | D5: 28045322993 | E5: 81.58286554 | F5: 1.325151885
A6: 2 | B6: 5 | C6: 725566903.4 | D6: 10854165972 | E6: 66.8468591 | F6: 1.265064113
A7: 2 | B7: 6 | C7: 2452241521 | D7: 39053341874 | E7: 62.79210442 | F7: =(E7/H31)*$H$4 -> 1.359110053 | I7: =H4*H2 -> 0.014933 | J7: MMBTU/hr
A8: 3 | B8: 1 | C8: 2251503250 | D8: 3434839590 | E8: 655.4900719 | F8: =(E8/H26)*$H$4 -> 9.544778353
A9: 3 | B9: 2 | C9: 707403455.3 | D9: 2394832375 | E9: 295.3874612 | F9: =(E9/H27)*$H$4 -> 4.312597259
A10: 3 | B10: 3 | C10: 653620762.2 | D10: 3450534586 | E10: 189.4259414 | F10: 2.660190418
A11: 3 | B11: 4 | C11: 3746590412 | D11: 28045322993 | E11: 133.5905603 | F11: 2.169913763
A12: 3 | B12: 5 | C12: 1176345037 | D12: 10854165972 | E12: 108.3772848 | F12: 2.051019532
A13: 3 | B13: 6 | C13: 3822385053 | D13: 39053341874 | E13: 97.8760042 | F13: 2.118487068
A14: 87 | B14: 1 | C14: 120455285.6 | D14: 3434839590 | E14: 35.0686786 | F14: =(E14/H26)*$H$4 -> 0.5106450559
A15: 87 | B15: 2 | C15: 11790163.46 | D15: 2394832375 | E15: 4.92316856 | F15: =(E15/H27)*$H$4 -> 0.07187726639
A16: 87 | B16: 3 | C16: 18787663.56 | D16: 3450534586 | E16: 5.444855887 | F16: 0.07646446602
A17: 87 | B17: 4 | C17: 100644264.2 | D17: 28045322993 | E17: 3.588629169 | F17: 0.05829016519
A18: 87 | B18: 5 | C18: 28529633.91 | D18: 10854165972 | E18: 2.628450125 | F18: 0.04974291941
A19: 87 | B19: 6 | C19: 90600056.18 | D19: 39053341874 | E19: 2.319905336 | F19: =(E19/H31)*$H$4 -> 0.05021342558
A20: 90 | B20: 1 | C20: 2.737584818e+11 | D20: 3434839590 | E20: 79700.51428 | F20: =(E20/H26)*$H$4 -> 1160.541976
A21: 90 | B21: 2 | C21: 1.903659532e+11 | D21: 2394832375 | E21: 79490.30386 | F21: =(E21/H27)*$H$4 -> 1160.542377
A22: 90 | B22: 3 | C22: 2.851503533e+11 | D22: 3450534586 | E22: 82639.47112 | F22: =(E22/H28)*$H$4 -> 1160.541833
A23: 90 | B23: 4 | C23: 2003801256178 | D23: 28045322993 | E23: 71448.67815 | F23: =(E23/H29)*$H$4 -> 1160.542105
A24: 90 | B24: 5 | C24: 665619142252 | D24: 10854165972 | E24: 61323.84045 | F24: =(E24/H30)*$H$4 -> 1160.542034
A25: 90 | B25: 6 | C25: 2093965546256 | D25: 39053341874 | E25: 53618.08864 | F25: 1160.54214 | G25: MMBTU/hr | H25: running fuel use rate
A26: 91 | B26: 1 | C26: 3522522660 | D26: 3434839590 | E26: 1025.527559 | F26: =I7 -> 0.014933 | G26: =E26/1000 -> 1.025527559 | H26: =G26/$H$2 -> 7.485602619 | I26: gal/hr
A27: 91 | B27: 2 | C27: 2449488131 | D27: 2394832375 | E27: 1022.822372 | F27: 0 | G27: =E27/1000 -> 1.022822372 | H27: =G27/$H$2 -> 7.465856731 | I27: gal/hr
A28: 91 | B28: 3 | C28: 3669105331 | D28: 3450534586 | E28: 1063.344024 | F28: 0 | G28: =E28/1000 -> 1.063344024 | H28: 7.76163521 | I28: gal/hr
A29: 91 | B29: 4 | C29: 2.578343691e+10 | D29: 28045322993 | E29: 919.3489024 | F29: 0 | G29: 0.9193489024 | H29: 6.71057593 | I29: gal/hr
A30: 91 | B30: 5 | C30: 8564696809 | D30: 10854165972 | E30: 789.070006 | F30: 0 | G30: 0.789070006 | H30: 5.759635081 | I30: gal/hr
A31: 91 | B31: 6 | C31: 2.69436037e+10 | D31: 39053341874 | E31: 689.9180045 | F31: 0 | G31: 0.6899180045 | H31: 5.035897843 | I31: gal/hr
A32: 98 | B32: 1 | C32: 2.738431886e+11 | D32: 3434839590 | E32: 79725.17533 | F32: =(E32/H26)*$H$4 -> 1160.901073
A33: 98 | B33: 2 | C33: 1.906014575e+11 | D33: 2394832375 | E33: 79588.64241 | F33: =(E33/H27)*$H$4 -> 1161.9781
A34: 98 | B34: 3 | C34: 2.853826634e+11 | D34: 3450534586 | E34: 82706.79696 | F34: 1161.487319
A35: 98 | B35: 4 | C35: 2004919889361 | D35: 28045322993 | E35: 71488.56477 | F35: 1161.189985
A36: 98 | B36: 5 | C36: 666028742740 | D36: 10854165972 | E36: 61361.57715 | F36: 1161.256194
A37: 98 | B37: 6 | C37: 2095390982812 | D37: 39053341874 | E37: 53654.58837 | F37: 1161.332163
A38: 100 | B38: 1 | C38: 115268855.2 | D38: 3434839590 | E38: 33.55873024 | F38: =(E38/H26)*$H$4 -> 0.488658266
A39: 100 | B39: 2 | C39: 3170595.717 | D39: 2394832375 | E39: 1.323932209 | F39: =(E39/H27)*$H$4 -> 0.01932914279
A40: 100 | B40: 3 | C40: 4262520.769 | D40: 3450534586 | E40: 1.23532185 | F40: 0.01734815899
A41: 100 | B41: 4 | C41: 41591939.53 | D41: 28045322993 | E41: 1.48302587 | F41: 0.02408881466
A42: 100 | B42: 5 | C42: 11155143.31 | D42: 10854165972 | E42: 1.0277292 | F42: 0.01944957992
A43: 100 | B43: 6 | C43: 35751775.04 | D43: 39053341874 | E43: 0.9154600689 | F43: 0.01981476801
A44: 110 | B44: 1 | C44: 106047011.3 | D44: 3434839590 | E44: 30.87393416 | F44: =(E44/H26)*$H$4 -> 0.4495641827
A45: 110 | B45: 2 | C45: 2916939.407 | D45: 2394832375 | E45: 1.218014019 | F45: =(E45/H27)*$H$4 -> 0.01778275862
A46: 110 | B46: 3 | C46: 3921506.095 | D46: 3450534586 | E46: 1.136492331 | F46: 0.01596025332
A47: 110 | B47: 4 | C47: 38264466.52 | D47: 28045322993 | E47: 1.364379598 | F47: 0.02216164123
A48: 110 | B48: 5 | C48: 10262699.47 | D48: 10854165972 | E48: 0.9455078816 | F48: 0.01789355708
A49: 110 | B49: 6 | C49: 32891528.54 | D49: 39053341874 | E49: 0.8422205875 | F49: 0.01822952866
